{"text_format":"1","workbook":"xlsx","n_sheets":17,"sheets":["ENERO","FEBRERO","MARZO","I TRIMESTRE 2024","ABRIL","MAYO","JUNIO","II TRIMESTRE 2024","JULIO","AGOSTO","SETIEMBRE","III TRIMESTRE 2024","OCTUBRE","NOVIEMBRE","DICIEMBRE","IV TRIMESTRE 2023","ANUAL 2023."],"not_rendered":{"charts":17,"images":1,"macros":1,"external_links":0,"defined_names":3,"comments":0,"pivot_tables":0},"unopened":[],"bounds":{"document_bytes":16777216,"sheet_cells":100000,"rows_first":2000,"rows_last":500,"rows_between":2000,"halvings":0,"cell_chars":16384,"cell_head_chars":4096},"cells_cut":0,"cells_raw":0,"read":"whole","date_system":"1900"}

{"sheet":"ENERO","index":0,"n_rows":59,"n_cols":13,"rows_kept":59,"cut":false,"hidden":false,"merged":[[58,2,58,3],[6,0,14,0],[15,0,25,0],[26,0,31,0],[32,0,38,0],[50,2,51,2],[52,2,53,2],[54,2,55,2],[56,2,57,2]]}
[]
[]
[]
[null,"REGISTRO DE LA LISTA DE VERIFICACION DE CIRUGIA SEGURA"]
[null,"AÑO: U.E. 408 HOSPITAL DE ESPINAR - ENERO 2024",null,null,"NO REGISTRA","NO PRECEDE"]
[null,null,"SI","NO","NR","NP","TOTAL"]
["ENTRADA","PACIENTE CONFIRMA SU IDENTIDAD, EL SITIO QUIRUGICO, EL PROCEDIMIENTO Y CONSENTIMIENTO",81,null,null,2,{"$f":"SUM(C7:F7)","v":83}]
[null,"SE HA MARCADO EL SITIO QUIRURGICO",59,15,1,8,{"$f":"SUM(C8:F8)","v":83},null,{"$f":"SUM(C7,C8,C9,C10,D11,D12,C13,D14,C15)","v":548},{"$f":"I8/$I$10","v":0.86846275752773372}]
[null,"SE COMPROBO LA DISPONIBILIDAD DE LOS EQUIPOS DE ANESTESIA Y LA MEDICACION ANESTESICA",82,null,1,null,83,null,{"$f":"SUM(D7,D8,D9,D10,C11,C12,D13,C14,D15)","v":83},{"$f":"I9/$I$10","v":0.13153724247226625}]
[null,"SE COLOCO EL PULXIOMETRO AL PACIENTE Y FUNCIONA",80,2,1,null,83,null,{"$f":"SUM(I8:I9)","v":631}]
[null,"EL PACIENTE TIENE ALERGIAS",1,82,null,null,83]
[null,"VIA AEREA DIFICIL / RIESGO DE ASPIRACION",4,79,null,null,83]
[null,"HAY INSTRUMENTAL Y EQUIPO DISPONIBLE",10,18,55,null,83]
[null,"RIESGO DE HEMORRAGIA MENOR A 500 ML",18,64,1,null,83]
[null,"SE HA PREVISTO DISPONIBILIDAD DE COMPONENTE SANGUINEO EN BANCO DE SANGRE",11,25,47,null,83]
["PAUSA","CONFIRMAR QUE TODOS LOS MIEMBROS DEL EQUIPO PROGRAMADOS SE HAYAN PRESENTADO POR SU NOMBRE",83,null,null,null,83]
[null,"CONFIRMAR LA IDENTIDAD DEL PACIENTE, EL PROCEDIMIENTO Y EL SITIO QUIRUGICO",81,null,2,null,83]
[null,"CONFIRMAR SI TODOS LOS MIEMBROS DEL EQUIPO HAN CUMPLIDO CORRECTAMENTE CON EL PROTOCOLO DE AS",82,null,1,null,83]
[null,"SE HA ADMINISTRADO PROFILAXIS CON ANTIBIOTICOS EN LOS ULTIMOS 60 MINUTOS",59,19,3,2,83,null,{"$f":"SUM(C16,C17,C18,C19,C20,,C22,D23,C24,D25,C26)","v":706},{"$f":"I19/$I$21","v":0.93633952254641906}]
[null,"¿CUALES SON LOS PASOS CRITICOS O INESPERADO?",52,21,10,null,83,null,{"$f":"SUM(D16,D17,D18,D19,D20,D21,D22,C23,D24,C25,D26)","v":48},{"$f":"I20/$I$21","v":6.3660477453580902E-2}]
[null,"¿CUANTO DURARA LA OPERACIÓN?",81,null,2,null,83,null,{"$f":"SUM(I19:I20)","v":754}]
[null,"¿CUANTO ES LA PERDIDA DE SALGRE PREVISTA?",79,null,4,null,83]
[null,"¿PRESENTA EL PACIENTE ALGUN PROBLEMA ESPECIFICO?",6,70,7,null,83]
[null,"¿SE HA CONFIRMADO LA ESTERILIDAD DE ROPA, INSTRUMENTAL Y EQUIPOS?",83,null,null,null,83]
[null,"¿HAY DUDAS O PROBLEMAS RELACIONADOS CON ELLOS?",2,79,2,null,83]
[null,"¿PUEDEN VISUALIZARSE LAS IMÁGENES DIAGNOSTICADAS ESENCIALES?",38,null,6,39,83]
["SALIDA","EL ENFERMERO CONFIRMA VERBALMENTE EL NOMBRE DEL PROCEDIMIENTO",83,null,null,null,83]
[null,"EL RECUENTO DE INSTRUMENTOS, GASA Y AGUJAS",83,null,null,null,83,null,{"$f":"SUM(C27,C28,C29,C30,C31,D32)","v":274},{"$f":"I28/$I$30","v":0.7172774869109948}]
[null,"EL ETIQUETADO DE LAS MUESTRAS (LECTURA DE LA ETIQUETA EN VOZ ALTA, INCLUIDO EL NOMBRE DEL PACIENTE",23,23,2,35,83,null,{"$f":"SUM(D27,D28,D29,D30,D31,C32)","v":108},{"$f":"I29/$I$30","v":0.28272251308900526}]
[null,"SI HAY PROBLEMAS QUE SE RESUELVE RELACIONADOS CON EL INSTRUMENTAL Y LOS EQUIPOS",2,80,1,null,83,null,{"$f":"SUM(I28:I29)","v":382}]
[null,"(CIRUJANO, ANESTESIOLOGO, ENFERMERO) CUALES SON LOS ASPECTOS CRITICOS DE LA RECUPERACION Y EL TRAMITE",83,null,null,null,83]
[null,"OBSERVACIONES",5,null,77,null,82]
["FIRMA","FIRMA DEL CIRUJANO",83,null,null,null,83]
[null,"FIRMA DEL ANESTESIOLOGO",82,null,1,null,83]
[null,"FIRMA DE LA ENFERMERA",82,null,1,null,83,null,{"$f":"SUM(C33,C34,C35,C36,C37,C38,C39)","v":568},{"$f":"I35/$I$37","v":1}]
[null,"FIRMA DEL COORDINADOR",81,null,2,null,83,null,{"$f":"SUM(D33,D34,D35,D36,D37,,D38,D39)","v":0},{"$f":"I36/$I$37","v":0}]
[null,"NRO DE HISTORIA CLINICA",76,null,7,null,83,null,{"$f":"SUM(I35:I36)","v":568}]
[null,"NOMBRE Y APELLIDOS DEL PACIENTE",82,null,1,null,83]
[null,"FECHA",82,null,1,null,83]
[]
[]
[]
[]
[]
[null,"PORCENTAJE DE CUMPLIMIENTO DE LA LISTA DE VERIFICACION DE CIRUGIA SEGURA"]
[]
[]
[]
[]
[]
[null,null,"ENTRADA","(+)",{"$f":"J8","v":0.86846275752773372}]
[null,null,null,"(-)",{"$f":"J9","v":0.13153724247226625}]
[null,null,"PAUSA","(+)",{"$f":"J19","v":0.93633952254641906},null,null,null,null,null,null,null,"Cumplimiento"]
[null,null,null,"(-)",{"$f":"J20","v":6.3660477453580902E-2},null,null,null,null,null,null,"Entrada",{"$f":"E51","v":0.86846275752773372}]
[null,null,"SALIDA","(+)",{"$f":"J28","v":0.7172774869109948},null,null,null,null,null,null,"Pausa",{"$f":"E53","v":0.93633952254641906}]
[null,null,null,"(-)",{"$f":"J29","v":0.28272251308900526},null,null,null,null,null,null,"Salida",{"$f":"E55","v":0.7172774869109948}]
[null,null,"FIRMA","(+)",{"$f":"J35","v":1},null,null,null,null,null,null,"Firmas",{"$f":"E57","v":1}]
[null,null,null,"(-)",{"$f":"J36","v":0},null,null,null,null,null,null,"Cumplimiento",{"$f":"AVERAGE(M54:M57)","v":0.88051994174628689}]
[null,null,"CUMPLIMIENTO",null,{"$f":"M58","v":0.88051994174628689}]

{"sheet":"FEBRERO","index":1,"n_rows":59,"n_cols":13,"rows_kept":59,"cut":false,"hidden":false,"merged":[[58,2,58,3],[6,0,14,0],[15,0,25,0],[26,0,31,0],[32,0,38,0],[50,2,51,2],[52,2,53,2],[54,2,55,2],[56,2,57,2]]}
[]
[]
[]
[null,"REGISTRO DE LA LISTA DE VERIFICACION DE CIRUGIA SEGURA"]
[null,"AÑO: U.E. 408 HOSPITAL DE ESPINAR - FEBRERO 2024",null,null,"NO REGISTRA","NO PRECEDE"]
[null,null,"SI","NO","NR","NP","TOTAL"]
["ENTRADA","PACIENTE CONFIRMA SU IDENTIDAD, EL SITIO QUIRUGICO, EL PROCEDIMIENTO Y CONSENTIMIENTO",88,null,3,null,{"$f":"SUM(C7:F7)","v":91}]
[null,"SE HA MARCADO EL SITIO QUIRURGICO",45,20,6,20,{"$f":"SUM(C8:F8)","v":91},null,{"$f":"SUM(C7,C8,C9,C10,D11,D12,C13,D14,C15)","v":606},{"$f":"I8/$I$10","v":0.89117647058823535}]
[null,"SE COMPROBO LA DISPONIBILIDAD DE LOS EQUIPOS DE ANESTESIA Y LA MEDICACION ANESTESICA",88,null,3,null,91,null,{"$f":"SUM(D7,D8,D9,D10,C11,C12,D13,C14,D15)","v":74},{"$f":"I9/$I$10","v":0.10882352941176471}]
[null,"SE COLOCO EL PULXIOMETRO AL PACIENTE Y FUNCIONA",88,null,3,null,91,null,{"$f":"SUM(I8:I9)","v":680}]
[null,"EL PACIENTE TIENE ALERGIAS",1,89,1,null,91]
[null,"VIA AEREA DIFICIL / RIESGO DE ASPIRACION",11,78,2,null,91]
[null,"HAY INSTRUMENTAL Y EQUIPO DISPONIBLE",30,13,48,null,91]
[null,"RIESGO DE HEMORRAGIA MENOR A 500 ML",16,71,4,null,91]
[null,"SE HA PREVISTO DISPONIBILIDAD DE COMPONENTE SANGUINEO EN BANCO DE SANGRE",29,13,49,null,91]
["PAUSA","CONFIRMAR QUE TODOS LOS MIEMBROS DEL EQUIPO PROGRAMADOS SE HAYAN PRESENTADO POR SU NOMBRE",91,null,null,null,91]
[null,"CONFIRMAR LA IDENTIDAD DEL PACIENTE, EL PROCEDIMIENTO Y EL SITIO QUIRUGICO",90,null,1,null,91]
[null,"CONFIRMAR SI TODOS LOS MIEMBROS DEL EQUIPO HAN CUMPLIDO CORRECTAMENTE CON EL PROTOCOLO DE AS",88,null,3,null,91]
[null,"SE HA ADMINISTRADO PROFILAXIS CON ANTIBIOTICOS EN LOS ULTIMOS 60 MINUTOS",74,13,2,2,91,null,{"$f":"SUM(C16,C17,C18,C19,C20,,C22,D23,C24,D25,C26)","v":752},{"$f":"I19/$I$21","v":0.91373025516403406}]
[null,"¿CUALES SON LOS PASOS CRITICOS O INESPERADO?",39,48,4,null,91,null,{"$f":"SUM(D16,D17,D18,D19,D20,D21,D22,C23,D24,C25,D26)","v":71},{"$f":"I20/$I$21","v":8.6269744835965972E-2}]
[null,"¿CUANTO DURARA LA OPERACIÓN?",88,null,3,null,91,null,{"$f":"SUM(I19:I20)","v":823}]
[null,"¿CUANTO ES LA PERDIDA DE SALGRE PREVISTA?",85,null,6,null,91]
[null,"¿PRESENTA EL PACIENTE ALGUN PROBLEMA ESPECIFICO?",4,82,5,null,91]
[null,"¿SE HA CONFIRMADO LA ESTERILIDAD DE ROPA, INSTRUMENTAL Y EQUIPOS?",91,null,null,null,91]
[null,"¿HAY DUDAS O PROBLEMAS RELACIONADOS CON ELLOS?",1,84,6,null,91]
[null,"¿PUEDEN VISUALIZARSE LAS IMÁGENES DIAGNOSTICADAS ESENCIALES?",28,5,17,41,91]
["SALIDA","EL ENFERMERO CONFIRMA VERBALMENTE EL NOMBRE DEL PROCEDIMIENTO",90,null,1,null,91]
[null,"EL RECUENTO DE INSTRUMENTOS, GASA Y AGUJAS",91,null,null,null,91,null,{"$f":"SUM(C27,C28,C29,C30,C31,D32)","v":301},{"$f":"I28/$I$30","v":0.70657276995305163}]
[null,"EL ETIQUETADO DE LAS MUESTRAS (LECTURA DE LA ETIQUETA EN VOZ ALTA, INCLUIDO EL NOMBRE DEL PACIENTE",29,38,3,21,91,null,{"$f":"SUM(D27,D28,D29,D30,D31,C32)","v":125},{"$f":"I29/$I$30","v":0.29342723004694837}]
[null,"SI HAY PROBLEMAS QUE SE RESUELVE RELACIONADOS CON EL INSTRUMENTAL Y LOS EQUIPOS",1,87,3,null,91,null,{"$f":"SUM(I28:I29)","v":426}]
[null,"(CIRUJANO, ANESTESIOLOGO, ENFERMERO) CUALES SON LOS ASPECTOS CRITICOS DE LA RECUPERACION Y EL TRAMITE",88,null,3,null,91]
[null,"OBSERVACIONES",null,2,89,null,91]
["FIRMA","FIRMA DEL CIRUJANO",91,null,null,null,91]
[null,"FIRMA DEL ANESTESIOLOGO",90,1,null,null,91]
[null,"FIRMA DE LA ENFERMERA",90,1,null,null,91,null,{"$f":"SUM(C33,C34,C35,C36,C37,C38,C39)","v":624},{"$f":"I35/$I$37","v":0.97959183673469385}]
[null,"FIRMA DEL COORDINADOR",87,4,null,null,91,null,{"$f":"SUM(D33,D34,D35,D36,D37,,D38,D39)","v":13},{"$f":"I36/$I$37","v":2.0408163265306121E-2}]
[null,"NRO DE HISTORIA CLINICA",86,5,null,null,91,null,{"$f":"SUM(I35:I36)","v":637}]
[null,"NOMBRE Y APELLIDOS DEL PACIENTE",90,1,null,null,91]
[null,"FECHA",90,1,null,null,91]
[]
[]
[]
[]
[]
[null,"PORCENTAJE DE CUMPLIMIENTO DE LA LISTA DE VERIFICACION DE CIRUGIA SEGURA"]
[]
[]
[]
[]
[]
[null,null,"ENTRADA","(+)",{"$f":"J8","v":0.89117647058823535}]
[null,null,null,"(-)",{"$f":"J9","v":0.10882352941176471}]
[null,null,"PAUSA","(+)",{"$f":"J19","v":0.91373025516403406},null,null,null,null,null,null,null,"Cumplimiento"]
[null,null,null,"(-)",{"$f":"J20","v":8.6269744835965972E-2},null,null,null,null,null,null,"Entrada",{"$f":"E51","v":0.89117647058823535}]
[null,null,"SALIDA","(+)",{"$f":"J28","v":0.70657276995305163},null,null,null,null,null,null,"Pausa",{"$f":"E53","v":0.91373025516403406}]
[null,null,null,"(-)",{"$f":"J29","v":0.29342723004694837},null,null,null,null,null,null,"Salida",{"$f":"E55","v":0.70657276995305163}]
[null,null,"FIRMA","(+)",{"$f":"J35","v":0.97959183673469385},null,null,null,null,null,null,"Firmas",{"$f":"E57","v":0.97959183673469385}]
[null,null,null,"(-)",{"$f":"J36","v":2.0408163265306121E-2},null,null,null,null,null,null,"Cumplimiento",{"$f":"AVERAGE(M54:M57)","v":0.87276783311000372}]
[null,null,"CUMPLIMIENTO",null,{"$f":"M58","v":0.87276783311000372}]

{"sheet":"MARZO","index":2,"n_rows":59,"n_cols":13,"rows_kept":59,"cut":false,"hidden":false,"merged":[[58,2,58,3],[6,0,14,0],[15,0,25,0],[26,0,31,0],[32,0,38,0],[50,2,51,2],[52,2,53,2],[54,2,55,2],[56,2,57,2]]}
[]
[]
[]
[null,"REGISTRO DE LA LISTA DE VERIFICACION DE CIRUGIA SEGURA"]
[null,"AÑO: U.E. 408 HOSPITAL DE ESPINAR -MARZO  2024",null,null,"NO REGISTRA","NO PRECEDE"]
[null,null,"SI","NO","NR","NP","TOTAL"]
["ENTRADA","PACIENTE CONFIRMA SU IDENTIDAD, EL SITIO QUIRUGICO, EL PROCEDIMIENTO Y CONSENTIMIENTO",79,null,1,null,{"$f":"SUM(C7:F7)","v":80}]
[null,"SE HA MARCADO EL SITIO QUIRURGICO",38,10,6,26,{"$f":"SUM(C8:F8)","v":80},null,{"$f":"SUM(C7,C8,C9,C10,D11,D12,C13,D14,C15)","v":540},{"$f":"I8/$I$10","v":0.94570928196147108}]
[null,"SE COMPROBO LA DISPONIBILIDAD DE LOS EQUIPOS DE ANESTESIA Y LA MEDICACION ANESTESICA",80,null,null,null,80,null,{"$f":"SUM(D7,D8,D9,D10,C11,C12,D13,C14,D15)","v":31},{"$f":"I9/$I$10","v":5.4290718038528897E-2}]
[null,"SE COLOCO EL PULXIOMETRO AL PACIENTE Y FUNCIONA",76,1,3,null,80,null,{"$f":"SUM(I8:I9)","v":571}]
[null,"EL PACIENTE TIENE ALERGIAS",null,80,null,null,80]
[null,"VIA AEREA DIFICIL / RIESGO DE ASPIRACION",6,73,1,null,80]
[null,"HAY INSTRUMENTAL Y EQUIPO DISPONIBLE",21,1,58,null,80]
[null,"RIESGO DE HEMORRAGIA MENOR A 500 ML",11,68,1,null,80]
[null,"SE HA PREVISTO DISPONIBILIDAD DE COMPONENTE SANGUINEO EN BANCO DE SANGRE",25,2,53,null,80]
["PAUSA","CONFIRMAR QUE TODOS LOS MIEMBROS DEL EQUIPO PROGRAMADOS SE HAYAN PRESENTADO POR SU NOMBRE",80,null,null,null,80]
[null,"CONFIRMAR LA IDENTIDAD DEL PACIENTE, EL PROCEDIMIENTO Y EL SITIO QUIRUGICO",80,null,null,null,80]
[null,"CONFIRMAR SI TODOS LOS MIEMBROS DEL EQUIPO HAN CUMPLIDO CORRECTAMENTE CON EL PROTOCOLO DE AS",78,null,2,null,80]
[null,"SE HA ADMINISTRADO PROFILAXIS CON ANTIBIOTICOS EN LOS ULTIMOS 60 MINUTOS",62,14,1,3,80,null,{"$f":"SUM(C16,C17,C18,C19,C20,,C22,D23,C24,D25,C26)","v":664},{"$f":"I19/$I$21","v":0.90834473324213405}]
[null,"¿CUALES SON LOS PASOS CRITICOS O INESPERADO?",34,41,5,null,80,null,{"$f":"SUM(D16,D17,D18,D19,D20,D21,D22,C23,D24,C25,D26)","v":67},{"$f":"I20/$I$21","v":9.1655266757865936E-2}]
[null,"¿CUANTO DURARA LA OPERACIÓN?",79,null,1,null,80,null,{"$f":"SUM(I19:I20)","v":731}]
[null,"¿CUANTO ES LA PERDIDA DE SALGRE PREVISTA?",77,null,3,null,80]
[null,"¿PRESENTA EL PACIENTE ALGUN PROBLEMA ESPECIFICO?",5,74,1,null,80]
[null,"¿SE HA CONFIRMADO LA ESTERILIDAD DE ROPA, INSTRUMENTAL Y EQUIPOS?",80,null,null,null,80]
[null,"¿HAY DUDAS O PROBLEMAS RELACIONADOS CON ELLOS?",null,75,5,null,80]
[null,"¿PUEDEN VISUALIZARSE LAS IMÁGENES DIAGNOSTICADAS ESENCIALES?",24,7,9,40,80]
["SALIDA","EL ENFERMERO CONFIRMA VERBALMENTE EL NOMBRE DEL PROCEDIMIENTO",76,null,4,null,80]
[null,"EL RECUENTO DE INSTRUMENTOS, GASA Y AGUJAS",79,null,1,null,80,null,{"$f":"SUM(C27,C28,C29,C30,C31,D32)","v":261},{"$f":"I28/$I$30","v":0.73109243697478987}]
[null,"EL ETIQUETADO DE LAS MUESTRAS (LECTURA DE LA ETIQUETA EN VOZ ALTA, INCLUIDO EL NOMBRE DEL PACIENTE",21,19,5,35,80,null,{"$f":"SUM(D27,D28,D29,D30,D31,C32)","v":96},{"$f":"I29/$I$30","v":0.26890756302521007}]
[null,"SI HAY PROBLEMAS QUE SE RESUELVE RELACIONADOS CON EL INSTRUMENTAL Y LOS EQUIPOS",1,76,3,null,80,null,{"$f":"SUM(I28:I29)","v":357}]
[null,"(CIRUJANO, ANESTESIOLOGO, ENFERMERO) CUALES SON LOS ASPECTOS CRITICOS DE LA RECUPERACION Y EL TRAMITE",75,null,5,null,80]
[null,"OBSERVACIONES",1,9,70,null,80]
["FIRMA","FIRMA DEL CIRUJANO",80,null,null,null,80]
[null,"FIRMA DEL ANESTESIOLOGO",79,null,1,null,80]
[null,"FIRMA DE LA ENFERMERA",80,null,null,null,80,null,{"$f":"SUM(C33,C34,C35,C36,C37,C38,C39)","v":551},{"$f":"I35/$I$37","v":1}]
[null,"FIRMA DEL COORDINADOR",79,null,1,null,80,null,{"$f":"SUM(D33,D34,D35,D36,D37,,D38,D39)","v":0},{"$f":"I36/$I$37","v":0}]
[null,"NRO DE HISTORIA CLINICA",74,null,6,null,80,null,{"$f":"SUM(I35:I36)","v":551}]
[null,"NOMBRE Y APELLIDOS DEL PACIENTE",79,null,1,null,80]
[null,"FECHA",80,null,null,null,80]
[]
[]
[]
[]
[]
[null,"PORCENTAJE DE CUMPLIMIENTO DE LA LISTA DE VERIFICACION DE CIRUGIA SEGURA"]
[]
[]
[]
[]
[]
[null,null,"ENTRADA","(+)",{"$f":"J8","v":0.94570928196147108}]
[null,null,null,"(-)",{"$f":"J9","v":5.4290718038528897E-2}]
[null,null,"PAUSA","(+)",{"$f":"J19","v":0.90834473324213405},null,null,null,null,null,null,null,"Cumplimiento"]
[null,null,null,"(-)",{"$f":"J20","v":9.1655266757865936E-2},null,null,null,null,null,null,"Entrada",{"$f":"E51","v":0.94570928196147108}]
[null,null,"SALIDA","(+)",{"$f":"J28","v":0.73109243697478987},null,null,null,null,null,null,"Pausa",{"$f":"E53","v":0.90834473324213405}]
[null,null,null,"(-)",{"$f":"J29","v":0.26890756302521007},null,null,null,null,null,null,"Salida",{"$f":"E55","v":0.73109243697478987}]
[null,null,"FIRMA","(+)",{"$f":"J35","v":1},null,null,null,null,null,null,"Firmas",{"$f":"E57","v":1}]
[null,null,null,"(-)",{"$f":"J36","v":0},null,null,null,null,null,null,"Cumplimiento",{"$f":"AVERAGE(M54:M57)","v":0.89628661304459878}]
[null,null,"CUMPLIMIENTO",null,{"$f":"M58","v":0.89628661304459878}]

{"sheet":"I TRIMESTRE 2024","index":3,"n_rows":59,"n_cols":13,"rows_kept":59,"cut":false,"hidden":false,"merged":[[58,2,58,3],[6,0,14,0],[15,0,25,0],[26,0,31,0],[32,0,38,0],[50,2,51,2],[52,2,53,2],[54,2,55,2],[56,2,57,2]]}
[]
[]
[]
[null,"REGISTRO DE LA LISTA DE VERIFICACION DE CIRUGIA SEGURA"]
[null,"AÑO: U.E.408 HOSPITAL DE ESPINAR  I TRIMESTRE  2024",null,null,"NO REGISTRA","NO PRECEDE"]
[null,null,"SI","NO","NR","NP","TOTAL"]
["ENTRADA","PACIENTE CONFIRMA SU IDENTIDAD, EL SITIO QUIRUGICO, EL PROCEDIMIENTO Y CONSENTIMIENTO",{"$f":"+MARZO!C7+FEBRERO!C7+ENERO!C7","v":248},{"$f":"+MARZO!D7+FEBRERO!D7+ENERO!D7","v":0},{"$f":"+MARZO!E7+FEBRERO!E7+ENERO!E7","v":4},{"$f":"+MARZO!F7+FEBRERO!F7+ENERO!F7","v":2},{"$f":"SUM(C7:F7)","v":254}]
[null,"SE HA MARCADO EL SITIO QUIRURGICO",{"$f":"+MARZO!C8+FEBRERO!C8+ENERO!C8","v":142},{"$f":"+MARZO!D8+FEBRERO!D8+ENERO!D8","v":45},{"$f":"+MARZO!E8+FEBRERO!E8+ENERO!E8","v":13},{"$f":"+MARZO!F8+FEBRERO!F8+ENERO!F8","v":54},{"$f":"SUM(C8:F8)","v":254},null,{"$f":"SUM(C7,C8,C9,C10,D11,D12,C13,D14,C15)","v":1694},{"$f":"I8/$I$10","v":0.90010626992561105}]
[null,"SE COMPROBO LA DISPONIBILIDAD DE LOS EQUIPOS DE ANESTESIA Y LA MEDICACION ANESTESICA",{"$f":"+MARZO!C9+FEBRERO!C9+ENERO!C9","v":250},{"$f":"+MARZO!D9+FEBRERO!D9+ENERO!D9","v":0},{"$f":"+MARZO!E9+FEBRERO!E9+ENERO!E9","v":4},{"$f":"+MARZO!F9+FEBRERO!F9+ENERO!F9","v":0},254,null,{"$f":"SUM(D7,D8,D9,D10,C11,C12,D13,C14,D15)","v":188},{"$f":"I9/$I$10","v":9.9893730074388953E-2}]
[null,"SE COLOCO EL PULXIOMETRO AL PACIENTE Y FUNCIONA",{"$f":"+MARZO!C10+FEBRERO!C10+ENERO!C10","v":244},{"$f":"+MARZO!D10+FEBRERO!D10+ENERO!D10","v":3},{"$f":"+MARZO!E10+FEBRERO!E10+ENERO!E10","v":7},{"$f":"+MARZO!F10+FEBRERO!F10+ENERO!F10","v":0},254,null,{"$f":"SUM(I8:I9)","v":1882}]
[null,"EL PACIENTE TIENE ALERGIAS",{"$f":"+MARZO!C11+FEBRERO!C11+ENERO!C11","v":2},{"$f":"+MARZO!D11+FEBRERO!D11+ENERO!D11","v":251},{"$f":"+MARZO!E11+FEBRERO!E11+ENERO!E11","v":1},{"$f":"+MARZO!F11+FEBRERO!F11+ENERO!F11","v":0},254]
[null,"VIA AEREA DIFICIL / RIESGO DE ASPIRACION",{"$f":"+MARZO!C12+FEBRERO!C12+ENERO!C12","v":21},{"$f":"+MARZO!D12+FEBRERO!D12+ENERO!D12","v":230},{"$f":"+MARZO!E12+FEBRERO!E12+ENERO!E12","v":3},{"$f":"+MARZO!F12+FEBRERO!F12+ENERO!F12","v":0},254]
[null,"HAY INSTRUMENTAL Y EQUIPO DISPONIBLE",{"$f":"+MARZO!C13+FEBRERO!C13+ENERO!C13","v":61},{"$f":"+MARZO!D13+FEBRERO!D13+ENERO!D13","v":32},{"$f":"+MARZO!E13+FEBRERO!E13+ENERO!E13","v":161},{"$f":"+MARZO!F13+FEBRERO!F13+ENERO!F13","v":0},254]
[null,"RIESGO DE HEMORRAGIA MENOR A 500 ML",{"$f":"+MARZO!C14+FEBRERO!C14+ENERO!C14","v":45},{"$f":"+MARZO!D14+FEBRERO!D14+ENERO!D14","v":203},{"$f":"+MARZO!E14+FEBRERO!E14+ENERO!E14","v":6},{"$f":"+MARZO!F14+FEBRERO!F14+ENERO!F14","v":0},254]
[null,"SE HA PREVISTO DISPONIBILIDAD DE COMPONENTE SANGUINEO EN BANCO DE SANGRE",{"$f":"+MARZO!C15+FEBRERO!C15+ENERO!C15","v":65},{"$f":"+MARZO!D15+FEBRERO!D15+ENERO!D15","v":40},{"$f":"+MARZO!E15+FEBRERO!E15+ENERO!E15","v":149},{"$f":"+MARZO!F15+FEBRERO!F15+ENERO!F15","v":0},254]
["PAUSA","CONFIRMAR QUE TODOS LOS MIEMBROS DEL EQUIPO PROGRAMADOS SE HAYAN PRESENTADO POR SU NOMBRE",{"$f":"+MARZO!C16+FEBRERO!C16+ENERO!C16","v":254},{"$f":"+MARZO!D16+FEBRERO!D16+ENERO!D16","v":0},{"$f":"+MARZO!E16+FEBRERO!E16+ENERO!E16","v":0},{"$f":"+MARZO!F16+FEBRERO!F16+ENERO!F16","v":0},254]
[null,"CONFIRMAR LA IDENTIDAD DEL PACIENTE, EL PROCEDIMIENTO Y EL SITIO QUIRUGICO",{"$f":"+MARZO!C17+FEBRERO!C17+ENERO!C17","v":251},{"$f":"+MARZO!D17+FEBRERO!D17+ENERO!D17","v":0},{"$f":"+MARZO!E17+FEBRERO!E17+ENERO!E17","v":3},{"$f":"+MARZO!F17+FEBRERO!F17+ENERO!F17","v":0},254]
[null,"CONFIRMAR SI TODOS LOS MIEMBROS DEL EQUIPO HAN CUMPLIDO CORRECTAMENTE CON EL PROTOCOLO DE AS",{"$f":"+MARZO!C18+FEBRERO!C18+ENERO!C18","v":248},{"$f":"+MARZO!D18+FEBRERO!D18+ENERO!D18","v":0},{"$f":"+MARZO!E18+FEBRERO!E18+ENERO!E18","v":6},{"$f":"+MARZO!F18+FEBRERO!F18+ENERO!F18","v":0},254]
[null,"SE HA ADMINISTRADO PROFILAXIS CON ANTIBIOTICOS EN LOS ULTIMOS 60 MINUTOS",{"$f":"+MARZO!C19+FEBRERO!C19+ENERO!C19","v":195},{"$f":"+MARZO!D19+FEBRERO!D19+ENERO!D19","v":46},{"$f":"+MARZO!E19+FEBRERO!E19+ENERO!E19","v":6},{"$f":"+MARZO!F19+FEBRERO!F19+ENERO!F19","v":7},254,null,{"$f":"SUM(C16,C17,C18,C19,C20,,C22,D23,C24,D25,C26)","v":2122},{"$f":"I19/$I$21","v":0.91941074523396882}]
[null,"¿CUALES SON LOS PASOS CRITICOS O INESPERADO?",{"$f":"+MARZO!C20+FEBRERO!C20+ENERO!C20","v":125},{"$f":"+MARZO!D20+FEBRERO!D20+ENERO!D20","v":110},{"$f":"+MARZO!E20+FEBRERO!E20+ENERO!E20","v":19},{"$f":"+MARZO!F20+FEBRERO!F20+ENERO!F20","v":0},254,null,{"$f":"SUM(D16,D17,D18,D19,D20,D21,D22,C23,D24,C25,D26)","v":186},{"$f":"I20/$I$21","v":8.0589254766031196E-2}]
[null,"¿CUANTO DURARA LA OPERACIÓN?",{"$f":"+MARZO!C21+FEBRERO!C21+ENERO!C21","v":248},{"$f":"+MARZO!D21+FEBRERO!D21+ENERO!D21","v":0},{"$f":"+MARZO!E21+FEBRERO!E21+ENERO!E21","v":6},{"$f":"+MARZO!F21+FEBRERO!F21+ENERO!F21","v":0},254,null,{"$f":"SUM(I19:I20)","v":2308}]
[null,"¿CUANTO ES LA PERDIDA DE SALGRE PREVISTA?",{"$f":"+MARZO!C22+FEBRERO!C22+ENERO!C22","v":241},{"$f":"+MARZO!D22+FEBRERO!D22+ENERO!D22","v":0},{"$f":"+MARZO!E22+FEBRERO!E22+ENERO!E22","v":13},{"$f":"+MARZO!F22+FEBRERO!F22+ENERO!F22","v":0},254]
[null,"¿PRESENTA EL PACIENTE ALGUN PROBLEMA ESPECIFICO?",{"$f":"+MARZO!C23+FEBRERO!C23+ENERO!C23","v":15},{"$f":"+MARZO!D23+FEBRERO!D23+ENERO!D23","v":226},{"$f":"+MARZO!E23+FEBRERO!E23+ENERO!E23","v":13},{"$f":"+MARZO!F23+FEBRERO!F23+ENERO!F23","v":0},254]
[null,"¿SE HA CONFIRMADO LA ESTERILIDAD DE ROPA, INSTRUMENTAL Y EQUIPOS?",{"$f":"+MARZO!C24+FEBRERO!C24+ENERO!C24","v":254},{"$f":"+MARZO!D24+FEBRERO!D24+ENERO!D24","v":0},{"$f":"+MARZO!E24+FEBRERO!E24+ENERO!E24","v":0},{"$f":"+MARZO!F24+FEBRERO!F24+ENERO!F24","v":0},254]
[null,"¿HAY DUDAS O PROBLEMAS RELACIONADOS CON ELLOS?",{"$f":"+MARZO!C25+FEBRERO!C25+ENERO!C25","v":3},{"$f":"+MARZO!D25+FEBRERO!D25+ENERO!D25","v":238},{"$f":"+MARZO!E25+FEBRERO!E25+ENERO!E25","v":13},{"$f":"+MARZO!F25+FEBRERO!F25+ENERO!F25","v":0},254]
[null,"¿PUEDEN VISUALIZARSE LAS IMÁGENES DIAGNOSTICADAS ESENCIALES?",{"$f":"+MARZO!C26+FEBRERO!C26+ENERO!C26","v":90},{"$f":"+MARZO!D26+FEBRERO!D26+ENERO!D26","v":12},{"$f":"+MARZO!E26+FEBRERO!E26+ENERO!E26","v":32},{"$f":"+MARZO!F26+FEBRERO!F26+ENERO!F26","v":120},254]
["SALIDA","EL ENFERMERO CONFIRMA VERBALMENTE EL NOMBRE DEL PROCEDIMIENTO",{"$f":"+MARZO!C27+FEBRERO!C27+ENERO!C27","v":249},{"$f":"+MARZO!D27+FEBRERO!D27+ENERO!D27","v":0},{"$f":"+MARZO!E27+FEBRERO!E27+ENERO!E27","v":5},{"$f":"+MARZO!F27+FEBRERO!F27+ENERO!F27","v":0},254]
[null,"EL RECUENTO DE INSTRUMENTOS, GASA Y AGUJAS",{"$f":"+MARZO!C28+FEBRERO!C28+ENERO!C28","v":253},{"$f":"+MARZO!D28+FEBRERO!D28+ENERO!D28","v":0},{"$f":"+MARZO!E28+FEBRERO!E28+ENERO!E28","v":1},{"$f":"+MARZO!F28+FEBRERO!F28+ENERO!F28","v":0},254,null,{"$f":"SUM(C27,C28,C29,C30,C31,D32)","v":836},{"$f":"I28/$I$30","v":0.71759656652360515}]
[null,"EL ETIQUETADO DE LAS MUESTRAS (LECTURA DE LA ETIQUETA EN VOZ ALTA, INCLUIDO EL NOMBRE DEL PACIENTE",{"$f":"+MARZO!C29+FEBRERO!C29+ENERO!C29","v":73},{"$f":"+MARZO!D29+FEBRERO!D29+ENERO!D29","v":80},{"$f":"+MARZO!E29+FEBRERO!E29+ENERO!E29","v":10},{"$f":"+MARZO!F29+FEBRERO!F29+ENERO!F29","v":91},254,null,{"$f":"SUM(D27,D28,D29,D30,D31,C32)","v":329},{"$f":"I29/$I$30","v":0.28240343347639485}]
[null,"SI HAY PROBLEMAS QUE SE RESUELVE RELACIONADOS CON EL INSTRUMENTAL Y LOS EQUIPOS",{"$f":"+MARZO!C30+FEBRERO!C30+ENERO!C30","v":4},{"$f":"+MARZO!D30+FEBRERO!D30+ENERO!D30","v":243},{"$f":"+MARZO!E30+FEBRERO!E30+ENERO!E30","v":7},{"$f":"+MARZO!F30+FEBRERO!F30+ENERO!F30","v":0},254,null,{"$f":"SUM(I28:I29)","v":1165}]
[null,"(CIRUJANO, ANESTESIOLOGO, ENFERMERO) CUALES SON LOS ASPECTOS CRITICOS DE LA RECUPERACION Y EL TRAMITE",{"$f":"+MARZO!C31+FEBRERO!C31+ENERO!C31","v":246},{"$f":"+MARZO!D31+FEBRERO!D31+ENERO!D31","v":0},{"$f":"+MARZO!E31+FEBRERO!E31+ENERO!E31","v":8},{"$f":"+MARZO!F31+FEBRERO!F31+ENERO!F31","v":0},254]
[null,"OBSERVACIONES",{"$f":"+MARZO!C32+FEBRERO!C32+ENERO!C32","v":6},{"$f":"+MARZO!D32+FEBRERO!D32+ENERO!D32","v":11},{"$f":"+MARZO!E32+FEBRERO!E32+ENERO!E32","v":236},{"$f":"+MARZO!F32+FEBRERO!F32+ENERO!F32","v":0},253]
["FIRMA","FIRMA DEL CIRUJANO",{"$f":"+MARZO!C33+FEBRERO!C33+ENERO!C33","v":254},{"$f":"+MARZO!D33+FEBRERO!D33+ENERO!D33","v":0},{"$f":"+MARZO!E33+FEBRERO!E33+ENERO!E33","v":0},{"$f":"+MARZO!F33+FEBRERO!F33+ENERO!F33","v":0},254]
[null,"FIRMA DEL ANESTESIOLOGO",{"$f":"+MARZO!C34+FEBRERO!C34+ENERO!C34","v":251},{"$f":"+MARZO!D34+FEBRERO!D34+ENERO!D34","v":1},{"$f":"+MARZO!E34+FEBRERO!E34+ENERO!E34","v":2},{"$f":"+MARZO!F34+FEBRERO!F34+ENERO!F34","v":0},254]
[null,"FIRMA DE LA ENFERMERA",{"$f":"+MARZO!C35+FEBRERO!C35+ENERO!C35","v":252},{"$f":"+MARZO!D35+FEBRERO!D35+ENERO!D35","v":1},{"$f":"+MARZO!E35+FEBRERO!E35+ENERO!E35","v":1},{"$f":"+MARZO!F35+FEBRERO!F35+ENERO!F35","v":0},254,null,{"$f":"SUM(C33,C34,C35,C36,C37,C38,C39)","v":1743},{"$f":"I35/$I$37","v":0.99259681093394081}]
[null,"FIRMA DEL COORDINADOR",{"$f":"+MARZO!C36+FEBRERO!C36+ENERO!C36","v":247},{"$f":"+MARZO!D36+FEBRERO!D36+ENERO!D36","v":4},{"$f":"+MARZO!E36+FEBRERO!E36+ENERO!E36","v":3},{"$f":"+MARZO!F36+FEBRERO!F36+ENERO!F36","v":0},254,null,{"$f":"SUM(D33,D34,D35,D36,D37,,D38,D39)","v":13},{"$f":"I36/$I$37","v":7.4031890660592259E-3}]
[null,"NRO DE HISTORIA CLINICA",{"$f":"+MARZO!C37+FEBRERO!C37+ENERO!C37","v":236},{"$f":"+MARZO!D37+FEBRERO!D37+ENERO!D37","v":5},{"$f":"+MARZO!E37+FEBRERO!E37+ENERO!E37","v":13},{"$f":"+MARZO!F37+FEBRERO!F37+ENERO!F37","v":0},254,null,{"$f":"SUM(I35:I36)","v":1756}]
[null,"NOMBRE Y APELLIDOS DEL PACIENTE",{"$f":"+MARZO!C38+FEBRERO!C38+ENERO!C38","v":251},{"$f":"+MARZO!D38+FEBRERO!D38+ENERO!D38","v":1},{"$f":"+MARZO!E38+FEBRERO!E38+ENERO!E38","v":2},{"$f":"+MARZO!F38+FEBRERO!F38+ENERO!F38","v":0},254]
[null,"FECHA",{"$f":"+MARZO!C39+FEBRERO!C39+ENERO!C39","v":252},{"$f":"+MARZO!D39+FEBRERO!D39+ENERO!D39","v":1},{"$f":"+MARZO!E39+FEBRERO!E39+ENERO!E39","v":1},{"$f":"+MARZO!F39+FEBRERO!F39+ENERO!F39","v":0},254]
[]
[]
[]
[]
[]
[null,"PORCENTAJE DE CUMPLIMIENTO DE LA LISTA DE VERIFICACION DE CIRUGIA SEGURA"]
[]
[]
[]
[]
[]
[null,null,"ENTRADA","(+)",{"$f":"J8","v":0.90010626992561105}]
[null,null,null,"(-)",{"$f":"J9","v":9.9893730074388953E-2}]
[null,null,"PAUSA","(+)",{"$f":"J19","v":0.91941074523396882},null,null,null,null,null,null,null,"Cumplimiento"]
[null,null,null,"(-)",{"$f":"J20","v":8.0589254766031196E-2},null,null,null,null,null,null,"Entrada",{"$f":"E51","v":0.90010626992561105}]
[null,null,"SALIDA","(+)",{"$f":"J28","v":0.71759656652360515},null,null,null,null,null,null,"Pausa",{"$f":"E53","v":0.91941074523396882}]
[null,null,null,"(-)",{"$f":"J29","v":0.28240343347639485},null,null,null,null,null,null,"Salida",{"$f":"E55","v":0.71759656652360515}]
[null,null,"FIRMA","(+)",{"$f":"J35","v":0.99259681093394081},null,null,null,null,null,null,"Firmas",{"$f":"E57","v":0.99259681093394081}]
[null,null,null,"(-)",{"$f":"J36","v":7.4031890660592259E-3},null,null,null,null,null,null,"Cumplimiento",{"$f":"AVERAGE(M54:M57)","v":0.8824275981542814}]
[null,null,"CUMPLIMIENTO",null,{"$f":"M58","v":0.8824275981542814}]

{"sheet":"ABRIL","index":4,"n_rows":59,"n_cols":13,"rows_kept":59,"cut":false,"hidden":false,"merged":[[58,2,58,3],[6,0,14,0],[15,0,25,0],[26,0,31,0],[32,0,38,0],[50,2,51,2],[52,2,53,2],[54,2,55,2],[56,2,57,2]]}
[]
[]
[]
[null,"REGISTRO DE LA LISTA DE VERIFICACION DE CIRUGIA SEGURA"]
[null,"AÑO: U.E. 408 HOSPITAL DE ESPINAR -ABRIL  2024",null,null,"NO REGISTRA","NO PRECEDE"]
[null,null,"SI","NO","NR","NP","TOTAL"]
["ENTRADA","PACIENTE CONFIRMA SU IDENTIDAD, EL SITIO QUIRUGICO, EL PROCEDIMIENTO Y CONSENTIMIENTO",82,null,null,null,{"$f":"SUM(C7:F7)","v":82}]
[null,"SE HA MARCADO EL SITIO QUIRURGICO",30,18,null,34,{"$f":"SUM(C8:F8)","v":82},null,{"$f":"SUM(C7,C8,C9,C10,D11,D12,C13,D14,C15)","v":569},{"$f":"I8/$I$10","v":0.90894568690095845}]
[null,"SE COMPROBO LA DISPONIBILIDAD DE LOS EQUIPOS DE ANESTESIA Y LA MEDICACION ANESTESICA",82,null,null,null,82,null,{"$f":"SUM(D7,D8,D9,D10,C11,C12,D13,C14,D15)","v":57},{"$f":"I9/$I$10","v":9.1054313099041537E-2}]
[null,"SE COLOCO EL PULXIOMETRO AL PACIENTE Y FUNCIONA",80,null,2,null,82,null,{"$f":"SUM(I8:I9)","v":626}]
[null,"EL PACIENTE TIENE ALERGIAS",3,79,null,null,82]
[null,"VIA AEREA DIFICIL / RIESGO DE ASPIRACION",10,72,null,null,82]
[null,"HAY INSTRUMENTAL Y EQUIPO DISPONIBLE",40,3,39,null,82]
[null,"RIESGO DE HEMORRAGIA MENOR A 500 ML",15,64,3,null,82]
[null,"SE HA PREVISTO DISPONIBILIDAD DE COMPONENTE SANGUINEO EN BANCO DE SANGRE",40,8,34,null,82]
["PAUSA","CONFIRMAR QUE TODOS LOS MIEMBROS DEL EQUIPO PROGRAMADOS SE HAYAN PRESENTADO POR SU NOMBRE",81,null,1,null,82]
[null,"CONFIRMAR LA IDENTIDAD DEL PACIENTE, EL PROCEDIMIENTO Y EL SITIO QUIRUGICO",82,null,null,null,82]
[null,"CONFIRMAR SI TODOS LOS MIEMBROS DEL EQUIPO HAN CUMPLIDO CORRECTAMENTE CON EL PROTOCOLO DE AS",80,null,2,null,82]
[null,"SE HA ADMINISTRADO PROFILAXIS CON ANTIBIOTICOS EN LOS ULTIMOS 60 MINUTOS",61,10,6,5,82,null,{"$f":"SUM(C16,C17,C18,C19,C20,,C22,D23,C24,D25,C26)","v":682},{"$f":"I19/$I$21","v":0.92537313432835822}]
[null,"¿CUALES SON LOS PASOS CRITICOS O INESPERADO?",47,34,1,null,82,null,{"$f":"SUM(D16,D17,D18,D19,D20,D21,D22,C23,D24,C25,D26)","v":55},{"$f":"I20/$I$21","v":7.4626865671641784E-2}]
[null,"¿CUANTO DURARA LA OPERACIÓN?",81,null,1,null,82,null,{"$f":"SUM(I19:I20)","v":737}]
[null,"¿CUANTO ES LA PERDIDA DE SALGRE PREVISTA?",79,null,3,null,82]
[null,"¿PRESENTA EL PACIENTE ALGUN PROBLEMA ESPECIFICO?",11,67,4,null,82]
[null,"¿SE HA CONFIRMADO LA ESTERILIDAD DE ROPA, INSTRUMENTAL Y EQUIPOS?",82,null,null,null,82]
[null,"¿HAY DUDAS O PROBLEMAS RELACIONADOS CON ELLOS?",null,81,1,null,82]
[null,"¿PUEDEN VISUALIZARSE LAS IMÁGENES DIAGNOSTICADAS ESENCIALES?",22,null,8,52,82]
["SALIDA","EL ENFERMERO CONFIRMA VERBALMENTE EL NOMBRE DEL PROCEDIMIENTO",78,null,4,null,82]
[null,"EL RECUENTO DE INSTRUMENTOS, GASA Y AGUJAS",71,null,11,null,82,null,{"$f":"SUM(C27,C28,C29,C30,C31,D32)","v":275},{"$f":"I28/$I$30","v":0.7372654155495979}]
[null,"EL ETIQUETADO DE LAS MUESTRAS (LECTURA DE LA ETIQUETA EN VOZ ALTA, INCLUIDO EL NOMBRE DEL PACIENTE",22,16,5,39,82,null,{"$f":"SUM(D27,D28,D29,D30,D31,C32)","v":98},{"$f":"I29/$I$30","v":0.26273458445040215}]
[null,"SI HAY PROBLEMAS QUE SE RESUELVE RELACIONADOS CON EL INSTRUMENTAL Y LOS EQUIPOS",1,81,null,null,82,null,{"$f":"SUM(I28:I29)","v":373}]
[null,"(CIRUJANO, ANESTESIOLOGO, ENFERMERO) CUALES SON LOS ASPECTOS CRITICOS DE LA RECUPERACION Y EL TRAMITE",81,null,1,null,82]
[null,"OBSERVACIONES",1,22,59,null,82]
["FIRMA","FIRMA DEL CIRUJANO",82,null,null,null,82]
[null,"FIRMA DEL ANESTESIOLOGO",82,null,null,null,82]
[null,"FIRMA DE LA ENFERMERA",82,null,null,null,82,null,{"$f":"SUM(C33,C34,C35,C36,C37,C38,C39)","v":567},{"$f":"I35/$I$37","v":0.98780487804878048}]
[null,"FIRMA DEL COORDINADOR",80,2,null,null,82,null,{"$f":"SUM(D33,D34,D35,D36,D37,,D38,D39)","v":7},{"$f":"I36/$I$37","v":1.2195121951219513E-2}]
[null,"NRO DE HISTORIA CLINICA",79,3,null,null,82,null,{"$f":"SUM(I35:I36)","v":574}]
[null,"NOMBRE Y APELLIDOS DEL PACIENTE",81,1,null,null,82]
[null,"FECHA",81,1,null,null,82]
[]
[]
[]
[]
[]
[null,"PORCENTAJE DE CUMPLIMIENTO DE LA LISTA DE VERIFICACION DE CIRUGIA SEGURA"]
[]
[]
[]
[]
[]
[null,null,"ENTRADA","(+)",{"$f":"J8","v":0.90894568690095845}]
[null,null,null,"(-)",{"$f":"J9","v":9.1054313099041537E-2}]
[null,null,"PAUSA","(+)",{"$f":"J19","v":0.92537313432835822},null,null,null,null,null,null,null,"Cumplimiento"]
[null,null,null,"(-)",{"$f":"J20","v":7.4626865671641784E-2},null,null,null,null,null,null,"Entrada",{"$f":"E51","v":0.90894568690095845}]
[null,null,"SALIDA","(+)",{"$f":"J28","v":0.7372654155495979},null,null,null,null,null,null,"Pausa",{"$f":"E53","v":0.92537313432835822}]
[null,null,null,"(-)",{"$f":"J29","v":0.26273458445040215},null,null,null,null,null,null,"Salida",{"$f":"E55","v":0.7372654155495979}]
[null,null,"FIRMA","(+)",{"$f":"J35","v":0.98780487804878048},null,null,null,null,null,null,"Firmas",{"$f":"E57","v":0.98780487804878048}]
[null,null,null,"(-)",{"$f":"J36","v":1.2195121951219513E-2},null,null,null,null,null,null,"Cumplimiento",{"$f":"AVERAGE(M54:M57)","v":0.88984727870692371}]
[null,null,"CUMPLIMIENTO",null,{"$f":"M58","v":0.88984727870692371}]

{"sheet":"MAYO","index":5,"n_rows":59,"n_cols":13,"rows_kept":59,"cut":false,"hidden":false,"merged":[[58,2,58,3],[6,0,14,0],[15,0,25,0],[26,0,31,0],[32,0,38,0],[50,2,51,2],[52,2,53,2],[54,2,55,2],[56,2,57,2]]}
[]
[]
[]
[null,"REGISTRO DE LA LISTA DE VERIFICACION DE CIRUGIA SEGURA"]
[null,"AÑO: U.E.408 HOSPITAL DE ESPINAR  MAYO - 2024",null,null,"NO REGISTRA","NO PRECEDE"]
[null,null,"SI","NO","NR","NP","TOTAL"]
["ENTRADA","PACIENTE CONFIRMA SU IDENTIDAD, EL SITIO QUIRUGICO, EL PROCEDIMIENTO Y CONSENTIMIENTO",53,null,null,null,{"$f":"SUM(C7:F7)","v":53}]
[null,"SE HA MARCADO EL SITIO QUIRURGICO",20,14,null,19,{"$f":"SUM(C8:F8)","v":53},null,{"$f":"SUM(C7,C8,C9,C10,D11,D12,C13,D14,C15)","v":356},{"$f":"I8/$I$10","v":0.89447236180904521}]
[null,"SE COMPROBO LA DISPONIBILIDAD DE LOS EQUIPOS DE ANESTESIA Y LA MEDICACION ANESTESICA",53,null,null,null,53,null,{"$f":"SUM(D7,D8,D9,D10,C11,C12,D13,C14,D15)","v":42},{"$f":"I9/$I$10","v":0.10552763819095477}]
[null,"SE COLOCO EL PULXIOMETRO AL PACIENTE Y FUNCIONA",53,null,null,null,53,null,{"$f":"SUM(I8:I9)","v":398}]
[null,"EL PACIENTE TIENE ALERGIAS",null,53,null,null,53]
[null,"VIA AEREA DIFICIL / RIESGO DE ASPIRACION",1,51,1,null,53]
[null,"HAY INSTRUMENTAL Y EQUIPO DISPONIBLE",13,5,35,null,53]
[null,"RIESGO DE HEMORRAGIA MENOR A 500 ML",16,37,null,null,53]
[null,"SE HA PREVISTO DISPONIBILIDAD DE COMPONENTE SANGUINEO EN BANCO DE SANGRE",23,6,24,null,53]
["PAUSA","CONFIRMAR QUE TODOS LOS MIEMBROS DEL EQUIPO PROGRAMADOS SE HAYAN PRESENTADO POR SU NOMBRE",53,null,null,null,53]
[null,"CONFIRMAR LA IDENTIDAD DEL PACIENTE, EL PROCEDIMIENTO Y EL SITIO QUIRUGICO",53,null,null,null,53]
[null,"CONFIRMAR SI TODOS LOS MIEMBROS DEL EQUIPO HAN CUMPLIDO CORRECTAMENTE CON EL PROTOCOLO DE AS",52,null,1,null,53]
[null,"SE HA ADMINISTRADO PROFILAXIS CON ANTIBIOTICOS EN LOS ULTIMOS 60 MINUTOS",43,6,3,1,53,null,{"$f":"SUM(C16,C17,C18,C19,C20,,C22,D23,C24,D25,C26)","v":433},{"$f":"I19/$I$21","v":0.90585774058577406}]
[null,"¿CUALES SON LOS PASOS CRITICOS O INESPERADO?",21,31,1,null,53,null,{"$f":"SUM(D16,D17,D18,D19,D20,D21,D22,C23,D24,C25,D26)","v":45},{"$f":"I20/$I$21","v":9.4142259414225937E-2}]
[null,"¿CUANTO DURARA LA OPERACIÓN?",51,null,2,null,53,null,{"$f":"SUM(I19:I20)","v":478}]
[null,"¿CUANTO ES LA PERDIDA DE SALGRE PREVISTA?",50,null,3,null,53]
[null,"¿PRESENTA EL PACIENTE ALGUN PROBLEMA ESPECIFICO?",4,47,2,null,53]
[null,"¿SE HA CONFIRMADO LA ESTERILIDAD DE ROPA, INSTRUMENTAL Y EQUIPOS?",52,null,1,null,53]
[null,"¿HAY DUDAS O PROBLEMAS RELACIONADOS CON ELLOS?",null,50,3,null,53]
[null,"¿PUEDEN VISUALIZARSE LAS IMÁGENES DIAGNOSTICADAS ESENCIALES?",12,4,5,32,53]
["SALIDA","EL ENFERMERO CONFIRMA VERBALMENTE EL NOMBRE DEL PROCEDIMIENTO",53,null,null,null,53]
[null,"EL RECUENTO DE INSTRUMENTOS, GASA Y AGUJAS",53,null,null,null,53,null,{"$f":"SUM(C27,C28,C29,C30,C31,D32)","v":126},{"$f":"I28/$I$30","v":0.51851851851851849}]
[null,"EL ETIQUETADO DE LAS MUESTRAS (LECTURA DE LA ETIQUETA EN VOZ ALTA, INCLUIDO EL NOMBRE DEL PACIENTE",6,15,3,29,53,null,{"$f":"SUM(D27,D28,D29,D30,D31,C32)","v":117},{"$f":"I29/$I$30","v":0.48148148148148145}]
[null,"SI HAY PROBLEMAS QUE SE RESUELVE RELACIONADOS CON EL INSTRUMENTAL Y LOS EQUIPOS",null,53,null,null,53,null,{"$f":"SUM(I28:I29)","v":243}]
[null,"(CIRUJANO, ANESTESIOLOGO, ENFERMERO) CUALES SON LOS ASPECTOS CRITICOS DE LA RECUPERACION Y EL TRAMITE",2,49,2,null,53]
[null,"OBSERVACIONES",null,12,41,null,53]
["FIRMA","FIRMA DEL CIRUJANO",53,null,null,null,53]
[null,"FIRMA DEL ANESTESIOLOGO",53,null,null,null,53]
[null,"FIRMA DE LA ENFERMERA",53,null,null,null,53,null,{"$f":"SUM(C33,C34,C35,C36,C37,C38,C39)","v":370},{"$f":"I35/$I$37","v":0.99730458221024254}]
[null,"FIRMA DEL COORDINADOR",53,null,null,null,53,null,{"$f":"SUM(D33,D34,D35,D36,D37,,D38,D39)","v":1},{"$f":"I36/$I$37","v":2.6954177897574125E-3}]
[null,"NRO DE HISTORIA CLINICA",52,1,null,null,53,null,{"$f":"SUM(I35:I36)","v":371}]
[null,"NOMBRE Y APELLIDOS DEL PACIENTE",53,null,null,null,53]
[null,"FECHA",53,null,null,null,53]
[]
[]
[]
[]
[]
[null,"PORCENTAJE DE CUMPLIMIENTO DE LA LISTA DE VERIFICACION DE CIRUGIA SEGURA"]
[]
[]
[]
[]
[]
[null,null,"ENTRADA","(+)",{"$f":"J8","v":0.89447236180904521}]
[null,null,null,"(-)",{"$f":"J9","v":0.10552763819095477}]
[null,null,"PAUSA","(+)",{"$f":"J19","v":0.90585774058577406},null,null,null,null,null,null,null,"Cumplimiento"]
[null,null,null,"(-)",{"$f":"J20","v":9.4142259414225937E-2},null,null,null,null,null,null,"Entrada",{"$f":"E51","v":0.89447236180904521}]
[null,null,"SALIDA","(+)",{"$f":"J28","v":0.51851851851851849},null,null,null,null,null,null,"Pausa",{"$f":"E53","v":0.90585774058577406}]
[null,null,null,"(-)",{"$f":"J29","v":0.48148148148148145},null,null,null,null,null,null,"Salida",{"$f":"E55","v":0.51851851851851849}]
[null,null,"FIRMA","(+)",{"$f":"J35","v":0.99730458221024254},null,null,null,null,null,null,"Firmas",{"$f":"E57","v":0.99730458221024254}]
[null,null,null,"(-)",{"$f":"J36","v":2.6954177897574125E-3},null,null,null,null,null,null,"Cumplimiento",{"$f":"AVERAGE(M54:M57)","v":0.82903830078089502}]
[null,null,"CUMPLIMIENTO",null,{"$f":"M58","v":0.82903830078089502}]

{"sheet":"JUNIO","index":6,"n_rows":59,"n_cols":13,"rows_kept":59,"cut":false,"hidden":false,"merged":[[58,2,58,3],[6,0,14,0],[15,0,25,0],[26,0,31,0],[32,0,38,0],[50,2,51,2],[52,2,53,2],[54,2,55,2],[56,2,57,2]]}
[]
[]
[]
[null,"REGISTRO DE LA LISTA DE VERIFICACION DE CIRUGIA SEGURA"]
[null,"AÑO: U.E.408 HOSPITAL DE ESPINAR JUNIO - 2024",null,null,"NO REGISTRA","NO PRECEDE"]
[null,null,"SI","NO","NR","NP","TOTAL"]
["ENTRADA","PACIENTE CONFIRMA SU IDENTIDAD, EL SITIO QUIRUGICO, EL PROCEDIMIENTO Y CONSENTIMIENTO",53,null,null,null,{"$f":"SUM(C7:F7)","v":53}]
[null,"SE HA MARCADO EL SITIO QUIRURGICO",26,18,null,9,{"$f":"SUM(C8:F8)","v":53},null,{"$f":"SUM(C7,C8,C9,C10,D11,D12,C13,D14,C15)","v":389},{"$f":"I8/$I$10","v":0.90255220417633408}]
[null,"SE COMPROBO LA DISPONIBILIDAD DE LOS EQUIPOS DE ANESTESIA Y LA MEDICACION ANESTESICA",52,null,1,null,53,null,{"$f":"SUM(D7,D8,D9,D10,C11,C12,D13,C14,D15)","v":42},{"$f":"I9/$I$10","v":9.7447795823665889E-2}]
[null,"SE COLOCO EL PULXIOMETRO AL PACIENTE Y FUNCIONA",53,null,null,null,53,null,{"$f":"SUM(I8:I9)","v":431}]
[null,"EL PACIENTE TIENE ALERGIAS",0,53,null,null,53]
[null,"VIA AEREA DIFICIL / RIESGO DE ASPIRACION",7,46,null,null,53]
[null,"HAY INSTRUMENTAL Y EQUIPO DISPONIBLE",32,2,19,null,53]
[null,"RIESGO DE HEMORRAGIA MENOR A 500 ML",11,42,null,null,53]
[null,"SE HA PREVISTO DISPONIBILIDAD DE COMPONENTE SANGUINEO EN BANCO DE SANGRE",32,4,17,null,53]
["PAUSA","CONFIRMAR QUE TODOS LOS MIEMBROS DEL EQUIPO PROGRAMADOS SE HAYAN PRESENTADO POR SU NOMBRE",53,null,null,null,53]
[null,"CONFIRMAR LA IDENTIDAD DEL PACIENTE, EL PROCEDIMIENTO Y EL SITIO QUIRUGICO",53,null,null,null,53]
[null,"CONFIRMAR SI TODOS LOS MIEMBROS DEL EQUIPO HAN CUMPLIDO CORRECTAMENTE CON EL PROTOCOLO DE AS",53,null,null,null,53]
[null,"SE HA ADMINISTRADO PROFILAXIS CON ANTIBIOTICOS EN LOS ULTIMOS 60 MINUTOS",43,7,null,3,53,null,{"$f":"SUM(C16,C17,C18,C19,C20,,C22,D23,C24,D25,C26)","v":445},{"$f":"I19/$I$21","v":0.90080971659919029}]
[null,"¿CUALES SON LOS PASOS CRITICOS O INESPERADO?",23,30,null,null,53,null,{"$f":"SUM(D16,D17,D18,D19,D20,D21,D22,C23,D24,C25,D26)","v":49},{"$f":"I20/$I$21","v":9.9190283400809723E-2}]
[null,"¿CUANTO DURARA LA OPERACIÓN?",53,null,null,null,53,null,{"$f":"SUM(I19:I20)","v":494}]
[null,"¿CUANTO ES LA PERDIDA DE SALGRE PREVISTA?",52,null,1,null,53]
[null,"¿PRESENTA EL PACIENTE ALGUN PROBLEMA ESPECIFICO?",2,49,2,null,53]
[null,"¿SE HA CONFIRMADO LA ESTERILIDAD DE ROPA, INSTRUMENTAL Y EQUIPOS?",53,null,null,null,53]
[null,"¿HAY DUDAS O PROBLEMAS RELACIONADOS CON ELLOS?",null,53,null,null,53]
[null,"¿PUEDEN VISUALIZARSE LAS IMÁGENES DIAGNOSTICADAS ESENCIALES?",13,10,3,27,53]
["SALIDA","EL ENFERMERO CONFIRMA VERBALMENTE EL NOMBRE DEL PROCEDIMIENTO",53,null,null,null,53]
[null,"EL RECUENTO DE INSTRUMENTOS, GASA Y AGUJAS",53,null,null,null,53,null,{"$f":"SUM(C27,C28,C29,C30,C31,D32)","v":148},{"$f":"I28/$I$30","v":0.54212454212454209}]
[null,"EL ETIQUETADO DE LAS MUESTRAS (LECTURA DE LA ETIQUETA EN VOZ ALTA, INCLUIDO EL NOMBRE DEL PACIENTE",13,18,1,21,53,null,{"$f":"SUM(D27,D28,D29,D30,D31,C32)","v":125},{"$f":"I29/$I$30","v":0.45787545787545786}]
[null,"SI HAY PROBLEMAS QUE SE RESUELVE RELACIONADOS CON EL INSTRUMENTAL Y LOS EQUIPOS",null,53,null,null,53,null,{"$f":"SUM(I28:I29)","v":273}]
[null,"(CIRUJANO, ANESTESIOLOGO, ENFERMERO) CUALES SON LOS ASPECTOS CRITICOS DE LA RECUPERACION Y EL TRAMITE",4,49,null,null,53]
[null,"OBSERVACIONES",5,25,23,null,53]
["FIRMA","FIRMA DEL CIRUJANO",53,null,null,null,53]
[null,"FIRMA DEL ANESTESIOLOGO",53,null,null,null,53]
[null,"FIRMA DE LA ENFERMERA",53,null,null,null,53,null,{"$f":"SUM(C33,C34,C35,C36,C37,C38,C39)","v":370},{"$f":"I35/$I$37","v":0.99730458221024254}]
[null,"FIRMA DEL COORDINADOR",53,null,null,null,53,null,{"$f":"SUM(D33,D34,D35,D36,D37,,D38,D39)","v":1},{"$f":"I36/$I$37","v":2.6954177897574125E-3}]
[null,"NRO DE HISTORIA CLINICA",53,null,null,null,53,null,{"$f":"SUM(I35:I36)","v":371}]
[null,"NOMBRE Y APELLIDOS DEL PACIENTE",53,null,null,null,53]
[null,"FECHA",52,1,null,null,53]
[]
[]
[]
[]
[]
[null,"PORCENTAJE DE CUMPLIMIENTO DE LA LISTA DE VERIFICACION DE CIRUGIA SEGURA"]
[]
[]
[]
[]
[]
[null,null,"ENTRADA","(+)",{"$f":"J8","v":0.90255220417633408}]
[null,null,null,"(-)",{"$f":"J9","v":9.7447795823665889E-2}]
[null,null,"PAUSA","(+)",{"$f":"J19","v":0.90080971659919029},null,null,null,null,null,null,null,"Cumplimiento"]
[null,null,null,"(-)",{"$f":"J20","v":9.9190283400809723E-2},null,null,null,null,null,null,"Entrada",{"$f":"E51","v":0.90255220417633408}]
[null,null,"SALIDA","(+)",{"$f":"J28","v":0.54212454212454209},null,null,null,null,null,null,"Pausa",{"$f":"E53","v":0.90080971659919029}]
[null,null,null,"(-)",{"$f":"J29","v":0.45787545787545786},null,null,null,null,null,null,"Salida",{"$f":"E55","v":0.54212454212454209}]
[null,null,"FIRMA","(+)",{"$f":"J35","v":0.99730458221024254},null,null,null,null,null,null,"Firmas",{"$f":"E57","v":0.99730458221024254}]
[null,null,null,"(-)",{"$f":"J36","v":2.6954177897574125E-3},null,null,null,null,null,null,"Cumplimiento",{"$f":"AVERAGE(M54:M57)","v":0.83569776127757722}]
[null,null,"CUMPLIMIENTO",null,{"$f":"M58","v":0.83569776127757722}]

{"sheet":"II TRIMESTRE 2024","index":7,"n_rows":59,"n_cols":13,"rows_kept":59,"cut":false,"hidden":false,"merged":[[58,2,58,3],[6,0,14,0],[15,0,25,0],[26,0,31,0],[32,0,38,0],[50,2,51,2],[52,2,53,2],[54,2,55,2],[56,2,57,2]]}
[]
[]
[]
[null,"REGISTRO DE LA LISTA DE VERIFICACION DE CIRUGIA SEGURA"]
[null,"AÑO: U.E.408 HOSPITAL DE ESPINAR - II TRIMESTRE  2024",null,null,"NO REGISTRA","NO PRECEDE"]
[null,null,"SI","NO","NR","NP","TOTAL"]
["ENTRADA","PACIENTE CONFIRMA SU IDENTIDAD, EL SITIO QUIRUGICO, EL PROCEDIMIENTO Y CONSENTIMIENTO",{"$f":"+ABRIL!C7+MAYO!C7+JUNIO!C7","v":188},{"$f":"+ABRIL!D7+MAYO!D7+JUNIO!D7","v":0},{"$f":"+ABRIL!E7+MAYO!E7+JUNIO!E7","v":0},{"$f":"+ABRIL!F7+MAYO!F7+JUNIO!F7","v":0},{"$f":"SUM(C7:F7)","v":188}]
[null,"SE HA MARCADO EL SITIO QUIRURGICO",{"$f":"+ABRIL!C8+MAYO!C8+JUNIO!C8","v":76},{"$f":"+ABRIL!D8+MAYO!D8+JUNIO!D8","v":50},{"$f":"+ABRIL!E8+MAYO!E8+JUNIO!E8","v":0},{"$f":"+ABRIL!F8+MAYO!F8+JUNIO!F8","v":62},188,null,{"$f":"SUM(C7,C8,C9,C10,D11,D12,C13,D14,C15)","v":1314},{"$f":"I8/$I$10","v":0.90309278350515465}]
[null,"SE COMPROBO LA DISPONIBILIDAD DE LOS EQUIPOS DE ANESTESIA Y LA MEDICACION ANESTESICA",{"$f":"+ABRIL!C9+MAYO!C9+JUNIO!C9","v":187},{"$f":"+ABRIL!D9+MAYO!D9+JUNIO!D9","v":0},{"$f":"+ABRIL!E9+MAYO!E9+JUNIO!E9","v":1},{"$f":"+ABRIL!F9+MAYO!F9+JUNIO!F9","v":0},188,null,{"$f":"SUM(D7,D8,D9,D10,C11,C12,D13,C14,D15)","v":141},{"$f":"I9/$I$10","v":9.6907216494845363E-2}]
[null,"SE COLOCO EL PULXIOMETRO AL PACIENTE Y FUNCIONA",{"$f":"+ABRIL!C10+MAYO!C10+JUNIO!C10","v":186},{"$f":"+ABRIL!D10+MAYO!D10+JUNIO!D10","v":0},{"$f":"+ABRIL!E10+MAYO!E10+JUNIO!E10","v":2},{"$f":"+ABRIL!F10+MAYO!F10+JUNIO!F10","v":0},188,null,{"$f":"SUM(I8:I9)","v":1455}]
[null,"EL PACIENTE TIENE ALERGIAS",{"$f":"+ABRIL!C11+MAYO!C11+JUNIO!C11","v":3},{"$f":"+ABRIL!D11+MAYO!D11+JUNIO!D11","v":185},{"$f":"+ABRIL!E11+MAYO!E11+JUNIO!E11","v":0},{"$f":"+ABRIL!F11+MAYO!F11+JUNIO!F11","v":0},188]
[null,"VIA AEREA DIFICIL / RIESGO DE ASPIRACION",{"$f":"+ABRIL!C12+MAYO!C12+JUNIO!C12","v":18},{"$f":"+ABRIL!D12+MAYO!D12+JUNIO!D12","v":169},{"$f":"+ABRIL!E12+MAYO!E12+JUNIO!E12","v":1},{"$f":"+ABRIL!F12+MAYO!F12+JUNIO!F12","v":0},188]
[null,"HAY INSTRUMENTAL Y EQUIPO DISPONIBLE",{"$f":"+ABRIL!C13+MAYO!C13+JUNIO!C13","v":85},{"$f":"+ABRIL!D13+MAYO!D13+JUNIO!D13","v":10},{"$f":"+ABRIL!E13+MAYO!E13+JUNIO!E13","v":93},{"$f":"+ABRIL!F13+MAYO!F13+JUNIO!F13","v":0},188]
[null,"RIESGO DE HEMORRAGIA MENOR A 500 ML",{"$f":"+ABRIL!C14+MAYO!C14+JUNIO!C14","v":42},{"$f":"+ABRIL!D14+MAYO!D14+JUNIO!D14","v":143},{"$f":"+ABRIL!E14+MAYO!E14+JUNIO!E14","v":3},{"$f":"+ABRIL!F14+MAYO!F14+JUNIO!F14","v":0},188]
[null,"SE HA PREVISTO DISPONIBILIDAD DE COMPONENTE SANGUINEO EN BANCO DE SANGRE",{"$f":"+ABRIL!C15+MAYO!C15+JUNIO!C15","v":95},{"$f":"+ABRIL!D15+MAYO!D15+JUNIO!D15","v":18},{"$f":"+ABRIL!E15+MAYO!E15+JUNIO!E15","v":75},{"$f":"+ABRIL!F15+MAYO!F15+JUNIO!F15","v":0},188]
["PAUSA","CONFIRMAR QUE TODOS LOS MIEMBROS DEL EQUIPO PROGRAMADOS SE HAYAN PRESENTADO POR SU NOMBRE",{"$f":"+ABRIL!C16+MAYO!C16+JUNIO!C16","v":187},{"$f":"+ABRIL!D16+MAYO!D16+JUNIO!D16","v":0},{"$f":"+ABRIL!E16+MAYO!E16+JUNIO!E16","v":1},{"$f":"+ABRIL!F16+MAYO!F16+JUNIO!F16","v":0},188]
[null,"CONFIRMAR LA IDENTIDAD DEL PACIENTE, EL PROCEDIMIENTO Y EL SITIO QUIRUGICO",{"$f":"+ABRIL!C17+MAYO!C17+JUNIO!C17","v":188},{"$f":"+ABRIL!D17+MAYO!D17+JUNIO!D17","v":0},{"$f":"+ABRIL!E17+MAYO!E17+JUNIO!E17","v":0},{"$f":"+ABRIL!F17+MAYO!F17+JUNIO!F17","v":0},188]
[null,"CONFIRMAR SI TODOS LOS MIEMBROS DEL EQUIPO HAN CUMPLIDO CORRECTAMENTE CON EL PROTOCOLO DE AS",{"$f":"+ABRIL!C18+MAYO!C18+JUNIO!C18","v":185},{"$f":"+ABRIL!D18+MAYO!D18+JUNIO!D18","v":0},{"$f":"+ABRIL!E18+MAYO!E18+JUNIO!E18","v":3},{"$f":"+ABRIL!F18+MAYO!F18+JUNIO!F18","v":0},188]
[null,"SE HA ADMINISTRADO PROFILAXIS CON ANTIBIOTICOS EN LOS ULTIMOS 60 MINUTOS",{"$f":"+ABRIL!C19+MAYO!C19+JUNIO!C19","v":147},{"$f":"+ABRIL!D19+MAYO!D19+JUNIO!D19","v":23},{"$f":"+ABRIL!E19+MAYO!E19+JUNIO!E19","v":9},{"$f":"+ABRIL!F19+MAYO!F19+JUNIO!F19","v":9},188,null,{"$f":"SUM(C16,C17,C18,C19,C20,,C22,D23,C24,D25,C26)","v":1560},{"$f":"I19/$I$21","v":0.91281451141018144}]
[null,"¿CUALES SON LOS PASOS CRITICOS O INESPERADO?",{"$f":"+ABRIL!C20+MAYO!C20+JUNIO!C20","v":91},{"$f":"+ABRIL!D20+MAYO!D20+JUNIO!D20","v":95},{"$f":"+ABRIL!E20+MAYO!E20+JUNIO!E20","v":2},{"$f":"+ABRIL!F20+MAYO!F20+JUNIO!F20","v":0},188,null,{"$f":"SUM(D16,D17,D18,D19,D20,D21,D22,C23,D24,C25,D26)","v":149},{"$f":"I20/$I$21","v":8.7185488589818602E-2}]
[null,"¿CUANTO DURARA LA OPERACIÓN?",{"$f":"+ABRIL!C21+MAYO!C21+JUNIO!C21","v":185},{"$f":"+ABRIL!D21+MAYO!D21+JUNIO!D21","v":0},{"$f":"+ABRIL!E21+MAYO!E21+JUNIO!E21","v":3},{"$f":"+ABRIL!F21+MAYO!F21+JUNIO!F21","v":0},188,null,{"$f":"SUM(I19:I20)","v":1709}]
[null,"¿CUANTO ES LA PERDIDA DE SALGRE PREVISTA?",{"$f":"+ABRIL!C22+MAYO!C22+JUNIO!C22","v":181},{"$f":"+ABRIL!D22+MAYO!D22+JUNIO!D22","v":0},{"$f":"+ABRIL!E22+MAYO!E22+JUNIO!E22","v":7},{"$f":"+ABRIL!F22+MAYO!F22+JUNIO!F22","v":0},188]
[null,"¿PRESENTA EL PACIENTE ALGUN PROBLEMA ESPECIFICO?",{"$f":"+ABRIL!C23+MAYO!C23+JUNIO!C23","v":17},{"$f":"+ABRIL!D23+MAYO!D23+JUNIO!D23","v":163},{"$f":"+ABRIL!E23+MAYO!E23+JUNIO!E23","v":8},{"$f":"+ABRIL!F23+MAYO!F23+JUNIO!F23","v":0},188]
[null,"¿SE HA CONFIRMADO LA ESTERILIDAD DE ROPA, INSTRUMENTAL Y EQUIPOS?",{"$f":"+ABRIL!C24+MAYO!C24+JUNIO!C24","v":187},{"$f":"+ABRIL!D24+MAYO!D24+JUNIO!D24","v":0},{"$f":"+ABRIL!E24+MAYO!E24+JUNIO!E24","v":1},{"$f":"+ABRIL!F24+MAYO!F24+JUNIO!F24","v":0},188]
[null,"¿HAY DUDAS O PROBLEMAS RELACIONADOS CON ELLOS?",{"$f":"+ABRIL!C25+MAYO!C25+JUNIO!C25","v":0},{"$f":"+ABRIL!D25+MAYO!D25+JUNIO!D25","v":184},{"$f":"+ABRIL!E25+MAYO!E25+JUNIO!E25","v":4},{"$f":"+ABRIL!F25+MAYO!F25+JUNIO!F25","v":0},188]
[null,"¿PUEDEN VISUALIZARSE LAS IMÁGENES DIAGNOSTICADAS ESENCIALES?",{"$f":"+ABRIL!C26+MAYO!C26+JUNIO!C26","v":47},{"$f":"+ABRIL!D26+MAYO!D26+JUNIO!D26","v":14},{"$f":"+ABRIL!E26+MAYO!E26+JUNIO!E26","v":16},{"$f":"+ABRIL!F26+MAYO!F26+JUNIO!F26","v":111},188]
["SALIDA","EL ENFERMERO CONFIRMA VERBALMENTE EL NOMBRE DEL PROCEDIMIENTO",{"$f":"+ABRIL!C27+MAYO!C27+JUNIO!C27","v":184},{"$f":"+ABRIL!D27+MAYO!D27+JUNIO!D27","v":0},{"$f":"+ABRIL!E27+MAYO!E27+JUNIO!E27","v":4},{"$f":"+ABRIL!F27+MAYO!F27+JUNIO!F27","v":0},188]
[null,"EL RECUENTO DE INSTRUMENTOS, GASA Y AGUJAS",{"$f":"+ABRIL!C28+MAYO!C28+JUNIO!C28","v":177},{"$f":"+ABRIL!D28+MAYO!D28+JUNIO!D28","v":0},{"$f":"+ABRIL!E28+MAYO!E28+JUNIO!E28","v":11},{"$f":"+ABRIL!F28+MAYO!F28+JUNIO!F28","v":0},188,null,{"$f":"SUM(C27,C28,C29,C30,C31,D32)","v":549},{"$f":"I28/$I$30","v":0.61754780652418451}]
[null,"EL ETIQUETADO DE LAS MUESTRAS (LECTURA DE LA ETIQUETA EN VOZ ALTA, INCLUIDO EL NOMBRE DEL PACIENTE",{"$f":"+ABRIL!C29+MAYO!C29+JUNIO!C29","v":41},{"$f":"+ABRIL!D29+MAYO!D29+JUNIO!D29","v":49},{"$f":"+ABRIL!E29+MAYO!E29+JUNIO!E29","v":9},{"$f":"+ABRIL!F29+MAYO!F29+JUNIO!F29","v":89},188,null,{"$f":"SUM(D27,D28,D29,D30,D31,C32)","v":340},{"$f":"I29/$I$30","v":0.38245219347581555}]
[null,"SI HAY PROBLEMAS QUE SE RESUELVE RELACIONADOS CON EL INSTRUMENTAL Y LOS EQUIPOS",{"$f":"+ABRIL!C30+MAYO!C30+JUNIO!C30","v":1},{"$f":"+ABRIL!D30+MAYO!D30+JUNIO!D30","v":187},{"$f":"+ABRIL!E30+MAYO!E30+JUNIO!E30","v":0},{"$f":"+ABRIL!F30+MAYO!F30+JUNIO!F30","v":0},188,null,{"$f":"SUM(I28:I29)","v":889}]
[null,"(CIRUJANO, ANESTESIOLOGO, ENFERMERO) CUALES SON LOS ASPECTOS CRITICOS DE LA RECUPERACION Y EL TRAMITE",{"$f":"+ABRIL!C31+MAYO!C31+JUNIO!C31","v":87},{"$f":"+ABRIL!D31+MAYO!D31+JUNIO!D31","v":98},{"$f":"+ABRIL!E31+MAYO!E31+JUNIO!E31","v":3},{"$f":"+ABRIL!F31+MAYO!F31+JUNIO!F31","v":0},188]
[null,"OBSERVACIONES",{"$f":"+ABRIL!C32+MAYO!C32+JUNIO!C32","v":6},{"$f":"+ABRIL!D32+MAYO!D32+JUNIO!D32","v":59},{"$f":"+ABRIL!E32+MAYO!E32+JUNIO!E32","v":123},{"$f":"+ABRIL!F32+MAYO!F32+JUNIO!F32","v":0},188]
["FIRMA","FIRMA DEL CIRUJANO",{"$f":"+ABRIL!C33+MAYO!C33+JUNIO!C33","v":188},{"$f":"+ABRIL!D33+MAYO!D33+JUNIO!D33","v":0},{"$f":"+ABRIL!E33+MAYO!E33+JUNIO!E33","v":0},{"$f":"+ABRIL!F33+MAYO!F33+JUNIO!F33","v":0},188]
[null,"FIRMA DEL ANESTESIOLOGO",{"$f":"+ABRIL!C34+MAYO!C34+JUNIO!C34","v":188},{"$f":"+ABRIL!D34+MAYO!D34+JUNIO!D34","v":0},{"$f":"+ABRIL!E34+MAYO!E34+JUNIO!E34","v":0},{"$f":"+ABRIL!F34+MAYO!F34+JUNIO!F34","v":0},188]
[null,"FIRMA DE LA ENFERMERA",{"$f":"+ABRIL!C35+MAYO!C35+JUNIO!C35","v":188},{"$f":"+ABRIL!D35+MAYO!D35+JUNIO!D35","v":0},{"$f":"+ABRIL!E35+MAYO!E35+JUNIO!E35","v":0},{"$f":"+ABRIL!F35+MAYO!F35+JUNIO!F35","v":0},188,null,{"$f":"SUM(C33,C34,C35,C36,C37,C38,C39)","v":1307},{"$f":"I35/$I$37","v":0.99316109422492405}]
[null,"FIRMA DEL COORDINADOR",{"$f":"+ABRIL!C36+MAYO!C36+JUNIO!C36","v":186},{"$f":"+ABRIL!D36+MAYO!D36+JUNIO!D36","v":2},{"$f":"+ABRIL!E36+MAYO!E36+JUNIO!E36","v":0},{"$f":"+ABRIL!F36+MAYO!F36+JUNIO!F36","v":0},188,null,{"$f":"SUM(D33,D34,D35,D36,D37,,D38,D39)","v":9},{"$f":"I36/$I$37","v":6.8389057750759879E-3}]
[null,"NRO DE HISTORIA CLINICA",{"$f":"+ABRIL!C37+MAYO!C37+JUNIO!C37","v":184},{"$f":"+ABRIL!D37+MAYO!D37+JUNIO!D37","v":4},{"$f":"+ABRIL!E37+MAYO!E37+JUNIO!E37","v":0},{"$f":"+ABRIL!F37+MAYO!F37+JUNIO!F37","v":0},188,null,{"$f":"SUM(I35:I36)","v":1316}]
[null,"NOMBRE Y APELLIDOS DEL PACIENTE",{"$f":"+ABRIL!C38+MAYO!C38+JUNIO!C38","v":187},{"$f":"+ABRIL!D38+MAYO!D38+JUNIO!D38","v":1},{"$f":"+ABRIL!E38+MAYO!E38+JUNIO!E38","v":0},{"$f":"+ABRIL!F38+MAYO!F38+JUNIO!F38","v":0},188]
[null,"FECHA",{"$f":"+ABRIL!C39+MAYO!C39+JUNIO!C39","v":186},{"$f":"+ABRIL!D39+MAYO!D39+JUNIO!D39","v":2},{"$f":"+ABRIL!E39+MAYO!E39+JUNIO!E39","v":0},{"$f":"+ABRIL!F39+MAYO!F39+JUNIO!F39","v":0},188]
[]
[]
[]
[]
[]
[null,"PORCENTAJE DE CUMPLIMIENTO DE LA LISTA DE VERIFICACION DE CIRUGIA SEGURA"]
[]
[]
[]
[]
[]
[null,null,"ENTRADA","(+)",{"$f":"J8","v":0.90309278350515465}]
[null,null,null,"(-)",{"$f":"J9","v":9.6907216494845363E-2}]
[null,null,"PAUSA","(+)",{"$f":"J19","v":0.91281451141018144},null,null,null,null,null,null,null,"Cumplimiento"]
[null,null,null,"(-)",{"$f":"J20","v":8.7185488589818602E-2},null,null,null,null,null,null,"Entrada",{"$f":"E51","v":0.90309278350515465}]
[null,null,"SALIDA","(+)",{"$f":"J28","v":0.61754780652418451},null,null,null,null,null,null,"Pausa",{"$f":"E53","v":0.91281451141018144}]
[null,null,null,"(-)",{"$f":"J29","v":0.38245219347581555},null,null,null,null,null,null,"Salida",{"$f":"E55","v":0.61754780652418451}]
[null,null,"FIRMA","(+)",{"$f":"J35","v":0.99316109422492405},null,null,null,null,null,null,"Firmas",{"$f":"E57","v":0.99316109422492405}]
[null,null,null,"(-)",{"$f":"J36","v":6.8389057750759879E-3},null,null,null,null,null,null,"Cumplimiento",{"$f":"AVERAGE(M54:M57)","v":0.85665404891611119}]
[null,null,"CUMPLIMIENTO",null,{"$f":"M58","v":0.85665404891611119}]

{"sheet":"JULIO","index":8,"n_rows":59,"n_cols":13,"rows_kept":59,"cut":false,"hidden":false,"merged":[[58,2,58,3],[6,0,14,0],[15,0,25,0],[26,0,31,0],[32,0,38,0],[50,2,51,2],[52,2,53,2],[54,2,55,2],[56,2,57,2]]}
[]
[]
[]
[null,"REGISTRO DE LA LISTA DE VERIFICACION DE CIRUGIA SEGURA"]
[null,"AÑO: U.E.408 HOSPITAL DE ESPINAR JULIO - 2023",null,null,"NO REGISTRA","NO PRECEDE"]
[null,null,"SI","NO","NR","NP","TOTAL"]
["ENTRADA","PACIENTE CONFIRMA SU IDENTIDAD, EL SITIO QUIRUGICO, EL PROCEDIMIENTO Y CONSENTIMIENTO",null,null,null,null,{"$f":"SUM(C7:F7)","v":0}]
[null,"SE HA MARCADO EL SITIO QUIRURGICO",54,23,null,null,{"$f":"SUM(C8:F8)","v":77},null,{"$f":"SUM(C7,C8,C9,C10,D11,D12,C13,D14,C15)","v":411},{"$f":"I8/$I$10","v":0.77840909090909094}]
[null,"SE COMPROBO LA DISPONIBILIDAD DE LOS EQUIPOS DE ANESTESIA Y LA MEDICACION ANESTESICA",77,null,null,null,77,null,{"$f":"SUM(D7,D8,D9,D10,C11,C12,D13,C14,D15)","v":117},{"$f":"I9/$I$10","v":0.22159090909090909}]
[null,"SE COLOCO EL PULXIOMETRO AL PACIENTE Y FUNCIONA",70,6,1,null,77,null,{"$f":"SUM(I8:I9)","v":528}]
[null,"EL PACIENTE TIENE ALERGIAS",17,60,null,null,77]
[null,"VIA AEREA DIFICIL / RIESGO DE ASPIRACION",8,65,4,null,77]
[null,"HAY INSTRUMENTAL Y EQUIPO DISPONIBLE",19,24,34,null,77]
[null,"RIESGO DE HEMORRAGIA MENOR A 500 ML",15,53,9,null,77]
[null,"SE HA PREVISTO DISPONIBILIDAD DE COMPONENTE SANGUINEO EN BANCO DE SANGRE",13,24,40,null,77]
["PAUSA","CONFIRMAR QUE TODOS LOS MIEMBROS DEL EQUIPO PROGRAMADOS SE HAYAN PRESENTADO POR SU NOMBRE",77,null,null,null,77]
[null,"CONFIRMAR LA IDENTIDAD DEL PACIENTE, EL PROCEDIMIENTO Y EL SITIO QUIRUGICO",75,2,null,null,77]
[null,"CONFIRMAR SI TODOS LOS MIEMBROS DEL EQUIPO HAN CUMPLIDO CORRECTAMENTE CON EL PROTOCOLO DE AS",77,null,null,null,77]
[null,"SE HA ADMINISTRADO PROFILAXIS CON ANTIBIOTICOS EN LOS ULTIMOS 60 MINUTOS",77,null,null,null,77,null,{"$f":"SUM(C16,C17,C18,C19,C20,,C22,D23,C24,D25,C26)","v":658},{"$f":"I19/$I$21","v":0.92806770098730607}]
[null,"¿CUALES SON LOS PASOS CRITICOS O INESPERADO?",71,1,1,4,77,null,{"$f":"SUM(D16,D17,D18,D19,D20,D21,D22,C23,D24,C25,D26)","v":51},{"$f":"I20/$I$21","v":7.1932299012693934E-2}]
[null,"¿CUANTO DURARA LA OPERACIÓN?",75,2,null,null,77,null,{"$f":"SUM(I19:I20)","v":709}]
[null,"¿CUANTO ES LA PERDIDA DE SALGRE PREVISTA?",68,8,1,null,77]
[null,"¿PRESENTA EL PACIENTE ALGUN PROBLEMA ESPECIFICO?",15,62,null,null,77]
[null,"¿SE HA CONFIRMADO LA ESTERILIDAD DE ROPA, INSTRUMENTAL Y EQUIPOS?",65,10,2,null,77]
[null,"¿HAY DUDAS O PROBLEMAS RELACIONADOS CON ELLOS?",7,64,6,null,77]
[null,"¿PUEDEN VISUALIZARSE LAS IMÁGENES DIAGNOSTICADAS ESENCIALES?",22,6,49,null,77]
["SALIDA","EL ENFERMERO CONFIRMA VERBALMENTE EL NOMBRE DEL PROCEDIMIENTO",77,null,null,null,77]
[null,"EL RECUENTO DE INSTRUMENTOS, GASA Y AGUJAS",76,null,1,null,77,null,{"$f":"SUM(C27,C28,C29,C30,C31,D32)","v":254},{"$f":"I28/$I$30","v":0.67195767195767198}]
[null,"EL ETIQUETADO DE LAS MUESTRAS (LECTURA DE LA ETIQUETA EN VOZ ALTA, INCLUIDO EL NOMBRE DEL PACIENTE",9,48,7,null,64,null,{"$f":"SUM(D27,D28,D29,D30,D31,C32)","v":124},{"$f":"I29/$I$30","v":0.32804232804232802}]
[null,"SI HAY PROBLEMAS QUE SE RESUELVE RELACIONADOS CON EL INSTRUMENTAL Y LOS EQUIPOS",5,71,1,null,77,null,{"$f":"SUM(I28:I29)","v":378}]
[null,"(CIRUJANO, ANESTESIOLOGO, ENFERMERO) CUALES SON LOS ASPECTOS CRITICOS DE LA RECUPERACION Y EL TRAMITE",64,3,9,1,77]
[null,"OBSERVACIONES",2,23,52,null,77]
["FIRMA","FIRMA DEL CIRUJANO",77,null,null,null,77]
[null,"FIRMA DEL ANESTESIOLOGO",77,null,null,null,77]
[null,"FIRMA DE LA ENFERMERA",77,null,null,null,77,null,{"$f":"SUM(C33,C34,C35,C36,C37,C38,C39)","v":538},{"$f":"I35/$I$37","v":0.99814471243042668}]
[null,"FIRMA DEL COORDINADOR",77,null,null,null,77,null,{"$f":"SUM(D33,D34,D35,D36,D37,,D38,D39)","v":1},{"$f":"I36/$I$37","v":1.8552875695732839E-3}]
[null,"NRO DE HISTORIA CLINICA",76,1,null,null,77,null,{"$f":"SUM(I35:I36)","v":539}]
[null,"NOMBRE Y APELLIDOS DEL PACIENTE",77,null,null,null,77]
[null,"FECHA",77,null,null,null,77]
[]
[]
[]
[]
[]
[null,"PORCENTAJE DE CUMPLIMIENTO DE LA LISTA DE VERIFICACION DE CIRUGIA SEGURA"]
[]
[]
[]
[]
[]
[null,null,"ENTRADA","(+)",{"$f":"J8","v":0.77840909090909094}]
[null,null,null,"(-)",{"$f":"J9","v":0.22159090909090909}]
[null,null,"PAUSA","(+)",{"$f":"J19","v":0.92806770098730607},null,null,null,null,null,null,null,"Cumplimiento"]
[null,null,null,"(-)",{"$f":"J20","v":7.1932299012693934E-2},null,null,null,null,null,null,"Entrada",{"$f":"E51","v":0.77840909090909094}]
[null,null,"SALIDA","(+)",{"$f":"J28","v":0.67195767195767198},null,null,null,null,null,null,"Pausa",{"$f":"E53","v":0.92806770098730607}]
[null,null,null,"(-)",{"$f":"J29","v":0.32804232804232802},null,null,null,null,null,null,"Salida",{"$f":"E55","v":0.67195767195767198}]
[null,null,"FIRMA","(+)",{"$f":"J35","v":0.99814471243042668},null,null,null,null,null,null,"Firmas",{"$f":"E57","v":0.99814471243042668}]
[null,null,null,"(-)",{"$f":"J36","v":1.8552875695732839E-3},null,null,null,null,null,null,"Cumplimiento",{"$f":"AVERAGE(M54:M57)","v":0.84414479407112386}]
[null,null,"CUMPLIMIENTO",null,{"$f":"M58","v":0.84414479407112386}]

{"sheet":"AGOSTO","index":9,"n_rows":59,"n_cols":13,"rows_kept":59,"cut":false,"hidden":false,"merged":[[58,2,58,3],[6,0,14,0],[15,0,25,0],[26,0,31,0],[32,0,38,0],[50,2,51,2],[52,2,53,2],[54,2,55,2],[56,2,57,2]]}
[]
[]
[]
[null,"REGISTRO DE LA LISTA DE VERIFICACION DE CIRUGIA SEGURA"]
[null,"AÑO: U.E.408 HOSPITAL DE ESPINAR AGOSTO - 2023",null,null,"NO REGISTRA","NO PRECEDE"]
[null,null,"SI","NO","NR","NP","TOTAL"]
["ENTRADA","PACIENTE CONFIRMA SU IDENTIDAD, EL SITIO QUIRUGICO, EL PROCEDIMIENTO Y CONSENTIMIENTO",92,1,null,null,{"$f":"SUM(C7:F7)","v":93}]
[null,"SE HA MARCADO EL SITIO QUIRURGICO",67,26,null,null,{"$f":"SUM(C8:F8)","v":93},null,{"$f":"SUM(C7,C8,C9,C10,D11,D12,C13,D14,C15)","v":610},{"$f":"I8/$I$10","v":0.72879330943847076}]
[null,"SE COMPROBO LA DISPONIBILIDAD DE LOS EQUIPOS DE ANESTESIA Y LA MEDICACION ANESTESICA",92,1,null,null,93,null,{"$f":"SUM(D7,D8,D9,D10,C11,C12,D13,C14,D15)","v":227},{"$f":"I9/$I$10","v":0.2712066905615293}]
[null,"SE COLOCO EL PULXIOMETRO AL PACIENTE Y FUNCIONA",85,8,null,null,93,null,{"$f":"SUM(I8:I9)","v":837}]
[null,"EL PACIENTE TIENE ALERGIAS",11,82,null,null,93]
[null,"VIA AEREA DIFICIL / RIESGO DE ASPIRACION",10,83,null,null,93]
[null,"HAY INSTRUMENTAL Y EQUIPO DISPONIBLE",24,69,null,null,93]
[null,"RIESGO DE HEMORRAGIA MENOR A 500 ML",26,67,null,null,93]
[null,"SE HA PREVISTO DISPONIBILIDAD DE COMPONENTE SANGUINEO EN BANCO DE SANGRE",18,75,null,null,93]
["PAUSA","CONFIRMAR QUE TODOS LOS MIEMBROS DEL EQUIPO PROGRAMADOS SE HAYAN PRESENTADO POR SU NOMBRE",93,null,null,null,93]
[null,"CONFIRMAR LA IDENTIDAD DEL PACIENTE, EL PROCEDIMIENTO Y EL SITIO QUIRUGICO",93,null,null,null,93]
[null,"CONFIRMAR SI TODOS LOS MIEMBROS DEL EQUIPO HAN CUMPLIDO CORRECTAMENTE CON EL PROTOCOLO DE AS",92,1,null,null,93]
[null,"SE HA ADMINISTRADO PROFILAXIS CON ANTIBIOTICOS EN LOS ULTIMOS 60 MINUTOS",88,1,null,4,93,null,{"$f":"SUM(C16,C17,C18,C19,C20,,C22,D23,C24,D25,C26)","v":830},{"$f":"I19/$I$21","v":0.97303634232121927}]
[null,"¿CUALES SON LOS PASOS CRITICOS O INESPERADO?",89,2,2,null,93,null,{"$f":"SUM(D16,D17,D18,D19,D20,D21,D22,C23,D24,C25,D26)","v":23},{"$f":"I20/$I$21","v":2.6963657678780773E-2}]
[null,"¿CUANTO DURARA LA OPERACIÓN?",93,null,null,null,93,null,{"$f":"SUM(I19:I20)","v":853}]
[null,"¿CUANTO ES LA PERDIDA DE SALGRE PREVISTA?",89,3,1,null,93]
[null,"¿PRESENTA EL PACIENTE ALGUN PROBLEMA ESPECIFICO?",9,84,null,null,93]
[null,"¿SE HA CONFIRMADO LA ESTERILIDAD DE ROPA, INSTRUMENTAL Y EQUIPOS?",86,6,null,1,93]
[null,"¿HAY DUDAS O PROBLEMAS RELACIONADOS CON ELLOS?",null,91,1,1,93]
[null,"¿PUEDEN VISUALIZARSE LAS IMÁGENES DIAGNOSTICADAS ESENCIALES?",25,1,2,65,93]
["SALIDA","EL ENFERMERO CONFIRMA VERBALMENTE EL NOMBRE DEL PROCEDIMIENTO",93,null,null,null,93]
[null,"EL RECUENTO DE INSTRUMENTOS, GASA Y AGUJAS",90,2,null,null,92,null,{"$f":"SUM(C27,C28,C29,C30,C31,D32)","v":285},{"$f":"I28/$I$30","v":0.62637362637362637}]
[null,"EL ETIQUETADO DE LAS MUESTRAS (LECTURA DE LA ETIQUETA EN VOZ ALTA, INCLUIDO EL NOMBRE DEL PACIENTE",12,65,null,16,93,null,{"$f":"SUM(D27,D28,D29,D30,D31,C32)","v":170},{"$f":"I29/$I$30","v":0.37362637362637363}]
[null,"SI HAY PROBLEMAS QUE SE RESUELVE RELACIONADOS CON EL INSTRUMENTAL Y LOS EQUIPOS",10,82,null,1,93,null,{"$f":"SUM(I28:I29)","v":455}]
[null,"(CIRUJANO, ANESTESIOLOGO, ENFERMERO) CUALES SON LOS ASPECTOS CRITICOS DE LA RECUPERACION Y EL TRAMITE",75,16,2,null,93]
[null,"OBSERVACIONES",5,5,83,null,93]
["FIRMA","FIRMA DEL CIRUJANO",93,null,null,null,93]
[null,"FIRMA DEL ANESTESIOLOGO",92,1,null,null,93]
[null,"FIRMA DE LA ENFERMERA",89,4,null,null,93,null,{"$f":"SUM(C33,C34,C35,C36,C37,C38,C39)","v":644},{"$f":"I35/$I$37","v":0.989247311827957}]
[null,"FIRMA DEL COORDINADOR",93,null,null,null,93,null,{"$f":"SUM(D33,D34,D35,D36,D37,,D38,D39)","v":7},{"$f":"I36/$I$37","v":1.0752688172043012E-2}]
[null,"NRO DE HISTORIA CLINICA",92,1,null,null,93,null,{"$f":"SUM(I35:I36)","v":651}]
[null,"NOMBRE Y APELLIDOS DEL PACIENTE",92,1,null,null,93]
[null,"FECHA",93,null,null,null,93]
[]
[]
[]
[]
[]
[null,"PORCENTAJE DE CUMPLIMIENTO DE LA LISTA DE VERIFICACION DE CIRUGIA SEGURA"]
[]
[]
[]
[]
[]
[null,null,"ENTRADA","(+)",{"$f":"J8","v":0.72879330943847076}]
[null,null,null,"(-)",{"$f":"J9","v":0.2712066905615293}]
[null,null,"PAUSA","(+)",{"$f":"J19","v":0.97303634232121927},null,null,null,null,null,null,null,"Cumplimiento"]
[null,null,null,"(-)",{"$f":"J20","v":2.6963657678780773E-2},null,null,null,null,null,null,"Entrada",{"$f":"E51","v":0.72879330943847076}]
[null,null,"SALIDA","(+)",{"$f":"J28","v":0.62637362637362637},null,null,null,null,null,null,"Pausa",{"$f":"E53","v":0.97303634232121927}]
[null,null,null,"(-)",{"$f":"J29","v":0.37362637362637363},null,null,null,null,null,null,"Salida",{"$f":"E55","v":0.62637362637362637}]
[null,null,"FIRMA","(+)",{"$f":"J35","v":0.989247311827957},null,null,null,null,null,null,"Firmas",{"$f":"E57","v":0.989247311827957}]
[null,null,null,"(-)",{"$f":"J36","v":1.0752688172043012E-2},null,null,null,null,null,null,"Cumplimiento",{"$f":"AVERAGE(M54:M57)","v":0.82936264749031841}]
[null,null,"CUMPLIMIENTO",null,{"$f":"M58","v":0.82936264749031841}]

{"sheet":"SETIEMBRE","index":10,"n_rows":59,"n_cols":13,"rows_kept":59,"cut":false,"hidden":false,"merged":[[58,2,58,3],[6,0,14,0],[15,0,25,0],[26,0,31,0],[32,0,38,0],[50,2,51,2],[52,2,53,2],[54,2,55,2],[56,2,57,2]]}
[]
[]
[]
[null,"REGISTRO DE LA LISTA DE VERIFICACION DE CIRUGIA SEGURA"]
[null,"AÑO: U.E.408 HOSPITAL DE ESPINAR SEPTIEMBRE  - 2023",null,null,"NO REGISTRA","NO PRECEDE"]
[null,null,"SI","NO","NR","NP","TOTAL"]
["ENTRADA","PACIENTE CONFIRMA SU IDENTIDAD, EL SITIO QUIRUGICO, EL PROCEDIMIENTO Y CONSENTIMIENTO",78,null,null,null,{"$f":"SUM(C7:F7)","v":78}]
[null,"SE HA MARCADO EL SITIO QUIRURGICO",59,19,null,null,{"$f":"SUM(C8:F8)","v":78},null,{"$f":"SUM(C7,C8,C9,C10,D11,D12,C13,D14,C15)","v":519},{"$f":"I8/$I$10","v":0.73931623931623935}]
[null,"SE COMPROBO LA DISPONIBILIDAD DE LOS EQUIPOS DE ANESTESIA Y LA MEDICACION ANESTESICA",76,2,null,null,78,null,{"$f":"SUM(D7,D8,D9,D10,C11,C12,D13,C14,D15)","v":183},{"$f":"I9/$I$10","v":0.2606837606837607}]
[null,"SE COLOCO EL PULXIOMETRO AL PACIENTE Y FUNCIONA",76,2,null,null,78,null,{"$f":"SUM(I8:I9)","v":702}]
[null,"EL PACIENTE TIENE ALERGIAS",18,60,null,null,78]
[null,"VIA AEREA DIFICIL / RIESGO DE ASPIRACION",1,77,null,null,78]
[null,"HAY INSTRUMENTAL Y EQUIPO DISPONIBLE",12,66,null,null,78]
[null,"RIESGO DE HEMORRAGIA MENOR A 500 ML",7,71,null,null,78]
[null,"SE HA PREVISTO DISPONIBILIDAD DE COMPONENTE SANGUINEO EN BANCO DE SANGRE",10,68,null,null,78]
["PAUSA","CONFIRMAR QUE TODOS LOS MIEMBROS DEL EQUIPO PROGRAMADOS SE HAYAN PRESENTADO POR SU NOMBRE",78,null,null,null,78]
[null,"CONFIRMAR LA IDENTIDAD DEL PACIENTE, EL PROCEDIMIENTO Y EL SITIO QUIRUGICO",78,null,null,null,78]
[null,"CONFIRMAR SI TODOS LOS MIEMBROS DEL EQUIPO HAN CUMPLIDO CORRECTAMENTE CON EL PROTOCOLO DE AS",78,null,null,null,78]
[null,"SE HA ADMINISTRADO PROFILAXIS CON ANTIBIOTICOS EN LOS ULTIMOS 60 MINUTOS",77,null,null,1,78,null,{"$f":"SUM(C16,C17,C18,C19,C20,,C22,D23,C24,D25,C26)","v":678},{"$f":"I19/$I$21","v":0.93388429752066116}]
[null,"¿CUALES SON LOS PASOS CRITICOS O INESPERADO?",77,1,null,null,78,null,{"$f":"SUM(D16,D17,D18,D19,D20,D21,D22,C23,D24,C25,D26)","v":48},{"$f":"I20/$I$21","v":6.6115702479338845E-2}]
[null,"¿CUANTO DURARA LA OPERACIÓN?",77,1,null,null,78,null,{"$f":"SUM(I19:I20)","v":726}]
[null,"¿CUANTO ES LA PERDIDA DE SALGRE PREVISTA?",67,11,null,null,78]
[null,"¿PRESENTA EL PACIENTE ALGUN PROBLEMA ESPECIFICO?",13,65,null,null,78]
[null,"¿SE HA CONFIRMADO LA ESTERILIDAD DE ROPA, INSTRUMENTAL Y EQUIPOS?",67,11,null,null,78]
[null,"¿HAY DUDAS O PROBLEMAS RELACIONADOS CON ELLOS?",10,68,null,null,78]
[null,"¿PUEDEN VISUALIZARSE LAS IMÁGENES DIAGNOSTICADAS ESENCIALES?",23,1,null,54,78]
["SALIDA","EL ENFERMERO CONFIRMA VERBALMENTE EL NOMBRE DEL PROCEDIMIENTO",78,null,null,null,78]
[null,"EL RECUENTO DE INSTRUMENTOS, GASA Y AGUJAS",77,1,null,null,78,null,{"$f":"SUM(C27,C28,C29,C30,C31,D32)","v":246},{"$f":"I28/$I$30","v":0.640625}]
[null,"EL ETIQUETADO DE LAS MUESTRAS (LECTURA DE LA ETIQUETA EN VOZ ALTA, INCLUIDO EL NOMBRE DEL PACIENTE",13,55,null,10,78,null,{"$f":"SUM(D27,D28,D29,D30,D31,C32)","v":138},{"$f":"I29/$I$30","v":0.359375}]
[null,"SI HAY PROBLEMAS QUE SE RESUELVE RELACIONADOS CON EL INSTRUMENTAL Y LOS EQUIPOS",7,71,null,null,78,null,{"$f":"SUM(I28:I29)","v":384}]
[null,"(CIRUJANO, ANESTESIOLOGO, ENFERMERO) CUALES SON LOS ASPECTOS CRITICOS DE LA RECUPERACION Y EL TRAMITE",70,7,1,null,78]
[null,"OBSERVACIONES",4,1,73,null,78]
["FIRMA","FIRMA DEL CIRUJANO",76,2,null,null,78]
[null,"FIRMA DEL ANESTESIOLOGO",77,1,null,null,78]
[null,"FIRMA DE LA ENFERMERA",78,null,null,null,78,null,{"$f":"SUM(C33,C34,C35,C36,C37,C38,C39)","v":543},{"$f":"I35/$I$37","v":0.99450549450549453}]
[null,"FIRMA DEL COORDINADOR",78,null,null,null,78,null,{"$f":"SUM(D33,D34,D35,D36,D37,,D38,D39)","v":3},{"$f":"I36/$I$37","v":5.4945054945054949E-3}]
[null,"NRO DE HISTORIA CLINICA",78,null,null,null,78,null,{"$f":"SUM(I35:I36)","v":546}]
[null,"NOMBRE Y APELLIDOS DEL PACIENTE",78,null,null,null,78]
[null,"FECHA",78,null,null,null,78]
[]
[]
[]
[]
[]
[null,"PORCENTAJE DE CUMPLIMIENTO DE LA LISTA DE VERIFICACION DE CIRUGIA SEGURA"]
[]
[]
[]
[]
[]
[null,null,"ENTRADA","(+)",{"$f":"J8","v":0.73931623931623935}]
[null,null,null,"(-)",{"$f":"J9","v":0.2606837606837607}]
[null,null,"PAUSA","(+)",{"$f":"J19","v":0.93388429752066116},null,null,null,null,null,null,null,"Cumplimiento"]
[null,null,null,"(-)",{"$f":"J20","v":6.6115702479338845E-2},null,null,null,null,null,null,"Entrada",{"$f":"E51","v":0.73931623931623935}]
[null,null,"SALIDA","(+)",{"$f":"J28","v":0.640625},null,null,null,null,null,null,"Pausa",{"$f":"E53","v":0.93388429752066116}]
[null,null,null,"(-)",{"$f":"J29","v":0.359375},null,null,null,null,null,null,"Salida",{"$f":"E55","v":0.640625}]
[null,null,"FIRMA","(+)",{"$f":"J35","v":0.99450549450549453},null,null,null,null,null,null,"Firmas",{"$f":"E57","v":0.99450549450549453}]
[null,null,null,"(-)",{"$f":"J36","v":5.4945054945054949E-3},null,null,null,null,null,null,"Cumplimiento",{"$f":"AVERAGE(M54:M57)","v":0.82708275783559881}]
[null,null,"CUMPLIMIENTO",null,{"$f":"M58","v":0.82708275783559881}]

{"sheet":"III TRIMESTRE 2024","index":11,"n_rows":59,"n_cols":13,"rows_kept":59,"cut":false,"hidden":false,"merged":[[58,2,58,3],[6,0,14,0],[15,0,25,0],[26,0,31,0],[32,0,38,0],[50,2,51,2],[52,2,53,2],[54,2,55,2],[56,2,57,2]]}
[]
[]
[]
[null,"REGISTRO DE LA LISTA DE VERIFICACION DE CIRUGIA SEGURA"]
[null,"AÑO: U.E.408 HOSPITAL DE ESPINAR III TRIMESTRE- 2023",null,null,"NO REGISTRA","NO PRECEDE"]
[null,null,"SI","NO","NR","NP","TOTAL"]
["ENTRADA","PACIENTE CONFIRMA SU IDENTIDAD, EL SITIO QUIRUGICO, EL PROCEDIMIENTO Y CONSENTIMIENTO",{"$f":"+JULIO!C7+AGOSTO!C7+SETIEMBRE!C7","v":170},{"$f":"+JULIO!D7+AGOSTO!D7+SETIEMBRE!D7","v":1},{"$f":"+JULIO!E7+AGOSTO!E7+SETIEMBRE!E7","v":0},{"$f":"+JULIO!F7+AGOSTO!F7+SETIEMBRE!F7","v":0},{"$f":"SUM(C7:F7)","v":171}]
[null,"SE HA MARCADO EL SITIO QUIRURGICO",{"$f":"+JULIO!C8+AGOSTO!C8+SETIEMBRE!C8","v":180},{"$f":"+JULIO!D8+AGOSTO!D8+SETIEMBRE!D8","v":68},{"$f":"+JULIO!E8+AGOSTO!E8+SETIEMBRE!E8","v":0},{"$f":"+JULIO!F8+AGOSTO!F8+SETIEMBRE!F8","v":0},248,null,{"$f":"SUM(C7,C8,C9,C10,D11,D12,C13,D14,C15)","v":1540},{"$f":"I8/$I$10","v":0.74504112239961295}]
[null,"SE COMPROBO LA DISPONIBILIDAD DE LOS EQUIPOS DE ANESTESIA Y LA MEDICACION ANESTESICA",{"$f":"+JULIO!C9+AGOSTO!C9+SETIEMBRE!C9","v":245},{"$f":"+JULIO!D9+AGOSTO!D9+SETIEMBRE!D9","v":3},{"$f":"+JULIO!E9+AGOSTO!E9+SETIEMBRE!E9","v":0},{"$f":"+JULIO!F9+AGOSTO!F9+SETIEMBRE!F9","v":0},248,null,{"$f":"SUM(D7,D8,D9,D10,C11,C12,D13,C14,D15)","v":527},{"$f":"I9/$I$10","v":0.25495887760038705}]
[null,"SE COLOCO EL PULXIOMETRO AL PACIENTE Y FUNCIONA",{"$f":"+JULIO!C10+AGOSTO!C10+SETIEMBRE!C10","v":231},{"$f":"+JULIO!D10+AGOSTO!D10+SETIEMBRE!D10","v":16},{"$f":"+JULIO!E10+AGOSTO!E10+SETIEMBRE!E10","v":1},{"$f":"+JULIO!F10+AGOSTO!F10+SETIEMBRE!F10","v":0},248,null,{"$f":"SUM(I8:I9)","v":2067}]
[null,"EL PACIENTE TIENE ALERGIAS",{"$f":"+JULIO!C11+AGOSTO!C11+SETIEMBRE!C11","v":46},{"$f":"+JULIO!D11+AGOSTO!D11+SETIEMBRE!D11","v":202},{"$f":"+JULIO!E11+AGOSTO!E11+SETIEMBRE!E11","v":0},{"$f":"+JULIO!F11+AGOSTO!F11+SETIEMBRE!F11","v":0},248]
[null,"VIA AEREA DIFICIL / RIESGO DE ASPIRACION",{"$f":"+JULIO!C12+AGOSTO!C12+SETIEMBRE!C12","v":19},{"$f":"+JULIO!D12+AGOSTO!D12+SETIEMBRE!D12","v":225},{"$f":"+JULIO!E12+AGOSTO!E12+SETIEMBRE!E12","v":4},{"$f":"+JULIO!F12+AGOSTO!F12+SETIEMBRE!F12","v":0},248]
[null,"HAY INSTRUMENTAL Y EQUIPO DISPONIBLE",{"$f":"+JULIO!C13+AGOSTO!C13+SETIEMBRE!C13","v":55},{"$f":"+JULIO!D13+AGOSTO!D13+SETIEMBRE!D13","v":159},{"$f":"+JULIO!E13+AGOSTO!E13+SETIEMBRE!E13","v":34},{"$f":"+JULIO!F13+AGOSTO!F13+SETIEMBRE!F13","v":0},248]
[null,"RIESGO DE HEMORRAGIA MENOR A 500 ML",{"$f":"+JULIO!C14+AGOSTO!C14+SETIEMBRE!C14","v":48},{"$f":"+JULIO!D14+AGOSTO!D14+SETIEMBRE!D14","v":191},{"$f":"+JULIO!E14+AGOSTO!E14+SETIEMBRE!E14","v":9},{"$f":"+JULIO!F14+AGOSTO!F14+SETIEMBRE!F14","v":0},248]
[null,"SE HA PREVISTO DISPONIBILIDAD DE COMPONENTE SANGUINEO EN BANCO DE SANGRE",{"$f":"+JULIO!C15+AGOSTO!C15+SETIEMBRE!C15","v":41},{"$f":"+JULIO!D15+AGOSTO!D15+SETIEMBRE!D15","v":167},{"$f":"+JULIO!E15+AGOSTO!E15+SETIEMBRE!E15","v":40},{"$f":"+JULIO!F15+AGOSTO!F15+SETIEMBRE!F15","v":0},248]
["PAUSA","CONFIRMAR QUE TODOS LOS MIEMBROS DEL EQUIPO PROGRAMADOS SE HAYAN PRESENTADO POR SU NOMBRE",{"$f":"+JULIO!C16+AGOSTO!C16+SETIEMBRE!C16","v":248},{"$f":"+JULIO!D16+AGOSTO!D16+SETIEMBRE!D16","v":0},{"$f":"+JULIO!E16+AGOSTO!E16+SETIEMBRE!E16","v":0},{"$f":"+JULIO!F16+AGOSTO!F16+SETIEMBRE!F16","v":0},248]
[null,"CONFIRMAR LA IDENTIDAD DEL PACIENTE, EL PROCEDIMIENTO Y EL SITIO QUIRUGICO",{"$f":"+JULIO!C17+AGOSTO!C17+SETIEMBRE!C17","v":246},{"$f":"+JULIO!D17+AGOSTO!D17+SETIEMBRE!D17","v":2},{"$f":"+JULIO!E17+AGOSTO!E17+SETIEMBRE!E17","v":0},{"$f":"+JULIO!F17+AGOSTO!F17+SETIEMBRE!F17","v":0},248]
[null,"CONFIRMAR SI TODOS LOS MIEMBROS DEL EQUIPO HAN CUMPLIDO CORRECTAMENTE CON EL PROTOCOLO DE AS",{"$f":"+JULIO!C18+AGOSTO!C18+SETIEMBRE!C18","v":247},{"$f":"+JULIO!D18+AGOSTO!D18+SETIEMBRE!D18","v":1},{"$f":"+JULIO!E18+AGOSTO!E18+SETIEMBRE!E18","v":0},{"$f":"+JULIO!F18+AGOSTO!F18+SETIEMBRE!F18","v":0},248]
[null,"SE HA ADMINISTRADO PROFILAXIS CON ANTIBIOTICOS EN LOS ULTIMOS 60 MINUTOS",{"$f":"+JULIO!C19+AGOSTO!C19+SETIEMBRE!C19","v":242},{"$f":"+JULIO!D19+AGOSTO!D19+SETIEMBRE!D19","v":1},{"$f":"+JULIO!E19+AGOSTO!E19+SETIEMBRE!E19","v":0},{"$f":"+JULIO!F19+AGOSTO!F19+SETIEMBRE!F19","v":5},248,null,{"$f":"SUM(C16,C17,C18,C19,C20,,C22,D23,C24,D25,C26)","v":2166},{"$f":"I19/$I$21","v":0.94667832167832167}]
[null,"¿CUALES SON LOS PASOS CRITICOS O INESPERADO?",{"$f":"+JULIO!C20+AGOSTO!C20+SETIEMBRE!C20","v":237},{"$f":"+JULIO!D20+AGOSTO!D20+SETIEMBRE!D20","v":4},{"$f":"+JULIO!E20+AGOSTO!E20+SETIEMBRE!E20","v":3},{"$f":"+JULIO!F20+AGOSTO!F20+SETIEMBRE!F20","v":4},248,null,{"$f":"SUM(D16,D17,D18,D19,D20,D21,D22,C23,D24,C25,D26)","v":122},{"$f":"I20/$I$21","v":5.332167832167832E-2}]
[null,"¿CUANTO DURARA LA OPERACIÓN?",{"$f":"+JULIO!C21+AGOSTO!C21+SETIEMBRE!C21","v":245},{"$f":"+JULIO!D21+AGOSTO!D21+SETIEMBRE!D21","v":3},{"$f":"+JULIO!E21+AGOSTO!E21+SETIEMBRE!E21","v":0},{"$f":"+JULIO!F21+AGOSTO!F21+SETIEMBRE!F21","v":0},248,null,{"$f":"SUM(I19:I20)","v":2288}]
[null,"¿CUANTO ES LA PERDIDA DE SALGRE PREVISTA?",{"$f":"+JULIO!C22+AGOSTO!C22+SETIEMBRE!C22","v":224},{"$f":"+JULIO!D22+AGOSTO!D22+SETIEMBRE!D22","v":22},{"$f":"+JULIO!E22+AGOSTO!E22+SETIEMBRE!E22","v":2},{"$f":"+JULIO!F22+AGOSTO!F22+SETIEMBRE!F22","v":0},248]
[null,"¿PRESENTA EL PACIENTE ALGUN PROBLEMA ESPECIFICO?",{"$f":"+JULIO!C23+AGOSTO!C23+SETIEMBRE!C23","v":37},{"$f":"+JULIO!D23+AGOSTO!D23+SETIEMBRE!D23","v":211},{"$f":"+JULIO!E23+AGOSTO!E23+SETIEMBRE!E23","v":0},{"$f":"+JULIO!F23+AGOSTO!F23+SETIEMBRE!F23","v":0},248]
[null,"¿SE HA CONFIRMADO LA ESTERILIDAD DE ROPA, INSTRUMENTAL Y EQUIPOS?",{"$f":"+JULIO!C24+AGOSTO!C24+SETIEMBRE!C24","v":218},{"$f":"+JULIO!D24+AGOSTO!D24+SETIEMBRE!D24","v":27},{"$f":"+JULIO!E24+AGOSTO!E24+SETIEMBRE!E24","v":2},{"$f":"+JULIO!F24+AGOSTO!F24+SETIEMBRE!F24","v":1},248]
[null,"¿HAY DUDAS O PROBLEMAS RELACIONADOS CON ELLOS?",{"$f":"+JULIO!C25+AGOSTO!C25+SETIEMBRE!C25","v":17},{"$f":"+JULIO!D25+AGOSTO!D25+SETIEMBRE!D25","v":223},{"$f":"+JULIO!E25+AGOSTO!E25+SETIEMBRE!E25","v":7},{"$f":"+JULIO!F25+AGOSTO!F25+SETIEMBRE!F25","v":1},248]
[null,"¿PUEDEN VISUALIZARSE LAS IMÁGENES DIAGNOSTICADAS ESENCIALES?",{"$f":"+JULIO!C26+AGOSTO!C26+SETIEMBRE!C26","v":70},{"$f":"+JULIO!D26+AGOSTO!D26+SETIEMBRE!D26","v":8},{"$f":"+JULIO!E26+AGOSTO!E26+SETIEMBRE!E26","v":51},{"$f":"+JULIO!F26+AGOSTO!F26+SETIEMBRE!F26","v":119},248]
["SALIDA","EL ENFERMERO CONFIRMA VERBALMENTE EL NOMBRE DEL PROCEDIMIENTO",{"$f":"+JULIO!C27+AGOSTO!C27+SETIEMBRE!C27","v":248},{"$f":"+JULIO!D27+AGOSTO!D27+SETIEMBRE!D27","v":0},{"$f":"+JULIO!E27+AGOSTO!E27+SETIEMBRE!E27","v":0},{"$f":"+JULIO!F27+AGOSTO!F27+SETIEMBRE!F27","v":0},248]
[null,"EL RECUENTO DE INSTRUMENTOS, GASA Y AGUJAS",{"$f":"+JULIO!C28+AGOSTO!C28+SETIEMBRE!C28","v":243},{"$f":"+JULIO!D28+AGOSTO!D28+SETIEMBRE!D28","v":3},{"$f":"+JULIO!E28+AGOSTO!E28+SETIEMBRE!E28","v":1},{"$f":"+JULIO!F28+AGOSTO!F28+SETIEMBRE!F28","v":0},247,null,{"$f":"SUM(C27,C28,C29,C30,C31,D32)","v":785},{"$f":"I28/$I$30","v":0.64502875924404268}]
[null,"EL ETIQUETADO DE LAS MUESTRAS (LECTURA DE LA ETIQUETA EN VOZ ALTA, INCLUIDO EL NOMBRE DEL PACIENTE",{"$f":"+JULIO!C29+AGOSTO!C29+SETIEMBRE!C29","v":34},{"$f":"+JULIO!D29+AGOSTO!D29+SETIEMBRE!D29","v":168},{"$f":"+JULIO!E29+AGOSTO!E29+SETIEMBRE!E29","v":7},{"$f":"+JULIO!F29+AGOSTO!F29+SETIEMBRE!F29","v":26},235,null,{"$f":"SUM(D27,D28,D29,D30,D31,C32)","v":432},{"$f":"I29/$I$30","v":0.35497124075595726}]
[null,"SI HAY PROBLEMAS QUE SE RESUELVE RELACIONADOS CON EL INSTRUMENTAL Y LOS EQUIPOS",{"$f":"+JULIO!C30+AGOSTO!C30+SETIEMBRE!C30","v":22},{"$f":"+JULIO!D30+AGOSTO!D30+SETIEMBRE!D30","v":224},{"$f":"+JULIO!E30+AGOSTO!E30+SETIEMBRE!E30","v":1},{"$f":"+JULIO!F30+AGOSTO!F30+SETIEMBRE!F30","v":1},248,null,{"$f":"SUM(I28:I29)","v":1217}]
[null,"(CIRUJANO, ANESTESIOLOGO, ENFERMERO) CUALES SON LOS ASPECTOS CRITICOS DE LA RECUPERACION Y EL TRAMITE",{"$f":"+JULIO!C31+AGOSTO!C31+SETIEMBRE!C31","v":209},{"$f":"+JULIO!D31+AGOSTO!D31+SETIEMBRE!D31","v":26},{"$f":"+JULIO!E31+AGOSTO!E31+SETIEMBRE!E31","v":12},{"$f":"+JULIO!F31+AGOSTO!F31+SETIEMBRE!F31","v":1},248]
[null,"OBSERVACIONES",{"$f":"+JULIO!C32+AGOSTO!C32+SETIEMBRE!C32","v":11},{"$f":"+JULIO!D32+AGOSTO!D32+SETIEMBRE!D32","v":29},{"$f":"+JULIO!E32+AGOSTO!E32+SETIEMBRE!E32","v":208},{"$f":"+JULIO!F32+AGOSTO!F32+SETIEMBRE!F32","v":0},248]
["FIRMA","FIRMA DEL CIRUJANO",{"$f":"+JULIO!C33+AGOSTO!C33+SETIEMBRE!C33","v":246},{"$f":"+JULIO!D33+AGOSTO!D33+SETIEMBRE!D33","v":2},{"$f":"+JULIO!E33+AGOSTO!E33+SETIEMBRE!E33","v":0},{"$f":"+JULIO!F33+AGOSTO!F33+SETIEMBRE!F33","v":0},248]
[null,"FIRMA DEL ANESTESIOLOGO",{"$f":"+JULIO!C34+AGOSTO!C34+SETIEMBRE!C34","v":246},{"$f":"+JULIO!D34+AGOSTO!D34+SETIEMBRE!D34","v":2},{"$f":"+JULIO!E34+AGOSTO!E34+SETIEMBRE!E34","v":0},{"$f":"+JULIO!F34+AGOSTO!F34+SETIEMBRE!F34","v":0},248]
[null,"FIRMA DE LA ENFERMERA",{"$f":"+JULIO!C35+AGOSTO!C35+SETIEMBRE!C35","v":244},{"$f":"+JULIO!D35+AGOSTO!D35+SETIEMBRE!D35","v":4},{"$f":"+JULIO!E35+AGOSTO!E35+SETIEMBRE!E35","v":0},{"$f":"+JULIO!F35+AGOSTO!F35+SETIEMBRE!F35","v":0},248,null,{"$f":"SUM(C33,C34,C35,C36,C37,C38,C39)","v":1725},{"$f":"I35/$I$37","v":0.99366359447004604}]
[null,"FIRMA DEL COORDINADOR",{"$f":"+JULIO!C36+AGOSTO!C36+SETIEMBRE!C36","v":248},{"$f":"+JULIO!D36+AGOSTO!D36+SETIEMBRE!D36","v":0},{"$f":"+JULIO!E36+AGOSTO!E36+SETIEMBRE!E36","v":0},{"$f":"+JULIO!F36+AGOSTO!F36+SETIEMBRE!F36","v":0},248,null,{"$f":"SUM(D33,D34,D35,D36,D37,,D38,D39)","v":11},{"$f":"I36/$I$37","v":6.3364055299539174E-3}]
[null,"NRO DE HISTORIA CLINICA",{"$f":"+JULIO!C37+AGOSTO!C37+SETIEMBRE!C37","v":246},{"$f":"+JULIO!D37+AGOSTO!D37+SETIEMBRE!D37","v":2},{"$f":"+JULIO!E37+AGOSTO!E37+SETIEMBRE!E37","v":0},{"$f":"+JULIO!F37+AGOSTO!F37+SETIEMBRE!F37","v":0},248,null,{"$f":"SUM(I35:I36)","v":1736}]
[null,"NOMBRE Y APELLIDOS DEL PACIENTE",{"$f":"+JULIO!C38+AGOSTO!C38+SETIEMBRE!C38","v":247},{"$f":"+JULIO!D38+AGOSTO!D38+SETIEMBRE!D38","v":1},{"$f":"+JULIO!E38+AGOSTO!E38+SETIEMBRE!E38","v":0},{"$f":"+JULIO!F38+AGOSTO!F38+SETIEMBRE!F38","v":0},248]
[null,"FECHA",{"$f":"+JULIO!C39+AGOSTO!C39+SETIEMBRE!C39","v":248},{"$f":"+JULIO!D39+AGOSTO!D39+SETIEMBRE!D39","v":0},{"$f":"+JULIO!E39+AGOSTO!E39+SETIEMBRE!E39","v":0},{"$f":"+JULIO!F39+AGOSTO!F39+SETIEMBRE!F39","v":0},248]
[]
[]
[]
[]
[]
[null,"PORCENTAJE DE CUMPLIMIENTO DE LA LISTA DE VERIFICACION DE CIRUGIA SEGURA"]
[]
[]
[]
[]
[]
[null,null,"ENTRADA","(+)",{"$f":"J8","v":0.74504112239961295}]
[null,null,null,"(-)",{"$f":"J9","v":0.25495887760038705}]
[null,null,"PAUSA","(+)",{"$f":"J19","v":0.94667832167832167},null,null,null,null,null,null,null,"Cumplimiento"]
[null,null,null,"(-)",{"$f":"J20","v":5.332167832167832E-2},null,null,null,null,null,null,"Entrada",{"$f":"E51","v":0.74504112239961295}]
[null,null,"SALIDA","(+)",{"$f":"J28","v":0.64502875924404268},null,null,null,null,null,null,"Pausa",{"$f":"E53","v":0.94667832167832167}]
[null,null,null,"(-)",{"$f":"J29","v":0.35497124075595726},null,null,null,null,null,null,"Salida",{"$f":"E55","v":0.64502875924404268}]
[null,null,"FIRMA","(+)",{"$f":"J35","v":0.99366359447004604},null,null,null,null,null,null,"Firmas",{"$f":"E57","v":0.99366359447004604}]
[null,null,null,"(-)",{"$f":"J36","v":6.3364055299539174E-3},null,null,null,null,null,null,"Cumplimiento",{"$f":"AVERAGE(M54:M57)","v":0.83260294944800584}]
[null,null,"CUMPLIMIENTO",null,{"$f":"M58","v":0.83260294944800584}]

{"sheet":"OCTUBRE","index":12,"n_rows":59,"n_cols":13,"rows_kept":59,"cut":false,"hidden":false,"merged":[[58,2,58,3],[6,0,14,0],[15,0,25,0],[26,0,31,0],[32,0,38,0],[50,2,51,2],[52,2,53,2],[54,2,55,2],[56,2,57,2]]}
[]
[]
[]
[null,"REGISTRO DE LA LISTA DE VERIFICACION DE CIRUGIA SEGURA"]
[null,"AÑO: U.E.408 HOSPITAL DE ESPINAR OCTUBRE - 2023",null,null,"NO REGISTRA","NO PRECEDE"]
[null,null,"SI","NO","NR","NP","TOTAL"]
["ENTRADA","PACIENTE CONFIRMA SU IDENTIDAD, EL SITIO QUIRUGICO, EL PROCEDIMIENTO Y CONSENTIMIENTO",71,null,null,null,{"$f":"SUM(C7:F7)","v":71}]
[null,"SE HA MARCADO EL SITIO QUIRURGICO",52,19,null,null,{"$f":"SUM(C8:F8)","v":71},null,{"$f":"SUM(C7,C8,C9,C10,D11,D12,C13,D14,C15)","v":487},{"$f":"I8/$I$10","v":0.76212832550860721}]
[null,"SE COMPROBO LA DISPONIBILIDAD DE LOS EQUIPOS DE ANESTESIA Y LA MEDICACION ANESTESICA",71,null,null,null,71,null,{"$f":"SUM(D7,D8,D9,D10,C11,C12,D13,C14,D15)","v":152},{"$f":"I9/$I$10","v":0.23787167449139279}]
[null,"SE COLOCO EL PULXIOMETRO AL PACIENTE Y FUNCIONA",70,1,null,null,71,null,{"$f":"SUM(I8:I9)","v":639}]
[null,"EL PACIENTE TIENE ALERGIAS",19,52,null,null,71]
[null,"VIA AEREA DIFICIL / RIESGO DE ASPIRACION",8,63,null,null,71]
[null,"HAY INSTRUMENTAL Y EQUIPO DISPONIBLE",27,44,null,null,71]
[null,"RIESGO DE HEMORRAGIA MENOR A 500 ML",8,63,null,null,71]
[null,"SE HA PREVISTO DISPONIBILIDAD DE COMPONENTE SANGUINEO EN BANCO DE SANGRE",18,53,null,null,71]
["PAUSA","CONFIRMAR QUE TODOS LOS MIEMBROS DEL EQUIPO PROGRAMADOS SE HAYAN PRESENTADO POR SU NOMBRE",71,null,null,null,71]
[null,"CONFIRMAR LA IDENTIDAD DEL PACIENTE, EL PROCEDIMIENTO Y EL SITIO QUIRUGICO",71,null,null,null,71]
[null,"CONFIRMAR SI TODOS LOS MIEMBROS DEL EQUIPO HAN CUMPLIDO CORRECTAMENTE CON EL PROTOCOLO DE AS",71,null,null,null,71]
[null,"SE HA ADMINISTRADO PROFILAXIS CON ANTIBIOTICOS EN LOS ULTIMOS 60 MINUTOS",71,null,null,null,71,null,{"$f":"SUM(C16,C17,C18,C19,C20,,C22,D23,C24,D25,C26)","v":643},{"$f":"I19/$I$21","v":0.97720364741641341}]
[null,"¿CUALES SON LOS PASOS CRITICOS O INESPERADO?",70,1,null,null,71,null,{"$f":"SUM(D16,D17,D18,D19,D20,D21,D22,C23,D24,C25,D26)","v":15},{"$f":"I20/$I$21","v":2.2796352583586626E-2}]
[null,"¿CUANTO DURARA LA OPERACIÓN?",71,null,null,null,71,null,{"$f":"SUM(I19:I20)","v":658}]
[null,"¿CUANTO ES LA PERDIDA DE SALGRE PREVISTA?",71,null,null,null,71]
[null,"¿PRESENTA EL PACIENTE ALGUN PROBLEMA ESPECIFICO?",5,71,null,null,76]
[null,"¿SE HA CONFIRMADO LA ESTERILIDAD DE ROPA, INSTRUMENTAL Y EQUIPOS?",66,5,null,null,71]
[null,"¿HAY DUDAS O PROBLEMAS RELACIONADOS CON ELLOS?",2,68,null,1,71]
[null,"¿PUEDEN VISUALIZARSE LAS IMÁGENES DIAGNOSTICADAS ESENCIALES?",13,2,null,56,71]
["SALIDA","EL ENFERMERO CONFIRMA VERBALMENTE EL NOMBRE DEL PROCEDIMIENTO",71,null,null,null,71]
[null,"EL RECUENTO DE INSTRUMENTOS, GASA Y AGUJAS",71,null,null,null,71,null,{"$f":"SUM(C27,C28,C29,C30,C31,D32)","v":232},{"$f":"I28/$I$30","v":0.64804469273743015}]
[null,"EL ETIQUETADO DE LAS MUESTRAS (LECTURA DE LA ETIQUETA EN VOZ ALTA, INCLUIDO EL NOMBRE DEL PACIENTE",9,49,null,13,71,null,{"$f":"SUM(D27,D28,D29,D30,D31,C32)","v":126},{"$f":"I29/$I$30","v":0.35195530726256985}]
[null,"SI HAY PROBLEMAS QUE SE RESUELVE RELACIONADOS CON EL INSTRUMENTAL Y LOS EQUIPOS",1,69,null,1,71,null,{"$f":"SUM(I28:I29)","v":358}]
[null,"(CIRUJANO, ANESTESIOLOGO, ENFERMERO) CUALES SON LOS ASPECTOS CRITICOS DE LA RECUPERACION Y EL TRAMITE",62,8,null,1,71]
[null,"OBSERVACIONES",null,18,53,null,71]
["FIRMA","FIRMA DEL CIRUJANO",70,1,null,null,71]
[null,"FIRMA DEL ANESTESIOLOGO",70,1,null,null,71]
[null,"FIRMA DE LA ENFERMERA",71,null,null,null,71,null,{"$f":"SUM(C33,C34,C35,C36,C37,C38,C39)","v":495},{"$f":"I35/$I$37","v":0.99597585513078468}]
[null,"FIRMA DEL COORDINADOR",71,null,null,null,71,null,{"$f":"SUM(D33,D34,D35,D36,D37,,D38,D39)","v":2},{"$f":"I36/$I$37","v":4.0241448692152921E-3}]
[null,"NRO DE HISTORIA CLINICA",71,null,null,null,71,null,{"$f":"SUM(I35:I36)","v":497}]
[null,"NOMBRE Y APELLIDOS DEL PACIENTE",71,null,null,null,71]
[null,"FECHA",71,null,null,null,71]
[]
[]
[]
[]
[]
[null,"PORCENTAJE DE CUMPLIMIENTO DE LA LISTA DE VERIFICACION DE CIRUGIA SEGURA"]
[]
[]
[]
[]
[]
[null,null,"ENTRADA","(+)",{"$f":"J8","v":0.76212832550860721}]
[null,null,null,"(-)",{"$f":"J9","v":0.23787167449139279}]
[null,null,"PAUSA","(+)",{"$f":"J19","v":0.97720364741641341},null,null,null,null,null,null,null,"Cumplimiento"]
[null,null,null,"(-)",{"$f":"J20","v":2.2796352583586626E-2},null,null,null,null,null,null,"Entrada",{"$f":"E51","v":0.76212832550860721}]
[null,null,"SALIDA","(+)",{"$f":"J28","v":0.64804469273743015},null,null,null,null,null,null,"Pausa",{"$f":"E53","v":0.97720364741641341}]
[null,null,null,"(-)",{"$f":"J29","v":0.35195530726256985},null,null,null,null,null,null,"Salida",{"$f":"E55","v":0.64804469273743015}]
[null,null,"FIRMA","(+)",{"$f":"J35","v":0.99597585513078468},null,null,null,null,null,null,"Firmas",{"$f":"E57","v":0.99597585513078468}]
[null,null,null,"(-)",{"$f":"J36","v":4.0241448692152921E-3},null,null,null,null,null,null,"Cumplimiento",{"$f":"AVERAGE(M54:M57)","v":0.84583813019830889}]
[null,null,"CUMPLIMIENTO",null,{"$f":"M58","v":0.84583813019830889}]

{"sheet":"NOVIEMBRE","index":13,"n_rows":59,"n_cols":13,"rows_kept":59,"cut":false,"hidden":false,"merged":[[58,2,58,3],[6,0,14,0],[15,0,25,0],[26,0,31,0],[32,0,38,0],[50,2,51,2],[52,2,53,2],[54,2,55,2],[56,2,57,2]]}
[]
[]
[]
[null,"REGISTRO DE LA LISTA DE VERIFICACION DE CIRUGIA SEGURA"]
[null,"AÑO: U.E.408 HOSPITAL DE ESPINAR NOVIEMBRE - 2023",null,null,"NO REGISTRA","NO PRECEDE"]
[null,null,"SI","NO","NR","NP","TOTAL"]
["ENTRADA","PACIENTE CONFIRMA SU IDENTIDAD, EL SITIO QUIRUGICO, EL PROCEDIMIENTO Y CONSENTIMIENTO",66,null,null,null,{"$f":"SUM(C7:F7)","v":66}]
[null,"SE HA MARCADO EL SITIO QUIRURGICO",52,14,null,null,{"$f":"SUM(C8:F8)","v":66},null,{"$f":"SUM(C7,C8,C9,C10,D11,D12,C13,D14,C15)","v":409},{"$f":"I8/$I$10","v":0.80511811023622049}]
[null,"SE COMPROBO LA DISPONIBILIDAD DE LOS EQUIPOS DE ANESTESIA Y LA MEDICACION ANESTESICA",65,null,1,null,66,null,{"$f":"SUM(D7,D8,D9,D10,C11,C12,D13,C14,D15)","v":99},{"$f":"I9/$I$10","v":0.19488188976377951}]
[null,"SE COLOCO EL PULXIOMETRO AL PACIENTE Y FUNCIONA",59,6,1,null,66,null,{"$f":"SUM(I8:I9)","v":508}]
[null,"EL PACIENTE TIENE ALERGIAS",10,56,null,null,66]
[null,"VIA AEREA DIFICIL / RIESGO DE ASPIRACION",6,51,9,null,66]
[null,"HAY INSTRUMENTAL Y EQUIPO DISPONIBLE",9,25,32,null,66]
[null,"RIESGO DE HEMORRAGIA MENOR A 500 ML",14,42,10,null,66]
[null,"SE HA PREVISTO DISPONIBILIDAD DE COMPONENTE SANGUINEO EN BANCO DE SANGRE",9,24,33,null,66]
["PAUSA","CONFIRMAR QUE TODOS LOS MIEMBROS DEL EQUIPO PROGRAMADOS SE HAYAN PRESENTADO POR SU NOMBRE",66,null,null,null,66]
[null,"CONFIRMAR LA IDENTIDAD DEL PACIENTE, EL PROCEDIMIENTO Y EL SITIO QUIRUGICO",66,null,null,null,66]
[null,"CONFIRMAR SI TODOS LOS MIEMBROS DEL EQUIPO HAN CUMPLIDO CORRECTAMENTE CON EL PROTOCOLO DE AS",66,null,null,null,66]
[null,"SE HA ADMINISTRADO PROFILAXIS CON ANTIBIOTICOS EN LOS ULTIMOS 60 MINUTOS",58,8,null,null,66,null,{"$f":"SUM(C16,C17,C18,C19,C20,,C22,D23,C24,D25,C26)","v":549},{"$f":"I19/$I$21","v":0.94982698961937717}]
[null,"¿CUALES SON LOS PASOS CRITICOS O INESPERADO?",55,1,10,null,66,null,{"$f":"SUM(D16,D17,D18,D19,D20,D21,D22,C23,D24,C25,D26)","v":29},{"$f":"I20/$I$21","v":5.0173010380622836E-2}]
[null,"¿CUANTO DURARA LA OPERACIÓN?",65,1,null,null,66,null,{"$f":"SUM(I19:I20)","v":578}]
[null,"¿CUANTO ES LA PERDIDA DE SALGRE PREVISTA?",64,2,null,null,66]
[null,"¿PRESENTA EL PACIENTE ALGUN PROBLEMA ESPECIFICO?",9,53,4,null,66]
[null,"¿SE HA CONFIRMADO LA ESTERILIDAD DE ROPA, INSTRUMENTAL Y EQUIPOS?",58,3,5,null,66]
[null,"¿HAY DUDAS O PROBLEMAS RELACIONADOS CON ELLOS?",4,55,6,null,65]
[null,"¿PUEDEN VISUALIZARSE LAS IMÁGENES DIAGNOSTICADAS ESENCIALES?",8,1,13,44,66]
["SALIDA","EL ENFERMERO CONFIRMA VERBALMENTE EL NOMBRE DEL PROCEDIMIENTO",66,null,null,null,66]
[null,"EL RECUENTO DE INSTRUMENTOS, GASA Y AGUJAS",65,1,null,null,66,null,{"$f":"SUM(C27,C28,C29,C30,C31,D32)","v":202},{"$f":"I28/$I$30","v":0.63924050632911389}]
[null,"EL ETIQUETADO DE LAS MUESTRAS (LECTURA DE LA ETIQUETA EN VOZ ALTA, INCLUIDO EL NOMBRE DEL PACIENTE",12,39,5,10,66,null,{"$f":"SUM(D27,D28,D29,D30,D31,C32)","v":114},{"$f":"I29/$I$30","v":0.36075949367088606}]
[null,"SI HAY PROBLEMAS QUE SE RESUELVE RELACIONADOS CON EL INSTRUMENTAL Y LOS EQUIPOS",2,58,3,3,66,null,{"$f":"SUM(I28:I29)","v":316}]
[null,"(CIRUJANO, ANESTESIOLOGO, ENFERMERO) CUALES SON LOS ASPECTOS CRITICOS DE LA RECUPERACION Y EL TRAMITE",55,3,8,null,66]
[null,"OBSERVACIONES",13,2,51,null,66]
["FIRMA","FIRMA DEL CIRUJANO",65,1,null,null,66]
[null,"FIRMA DEL ANESTESIOLOGO",66,null,null,null,66]
[null,"FIRMA DE LA ENFERMERA",66,null,null,null,66,null,{"$f":"SUM(C33,C34,C35,C36,C37,C38,C39)","v":461},{"$f":"I35/$I$37","v":0.99783549783549785}]
[null,"FIRMA DEL COORDINADOR",66,null,null,null,66,null,{"$f":"SUM(D33,D34,D35,D36,D37,,D38,D39)","v":1},{"$f":"I36/$I$37","v":2.1645021645021645E-3}]
[null,"NRO DE HISTORIA CLINICA",66,null,null,null,66,null,{"$f":"SUM(I35:I36)","v":462}]
[null,"NOMBRE Y APELLIDOS DEL PACIENTE",66,null,null,null,66]
[null,"FECHA",66,null,null,null,66]
[]
[]
[]
[]
[]
[null,"PORCENTAJE DE CUMPLIMIENTO DE LA LISTA DE VERIFICACION DE CIRUGIA SEGURA"]
[]
[]
[]
[]
[]
[null,null,"ENTRADA","(+)",{"$f":"J8","v":0.80511811023622049}]
[null,null,null,"(-)",{"$f":"J9","v":0.19488188976377951}]
[null,null,"PAUSA","(+)",{"$f":"J19","v":0.94982698961937717},null,null,null,null,null,null,null,"Cumplimiento"]
[null,null,null,"(-)",{"$f":"J20","v":5.0173010380622836E-2},null,null,null,null,null,null,"Entrada",{"$f":"E51","v":0.80511811023622049}]
[null,null,"SALIDA","(+)",{"$f":"J28","v":0.63924050632911389},null,null,null,null,null,null,"Pausa",{"$f":"E53","v":0.94982698961937717}]
[null,null,null,"(-)",{"$f":"J29","v":0.36075949367088606},null,null,null,null,null,null,"Salida",{"$f":"E55","v":0.63924050632911389}]
[null,null,"FIRMA","(+)",{"$f":"J35","v":0.99783549783549785},null,null,null,null,null,null,"Firmas",{"$f":"E57","v":0.99783549783549785}]
[null,null,null,"(-)",{"$f":"J36","v":2.1645021645021645E-3},null,null,null,null,null,null,"Cumplimiento",{"$f":"AVERAGE(M54:M57)","v":0.84800527600505238}]
[null,null,"CUMPLIMIENTO",null,{"$f":"M58","v":0.84800527600505238}]

{"sheet":"DICIEMBRE","index":14,"n_rows":59,"n_cols":13,"rows_kept":59,"cut":false,"hidden":false,"merged":[[58,2,58,3],[6,0,14,0],[15,0,25,0],[26,0,31,0],[32,0,38,0],[50,2,51,2],[52,2,53,2],[54,2,55,2],[56,2,57,2]]}
[]
[]
[]
[null,"REGISTRO DE LA LISTA DE VERIFICACION DE CIRUGIA SEGURA"]
[null,"AÑO: U.E.408 HOSPITAL DE ESPINAR  DICIEMBRE - 2023",null,null,"NO REGISTRA","NO PRECEDE"]
[null,null,"SI","NO","NR","NP","TOTAL"]
["ENTRADA","PACIENTE CONFIRMA SU IDENTIDAD, EL SITIO QUIRUGICO, EL PROCEDIMIENTO Y CONSENTIMIENTO",74,null,null,null,{"$f":"SUM(C7:F7)","v":74}]
[null,"SE HA MARCADO EL SITIO QUIRURGICO",51,23,null,null,{"$f":"SUM(C8:F8)","v":74},null,{"$f":"SUM(C7,C8,C9,C10,D11,D12,C13,D14,C15)","v":475},{"$f":"I8/$I$10","v":0.82465277777777779}]
[null,"SE COMPROBO LA DISPONIBILIDAD DE LOS EQUIPOS DE ANESTESIA Y LA MEDICACION ANESTESICA",74,null,null,null,74,null,{"$f":"SUM(D7,D8,D9,D10,C11,C12,D13,C14,D15)","v":101},{"$f":"I9/$I$10","v":0.17534722222222221}]
[null,"SE COLOCO EL PULXIOMETRO AL PACIENTE Y FUNCIONA",74,null,null,null,74,null,{"$f":"SUM(I8:I9)","v":576}]
[null,"EL PACIENTE TIENE ALERGIAS",7,67,null,null,74]
[null,"VIA AEREA DIFICIL / RIESGO DE ASPIRACION",5,67,2,null,74]
[null,"HAY INSTRUMENTAL Y EQUIPO DISPONIBLE",4,36,34,null,74]
[null,"RIESGO DE HEMORRAGIA MENOR A 500 ML",null,63,11,null,74]
[null,"SE HA PREVISTO DISPONIBILIDAD DE COMPONENTE SANGUINEO EN BANCO DE SANGRE",1,30,43,null,74]
["PAUSA","CONFIRMAR QUE TODOS LOS MIEMBROS DEL EQUIPO PROGRAMADOS SE HAYAN PRESENTADO POR SU NOMBRE",74,null,null,null,74]
[null,"CONFIRMAR LA IDENTIDAD DEL PACIENTE, EL PROCEDIMIENTO Y EL SITIO QUIRUGICO",74,null,null,null,74]
[null,"CONFIRMAR SI TODOS LOS MIEMBROS DEL EQUIPO HAN CUMPLIDO CORRECTAMENTE CON EL PROTOCOLO DE AS",73,null,null,1,74]
[null,"SE HA ADMINISTRADO PROFILAXIS CON ANTIBIOTICOS EN LOS ULTIMOS 60 MINUTOS",63,5,5,1,74,null,{"$f":"SUM(C16,C17,C18,C19,C20,,C22,D23,C24,D25,C26)","v":636},{"$f":"I19/$I$21","v":0.95067264573991028}]
[null,"¿CUALES SON LOS PASOS CRITICOS O INESPERADO?",71,3,null,null,74,null,{"$f":"SUM(D16,D17,D18,D19,D20,D21,D22,C23,D24,C25,D26)","v":33},{"$f":"I20/$I$21","v":4.9327354260089683E-2}]
[null,"¿CUANTO DURARA LA OPERACIÓN?",72,null,2,null,74,null,{"$f":"SUM(I19:I20)","v":669}]
[null,"¿CUANTO ES LA PERDIDA DE SALGRE PREVISTA?",71,2,1,null,74]
[null,"¿PRESENTA EL PACIENTE ALGUN PROBLEMA ESPECIFICO?",8,65,1,null,74]
[null,"¿SE HA CONFIRMADO LA ESTERILIDAD DE ROPA, INSTRUMENTAL Y EQUIPOS?",61,11,1,1,74]
[null,"¿HAY DUDAS O PROBLEMAS RELACIONADOS CON ELLOS?",1,72,1,null,74]
[null,"¿PUEDEN VISUALIZARSE LAS IMÁGENES DIAGNOSTICADAS ESENCIALES?",12,3,2,57,74]
["SALIDA","EL ENFERMERO CONFIRMA VERBALMENTE EL NOMBRE DEL PROCEDIMIENTO",74,null,null,null,74]
[null,"EL RECUENTO DE INSTRUMENTOS, GASA Y AGUJAS",74,null,null,null,74,null,{"$f":"SUM(C27,C28,C29,C30,C31,D32)","v":287},{"$f":"I28/$I$30","v":0.7229219143576826}]
[null,"EL ETIQUETADO DE LAS MUESTRAS (LECTURA DE LA ETIQUETA EN VOZ ALTA, INCLUIDO EL NOMBRE DEL PACIENTE",26,34,4,10,74,null,{"$f":"SUM(D27,D28,D29,D30,D31,C32)","v":110},{"$f":"I29/$I$30","v":0.2770780856423174}]
[null,"SI HAY PROBLEMAS QUE SE RESUELVE RELACIONADOS CON EL INSTRUMENTAL Y LOS EQUIPOS",4,69,null,1,74,null,{"$f":"SUM(I28:I29)","v":397}]
[null,"(CIRUJANO, ANESTESIOLOGO, ENFERMERO) CUALES SON LOS ASPECTOS CRITICOS DE LA RECUPERACION Y EL TRAMITE",68,4,2,null,74]
[null,"OBSERVACIONES",3,41,30,null,74]
["FIRMA","FIRMA DEL CIRUJANO",74,null,null,null,74]
[null,"FIRMA DEL ANESTESIOLOGO",74,null,null,null,74]
[null,"FIRMA DE LA ENFERMERA",74,null,null,null,74,null,{"$f":"SUM(C33,C34,C35,C36,C37,C38,C39)","v":518},{"$f":"I35/$I$37","v":1}]
[null,"FIRMA DEL COORDINADOR",74,null,null,null,74,null,{"$f":"SUM(D33,D34,D35,D36,D37,,D38,D39)","v":0},{"$f":"I36/$I$37","v":0}]
[null,"NRO DE HISTORIA CLINICA",74,null,null,null,74,null,{"$f":"SUM(I35:I36)","v":518}]
[null,"NOMBRE Y APELLIDOS DEL PACIENTE",74,null,null,null,74]
[null,"FECHA",74,null,null,null,74]
[]
[]
[]
[]
[]
[null,"PORCENTAJE DE CUMPLIMIENTO DE LA LISTA DE VERIFICACION DE CIRUGIA SEGURA"]
[]
[]
[]
[]
[]
[null,null,"ENTRADA","(+)",{"$f":"J8","v":0.82465277777777779}]
[null,null,null,"(-)",{"$f":"J9","v":0.17534722222222221}]
[null,null,"PAUSA","(+)",{"$f":"J19","v":0.95067264573991028},null,null,null,null,null,null,null,"Cumplimiento"]
[null,null,null,"(-)",{"$f":"J20","v":4.9327354260089683E-2},null,null,null,null,null,null,"Entrada",{"$f":"E51","v":0.82465277777777779}]
[null,null,"SALIDA","(+)",{"$f":"J28","v":0.7229219143576826},null,null,null,null,null,null,"Pausa",{"$f":"E53","v":0.95067264573991028}]
[null,null,null,"(-)",{"$f":"J29","v":0.2770780856423174},null,null,null,null,null,null,"Salida",{"$f":"E55","v":0.7229219143576826}]
[null,null,"FIRMA","(+)",{"$f":"J35","v":1},null,null,null,null,null,null,"Firmas",{"$f":"E57","v":1}]
[null,null,null,"(-)",{"$f":"J36","v":0},null,null,null,null,null,null,"Cumplimiento",{"$f":"AVERAGE(M54:M57)","v":0.87456183446884261}]
[null,null,"CUMPLIMIENTO",null,{"$f":"M58","v":0.87456183446884261}]

{"sheet":"IV TRIMESTRE 2023","index":15,"n_rows":59,"n_cols":13,"rows_kept":59,"cut":false,"hidden":false,"merged":[[58,2,58,3],[6,0,14,0],[15,0,25,0],[26,0,31,0],[32,0,38,0],[50,2,51,2],[52,2,53,2],[54,2,55,2],[56,2,57,2]]}
[]
[]
[]
[null,"REGISTRO DE LA LISTA DE VERIFICACION DE CIRUGIA SEGURA"]
[null,"AÑO: U.E.408 HOSPITAL DE ESPINAR  IV TRIMESTRE - 2023",null,null,"NO REGISTRA","NO PRECEDE"]
[null,null,"SI","NO","NR","NP","TOTAL"]
["ENTRADA","PACIENTE CONFIRMA SU IDENTIDAD, EL SITIO QUIRUGICO, EL PROCEDIMIENTO Y CONSENTIMIENTO",{"$f":"+OCTUBRE!C7+NOVIEMBRE!C7+DICIEMBRE!C7","v":211},{"$f":"+OCTUBRE!D7+NOVIEMBRE!D7+DICIEMBRE!D7","v":0},{"$f":"+OCTUBRE!E7+NOVIEMBRE!E7+DICIEMBRE!E7","v":0},{"$f":"+OCTUBRE!F7+NOVIEMBRE!F7+DICIEMBRE!F7","v":0},{"$f":"SUM(C7:F7)","v":211}]
[null,"SE HA MARCADO EL SITIO QUIRURGICO",{"$f":"+OCTUBRE!C8+NOVIEMBRE!C8+DICIEMBRE!C8","v":155},{"$f":"+OCTUBRE!D8+NOVIEMBRE!D8+DICIEMBRE!D8","v":56},{"$f":"+OCTUBRE!E8+NOVIEMBRE!E8+DICIEMBRE!E8","v":0},{"$f":"+OCTUBRE!F8+NOVIEMBRE!F8+DICIEMBRE!F8","v":0},211,null,{"$f":"SUM(C7,C8,C9,C10,D11,D12,C13,D14,C15)","v":1371},{"$f":"I8/$I$10","v":0.79570516540917002}]
[null,"SE COMPROBO LA DISPONIBILIDAD DE LOS EQUIPOS DE ANESTESIA Y LA MEDICACION ANESTESICA",{"$f":"+OCTUBRE!C9+NOVIEMBRE!C9+DICIEMBRE!C9","v":210},{"$f":"+OCTUBRE!D9+NOVIEMBRE!D9+DICIEMBRE!D9","v":0},{"$f":"+OCTUBRE!E9+NOVIEMBRE!E9+DICIEMBRE!E9","v":1},{"$f":"+OCTUBRE!F9+NOVIEMBRE!F9+DICIEMBRE!F9","v":0},211,null,{"$f":"SUM(D7,D8,D9,D10,C11,C12,D13,C14,D15)","v":352},{"$f":"I9/$I$10","v":0.20429483459082995}]
[null,"SE COLOCO EL PULXIOMETRO AL PACIENTE Y FUNCIONA",{"$f":"+OCTUBRE!C10+NOVIEMBRE!C10+DICIEMBRE!C10","v":203},{"$f":"+OCTUBRE!D10+NOVIEMBRE!D10+DICIEMBRE!D10","v":7},{"$f":"+OCTUBRE!E10+NOVIEMBRE!E10+DICIEMBRE!E10","v":1},{"$f":"+OCTUBRE!F10+NOVIEMBRE!F10+DICIEMBRE!F10","v":0},211,null,{"$f":"SUM(I8:I9)","v":1723}]
[null,"EL PACIENTE TIENE ALERGIAS",{"$f":"+OCTUBRE!C11+NOVIEMBRE!C11+DICIEMBRE!C11","v":36},{"$f":"+OCTUBRE!D11+NOVIEMBRE!D11+DICIEMBRE!D11","v":175},{"$f":"+OCTUBRE!E11+NOVIEMBRE!E11+DICIEMBRE!E11","v":0},{"$f":"+OCTUBRE!F11+NOVIEMBRE!F11+DICIEMBRE!F11","v":0},211]
[null,"VIA AEREA DIFICIL / RIESGO DE ASPIRACION",{"$f":"+OCTUBRE!C12+NOVIEMBRE!C12+DICIEMBRE!C12","v":19},{"$f":"+OCTUBRE!D12+NOVIEMBRE!D12+DICIEMBRE!D12","v":181},{"$f":"+OCTUBRE!E12+NOVIEMBRE!E12+DICIEMBRE!E12","v":11},{"$f":"+OCTUBRE!F12+NOVIEMBRE!F12+DICIEMBRE!F12","v":0},211]
[null,"HAY INSTRUMENTAL Y EQUIPO DISPONIBLE",{"$f":"+OCTUBRE!C13+NOVIEMBRE!C13+DICIEMBRE!C13","v":40},{"$f":"+OCTUBRE!D13+NOVIEMBRE!D13+DICIEMBRE!D13","v":105},{"$f":"+OCTUBRE!E13+NOVIEMBRE!E13+DICIEMBRE!E13","v":66},{"$f":"+OCTUBRE!F13+NOVIEMBRE!F13+DICIEMBRE!F13","v":0},211]
[null,"RIESGO DE HEMORRAGIA MENOR A 500 ML",{"$f":"+OCTUBRE!C14+NOVIEMBRE!C14+DICIEMBRE!C14","v":22},{"$f":"+OCTUBRE!D14+NOVIEMBRE!D14+DICIEMBRE!D14","v":168},{"$f":"+OCTUBRE!E14+NOVIEMBRE!E14+DICIEMBRE!E14","v":21},{"$f":"+OCTUBRE!F14+NOVIEMBRE!F14+DICIEMBRE!F14","v":0},211]
[null,"SE HA PREVISTO DISPONIBILIDAD DE COMPONENTE SANGUINEO EN BANCO DE SANGRE",{"$f":"+OCTUBRE!C15+NOVIEMBRE!C15+DICIEMBRE!C15","v":28},{"$f":"+OCTUBRE!D15+NOVIEMBRE!D15+DICIEMBRE!D15","v":107},{"$f":"+OCTUBRE!E15+NOVIEMBRE!E15+DICIEMBRE!E15","v":76},{"$f":"+OCTUBRE!F15+NOVIEMBRE!F15+DICIEMBRE!F15","v":0},211]
["PAUSA","CONFIRMAR QUE TODOS LOS MIEMBROS DEL EQUIPO PROGRAMADOS SE HAYAN PRESENTADO POR SU NOMBRE",{"$f":"+OCTUBRE!C16+NOVIEMBRE!C16+DICIEMBRE!C16","v":211},{"$f":"+OCTUBRE!D16+NOVIEMBRE!D16+DICIEMBRE!D16","v":0},{"$f":"+OCTUBRE!E16+NOVIEMBRE!E16+DICIEMBRE!E16","v":0},{"$f":"+OCTUBRE!F16+NOVIEMBRE!F16+DICIEMBRE!F16","v":0},211]
[null,"CONFIRMAR LA IDENTIDAD DEL PACIENTE, EL PROCEDIMIENTO Y EL SITIO QUIRUGICO",{"$f":"+OCTUBRE!C17+NOVIEMBRE!C17+DICIEMBRE!C17","v":211},{"$f":"+OCTUBRE!D17+NOVIEMBRE!D17+DICIEMBRE!D17","v":0},{"$f":"+OCTUBRE!E17+NOVIEMBRE!E17+DICIEMBRE!E17","v":0},{"$f":"+OCTUBRE!F17+NOVIEMBRE!F17+DICIEMBRE!F17","v":0},211]
[null,"CONFIRMAR SI TODOS LOS MIEMBROS DEL EQUIPO HAN CUMPLIDO CORRECTAMENTE CON EL PROTOCOLO DE AS",{"$f":"+OCTUBRE!C18+NOVIEMBRE!C18+DICIEMBRE!C18","v":210},{"$f":"+OCTUBRE!D18+NOVIEMBRE!D18+DICIEMBRE!D18","v":0},{"$f":"+OCTUBRE!E18+NOVIEMBRE!E18+DICIEMBRE!E18","v":0},{"$f":"+OCTUBRE!F18+NOVIEMBRE!F18+DICIEMBRE!F18","v":1},211]
[null,"SE HA ADMINISTRADO PROFILAXIS CON ANTIBIOTICOS EN LOS ULTIMOS 60 MINUTOS",{"$f":"+OCTUBRE!C19+NOVIEMBRE!C19+DICIEMBRE!C19","v":192},{"$f":"+OCTUBRE!D19+NOVIEMBRE!D19+DICIEMBRE!D19","v":13},{"$f":"+OCTUBRE!E19+NOVIEMBRE!E19+DICIEMBRE!E19","v":5},{"$f":"+OCTUBRE!F19+NOVIEMBRE!F19+DICIEMBRE!F19","v":1},211,null,{"$f":"SUM(C16,C17,C18,C19,C20,,C22,D23,C24,D25,C26)","v":1828},{"$f":"I19/$I$21","v":0.95958005249343836}]
[null,"¿CUALES SON LOS PASOS CRITICOS O INESPERADO?",{"$f":"+OCTUBRE!C20+NOVIEMBRE!C20+DICIEMBRE!C20","v":196},{"$f":"+OCTUBRE!D20+NOVIEMBRE!D20+DICIEMBRE!D20","v":5},{"$f":"+OCTUBRE!E20+NOVIEMBRE!E20+DICIEMBRE!E20","v":10},{"$f":"+OCTUBRE!F20+NOVIEMBRE!F20+DICIEMBRE!F20","v":0},211,null,{"$f":"SUM(D16,D17,D18,D19,D20,D21,D22,C23,D24,C25,D26)","v":77},{"$f":"I20/$I$21","v":4.0419947506561679E-2}]
[null,"¿CUANTO DURARA LA OPERACIÓN?",{"$f":"+OCTUBRE!C21+NOVIEMBRE!C21+DICIEMBRE!C21","v":208},{"$f":"+OCTUBRE!D21+NOVIEMBRE!D21+DICIEMBRE!D21","v":1},{"$f":"+OCTUBRE!E21+NOVIEMBRE!E21+DICIEMBRE!E21","v":2},{"$f":"+OCTUBRE!F21+NOVIEMBRE!F21+DICIEMBRE!F21","v":0},211,null,{"$f":"SUM(I19:I20)","v":1905}]
[null,"¿CUANTO ES LA PERDIDA DE SALGRE PREVISTA?",{"$f":"+OCTUBRE!C22+NOVIEMBRE!C22+DICIEMBRE!C22","v":206},{"$f":"+OCTUBRE!D22+NOVIEMBRE!D22+DICIEMBRE!D22","v":4},{"$f":"+OCTUBRE!E22+NOVIEMBRE!E22+DICIEMBRE!E22","v":1},{"$f":"+OCTUBRE!F22+NOVIEMBRE!F22+DICIEMBRE!F22","v":0},211]
[null,"¿PRESENTA EL PACIENTE ALGUN PROBLEMA ESPECIFICO?",{"$f":"+OCTUBRE!C23+NOVIEMBRE!C23+DICIEMBRE!C23","v":22},{"$f":"+OCTUBRE!D23+NOVIEMBRE!D23+DICIEMBRE!D23","v":189},{"$f":"+OCTUBRE!E23+NOVIEMBRE!E23+DICIEMBRE!E23","v":5},{"$f":"+OCTUBRE!F23+NOVIEMBRE!F23+DICIEMBRE!F23","v":0},216]
[null,"¿SE HA CONFIRMADO LA ESTERILIDAD DE ROPA, INSTRUMENTAL Y EQUIPOS?",{"$f":"+OCTUBRE!C24+NOVIEMBRE!C24+DICIEMBRE!C24","v":185},{"$f":"+OCTUBRE!D24+NOVIEMBRE!D24+DICIEMBRE!D24","v":19},{"$f":"+OCTUBRE!E24+NOVIEMBRE!E24+DICIEMBRE!E24","v":6},{"$f":"+OCTUBRE!F24+NOVIEMBRE!F24+DICIEMBRE!F24","v":1},211]
[null,"¿HAY DUDAS O PROBLEMAS RELACIONADOS CON ELLOS?",{"$f":"+OCTUBRE!C25+NOVIEMBRE!C25+DICIEMBRE!C25","v":7},{"$f":"+OCTUBRE!D25+NOVIEMBRE!D25+DICIEMBRE!D25","v":195},{"$f":"+OCTUBRE!E25+NOVIEMBRE!E25+DICIEMBRE!E25","v":7},{"$f":"+OCTUBRE!F25+NOVIEMBRE!F25+DICIEMBRE!F25","v":1},210]
[null,"¿PUEDEN VISUALIZARSE LAS IMÁGENES DIAGNOSTICADAS ESENCIALES?",{"$f":"+OCTUBRE!C26+NOVIEMBRE!C26+DICIEMBRE!C26","v":33},{"$f":"+OCTUBRE!D26+NOVIEMBRE!D26+DICIEMBRE!D26","v":6},{"$f":"+OCTUBRE!E26+NOVIEMBRE!E26+DICIEMBRE!E26","v":15},{"$f":"+OCTUBRE!F26+NOVIEMBRE!F26+DICIEMBRE!F26","v":157},211]
["SALIDA","EL ENFERMERO CONFIRMA VERBALMENTE EL NOMBRE DEL PROCEDIMIENTO",{"$f":"+OCTUBRE!C27+NOVIEMBRE!C27+DICIEMBRE!C27","v":211},{"$f":"+OCTUBRE!D27+NOVIEMBRE!D27+DICIEMBRE!D27","v":0},{"$f":"+OCTUBRE!E27+NOVIEMBRE!E27+DICIEMBRE!E27","v":0},{"$f":"+OCTUBRE!F27+NOVIEMBRE!F27+DICIEMBRE!F27","v":0},211]
[null,"EL RECUENTO DE INSTRUMENTOS, GASA Y AGUJAS",{"$f":"+OCTUBRE!C28+NOVIEMBRE!C28+DICIEMBRE!C28","v":210},{"$f":"+OCTUBRE!D28+NOVIEMBRE!D28+DICIEMBRE!D28","v":1},{"$f":"+OCTUBRE!E28+NOVIEMBRE!E28+DICIEMBRE!E28","v":0},{"$f":"+OCTUBRE!F28+NOVIEMBRE!F28+DICIEMBRE!F28","v":0},211,null,{"$f":"SUM(C27,C28,C29,C30,C31,D32)","v":721},{"$f":"I28/$I$30","v":0.67320261437908502}]
[null,"EL ETIQUETADO DE LAS MUESTRAS (LECTURA DE LA ETIQUETA EN VOZ ALTA, INCLUIDO EL NOMBRE DEL PACIENTE",{"$f":"+OCTUBRE!C29+NOVIEMBRE!C29+DICIEMBRE!C29","v":47},{"$f":"+OCTUBRE!D29+NOVIEMBRE!D29+DICIEMBRE!D29","v":122},{"$f":"+OCTUBRE!E29+NOVIEMBRE!E29+DICIEMBRE!E29","v":9},{"$f":"+OCTUBRE!F29+NOVIEMBRE!F29+DICIEMBRE!F29","v":33},211,null,{"$f":"SUM(D27,D28,D29,D30,D31,C32)","v":350},{"$f":"I29/$I$30","v":0.32679738562091504}]
[null,"SI HAY PROBLEMAS QUE SE RESUELVE RELACIONADOS CON EL INSTRUMENTAL Y LOS EQUIPOS",{"$f":"+OCTUBRE!C30+NOVIEMBRE!C30+DICIEMBRE!C30","v":7},{"$f":"+OCTUBRE!D30+NOVIEMBRE!D30+DICIEMBRE!D30","v":196},{"$f":"+OCTUBRE!E30+NOVIEMBRE!E30+DICIEMBRE!E30","v":3},{"$f":"+OCTUBRE!F30+NOVIEMBRE!F30+DICIEMBRE!F30","v":5},211,null,{"$f":"SUM(I28:I29)","v":1071}]
[null,"(CIRUJANO, ANESTESIOLOGO, ENFERMERO) CUALES SON LOS ASPECTOS CRITICOS DE LA RECUPERACION Y EL TRAMITE",{"$f":"+OCTUBRE!C31+NOVIEMBRE!C31+DICIEMBRE!C31","v":185},{"$f":"+OCTUBRE!D31+NOVIEMBRE!D31+DICIEMBRE!D31","v":15},{"$f":"+OCTUBRE!E31+NOVIEMBRE!E31+DICIEMBRE!E31","v":10},{"$f":"+OCTUBRE!F31+NOVIEMBRE!F31+DICIEMBRE!F31","v":1},211]
[null,"OBSERVACIONES",{"$f":"+OCTUBRE!C32+NOVIEMBRE!C32+DICIEMBRE!C32","v":16},{"$f":"+OCTUBRE!D32+NOVIEMBRE!D32+DICIEMBRE!D32","v":61},{"$f":"+OCTUBRE!E32+NOVIEMBRE!E32+DICIEMBRE!E32","v":134},{"$f":"+OCTUBRE!F32+NOVIEMBRE!F32+DICIEMBRE!F32","v":0},211]
["FIRMA","FIRMA DEL CIRUJANO",{"$f":"+OCTUBRE!C33+NOVIEMBRE!C33+DICIEMBRE!C33","v":209},{"$f":"+OCTUBRE!D33+NOVIEMBRE!D33+DICIEMBRE!D33","v":2},{"$f":"+OCTUBRE!E33+NOVIEMBRE!E33+DICIEMBRE!E33","v":0},{"$f":"+OCTUBRE!F33+NOVIEMBRE!F33+DICIEMBRE!F33","v":0},211]
[null,"FIRMA DEL ANESTESIOLOGO",{"$f":"+OCTUBRE!C34+NOVIEMBRE!C34+DICIEMBRE!C34","v":210},{"$f":"+OCTUBRE!D34+NOVIEMBRE!D34+DICIEMBRE!D34","v":1},{"$f":"+OCTUBRE!E34+NOVIEMBRE!E34+DICIEMBRE!E34","v":0},{"$f":"+OCTUBRE!F34+NOVIEMBRE!F34+DICIEMBRE!F34","v":0},211]
[null,"FIRMA DE LA ENFERMERA",{"$f":"+OCTUBRE!C35+NOVIEMBRE!C35+DICIEMBRE!C35","v":211},{"$f":"+OCTUBRE!D35+NOVIEMBRE!D35+DICIEMBRE!D35","v":0},{"$f":"+OCTUBRE!E35+NOVIEMBRE!E35+DICIEMBRE!E35","v":0},{"$f":"+OCTUBRE!F35+NOVIEMBRE!F35+DICIEMBRE!F35","v":0},211,null,{"$f":"SUM(C33,C34,C35,C36,C37,C38,C39)","v":1474},{"$f":"I35/$I$37","v":0.99796885578876104}]
[null,"FIRMA DEL COORDINADOR",{"$f":"+OCTUBRE!C36+NOVIEMBRE!C36+DICIEMBRE!C36","v":211},{"$f":"+OCTUBRE!D36+NOVIEMBRE!D36+DICIEMBRE!D36","v":0},{"$f":"+OCTUBRE!E36+NOVIEMBRE!E36+DICIEMBRE!E36","v":0},{"$f":"+OCTUBRE!F36+NOVIEMBRE!F36+DICIEMBRE!F36","v":0},211,null,{"$f":"SUM(D33,D34,D35,D36,D37,,D38,D39)","v":3},{"$f":"I36/$I$37","v":2.031144211238998E-3}]
[null,"NRO DE HISTORIA CLINICA",{"$f":"+OCTUBRE!C37+NOVIEMBRE!C37+DICIEMBRE!C37","v":211},{"$f":"+OCTUBRE!D37+NOVIEMBRE!D37+DICIEMBRE!D37","v":0},{"$f":"+OCTUBRE!E37+NOVIEMBRE!E37+DICIEMBRE!E37","v":0},{"$f":"+OCTUBRE!F37+NOVIEMBRE!F37+DICIEMBRE!F37","v":0},211,null,{"$f":"SUM(I35:I36)","v":1477}]
[null,"NOMBRE Y APELLIDOS DEL PACIENTE",{"$f":"+OCTUBRE!C38+NOVIEMBRE!C38+DICIEMBRE!C38","v":211},{"$f":"+OCTUBRE!D38+NOVIEMBRE!D38+DICIEMBRE!D38","v":0},{"$f":"+OCTUBRE!E38+NOVIEMBRE!E38+DICIEMBRE!E38","v":0},{"$f":"+OCTUBRE!F38+NOVIEMBRE!F38+DICIEMBRE!F38","v":0},211]
[null,"FECHA",{"$f":"+OCTUBRE!C39+NOVIEMBRE!C39+DICIEMBRE!C39","v":211},{"$f":"+OCTUBRE!D39+NOVIEMBRE!D39+DICIEMBRE!D39","v":0},{"$f":"+OCTUBRE!E39+NOVIEMBRE!E39+DICIEMBRE!E39","v":0},{"$f":"+OCTUBRE!F39+NOVIEMBRE!F39+DICIEMBRE!F39","v":0},211]
[]
[]
[]
[]
[]
[null,"PORCENTAJE DE CUMPLIMIENTO DE LA LISTA DE VERIFICACION DE CIRUGIA SEGURA"]
[]
[]
[]
[]
[]
[null,null,"ENTRADA","(+)",{"$f":"J8","v":0.79570516540917002}]
[null,null,null,"(-)",{"$f":"J9","v":0.20429483459082995}]
[null,null,"PAUSA","(+)",{"$f":"J19","v":0.95958005249343836},null,null,null,null,null,null,null,"Cumplimiento"]
[null,null,null,"(-)",{"$f":"J20","v":4.0419947506561679E-2},null,null,null,null,null,null,"Entrada",{"$f":"E51","v":0.79570516540917002}]
[null,null,"SALIDA","(+)",{"$f":"J28","v":0.67320261437908502},null,null,null,null,null,null,"Pausa",{"$f":"E53","v":0.95958005249343836}]
[null,null,null,"(-)",{"$f":"J29","v":0.32679738562091504},null,null,null,null,null,null,"Salida",{"$f":"E55","v":0.67320261437908502}]
[null,null,"FIRMA","(+)",{"$f":"J35","v":0.99796885578876104},null,null,null,null,null,null,"Firmas",{"$f":"E57","v":0.99796885578876104}]
[null,null,null,"(-)",{"$f":"J36","v":2.031144211238998E-3},null,null,null,null,null,null,"Cumplimiento",{"$f":"AVERAGE(M54:M57)","v":0.85661417201761358}]
[null,null,"CUMPLIMIENTO",null,{"$f":"M58","v":0.85661417201761358}]

{"sheet":"ANUAL 2023.","index":16,"n_rows":59,"n_cols":13,"rows_kept":59,"cut":false,"hidden":false,"merged":[[58,2,58,3],[6,0,14,0],[15,0,25,0],[26,0,31,0],[32,0,38,0],[50,2,51,2],[52,2,53,2],[54,2,55,2],[56,2,57,2]]}
[]
[]
[]
[null,"REGISTRO DE LA LISTA DE VERIFICACION DE CIRUGIA SEGURA"]
[null,"AÑO: U.E.408 HOSPITAL DE ESPINAR  ANUAL 2023.",null,null,"NO REGISTRA","NO PRECEDE"]
[null,null,"SI","NO","NR","NP","TOTAL"]
["ENTRADA","PACIENTE CONFIRMA SU IDENTIDAD, EL SITIO QUIRUGICO, EL PROCEDIMIENTO Y CONSENTIMIENTO",{"$f":"+'I TRIMESTRE 2024'!C7+'II TRIMESTRE 2024'!C7+'III TRIMESTRE 2024'!C7+'IV TRIMESTRE 2023'!C7","v":817},{"$f":"+'I TRIMESTRE 2024'!D7+'II TRIMESTRE 2024'!D7+'III TRIMESTRE 2024'!D7+'IV TRIMESTRE 2023'!D7","v":1},{"$f":"+'I TRIMESTRE 2024'!E7+'II TRIMESTRE 2024'!E7+'III TRIMESTRE 2024'!E7+'IV TRIMESTRE 2023'!E7","v":4},{"$f":"+'I TRIMESTRE 2024'!F7+'II TRIMESTRE 2024'!F7+'III TRIMESTRE 2024'!F7+'IV TRIMESTRE 2023'!F7","v":2},{"$f":"SUM(C7:F7)","v":824}]
[null,"SE HA MARCADO EL SITIO QUIRURGICO",{"$f":"+'I TRIMESTRE 2024'!C8+'II TRIMESTRE 2024'!C8+'III TRIMESTRE 2024'!C8+'IV TRIMESTRE 2023'!C8","v":553},{"$f":"+'I TRIMESTRE 2024'!D8+'II TRIMESTRE 2024'!D8+'III TRIMESTRE 2024'!D8+'IV TRIMESTRE 2023'!D8","v":219},{"$f":"+'I TRIMESTRE 2024'!E8+'II TRIMESTRE 2024'!E8+'III TRIMESTRE 2024'!E8+'IV TRIMESTRE 2023'!E8","v":13},{"$f":"+'I TRIMESTRE 2024'!F8+'II TRIMESTRE 2024'!F8+'III TRIMESTRE 2024'!F8+'IV TRIMESTRE 2023'!F8","v":116},901,null,{"$f":"SUM(C7,C8,C9,C10,D11,D12,C13,D14,C15)","v":5919},{"$f":"I8/$I$10","v":0.83050371825452507}]
[null,"SE COMPROBO LA DISPONIBILIDAD DE LOS EQUIPOS DE ANESTESIA Y LA MEDICACION ANESTESICA",{"$f":"+'I TRIMESTRE 2024'!C9+'II TRIMESTRE 2024'!C9+'III TRIMESTRE 2024'!C9+'IV TRIMESTRE 2023'!C9","v":892},{"$f":"+'I TRIMESTRE 2024'!D9+'II TRIMESTRE 2024'!D9+'III TRIMESTRE 2024'!D9+'IV TRIMESTRE 2023'!D9","v":3},{"$f":"+'I TRIMESTRE 2024'!E9+'II TRIMESTRE 2024'!E9+'III TRIMESTRE 2024'!E9+'IV TRIMESTRE 2023'!E9","v":6},{"$f":"+'I TRIMESTRE 2024'!F9+'II TRIMESTRE 2024'!F9+'III TRIMESTRE 2024'!F9+'IV TRIMESTRE 2023'!F9","v":0},901,null,{"$f":"SUM(D7,D8,D9,D10,C11,C12,D13,C14,D15)","v":1208},{"$f":"I9/$I$10","v":0.16949628174547496}]
[null,"SE COLOCO EL PULXIOMETRO AL PACIENTE Y FUNCIONA",{"$f":"+'I TRIMESTRE 2024'!C10+'II TRIMESTRE 2024'!C10+'III TRIMESTRE 2024'!C10+'IV TRIMESTRE 2023'!C10","v":864},{"$f":"+'I TRIMESTRE 2024'!D10+'II TRIMESTRE 2024'!D10+'III TRIMESTRE 2024'!D10+'IV TRIMESTRE 2023'!D10","v":26},{"$f":"+'I TRIMESTRE 2024'!E10+'II TRIMESTRE 2024'!E10+'III TRIMESTRE 2024'!E10+'IV TRIMESTRE 2023'!E10","v":11},{"$f":"+'I TRIMESTRE 2024'!F10+'II TRIMESTRE 2024'!F10+'III TRIMESTRE 2024'!F10+'IV TRIMESTRE 2023'!F10","v":0},901,null,{"$f":"SUM(I8:I9)","v":7127}]
[null,"EL PACIENTE TIENE ALERGIAS",{"$f":"+'I TRIMESTRE 2024'!C11+'II TRIMESTRE 2024'!C11+'III TRIMESTRE 2024'!C11+'IV TRIMESTRE 2023'!C11","v":87},{"$f":"+'I TRIMESTRE 2024'!D11+'II TRIMESTRE 2024'!D11+'III TRIMESTRE 2024'!D11+'IV TRIMESTRE 2023'!D11","v":813},{"$f":"+'I TRIMESTRE 2024'!E11+'II TRIMESTRE 2024'!E11+'III TRIMESTRE 2024'!E11+'IV TRIMESTRE 2023'!E11","v":1},{"$f":"+'I TRIMESTRE 2024'!F11+'II TRIMESTRE 2024'!F11+'III TRIMESTRE 2024'!F11+'IV TRIMESTRE 2023'!F11","v":0},901]
[null,"VIA AEREA DIFICIL / RIESGO DE ASPIRACION",{"$f":"+'I TRIMESTRE 2024'!C12+'II TRIMESTRE 2024'!C12+'III TRIMESTRE 2024'!C12+'IV TRIMESTRE 2023'!C12","v":77},{"$f":"+'I TRIMESTRE 2024'!D12+'II TRIMESTRE 2024'!D12+'III TRIMESTRE 2024'!D12+'IV TRIMESTRE 2023'!D12","v":805},{"$f":"+'I TRIMESTRE 2024'!E12+'II TRIMESTRE 2024'!E12+'III TRIMESTRE 2024'!E12+'IV TRIMESTRE 2023'!E12","v":19},{"$f":"+'I TRIMESTRE 2024'!F12+'II TRIMESTRE 2024'!F12+'III TRIMESTRE 2024'!F12+'IV TRIMESTRE 2023'!F12","v":0},901]
[null,"HAY INSTRUMENTAL Y EQUIPO DISPONIBLE",{"$f":"+'I TRIMESTRE 2024'!C13+'II TRIMESTRE 2024'!C13+'III TRIMESTRE 2024'!C13+'IV TRIMESTRE 2023'!C13","v":241},{"$f":"+'I TRIMESTRE 2024'!D13+'II TRIMESTRE 2024'!D13+'III TRIMESTRE 2024'!D13+'IV TRIMESTRE 2023'!D13","v":306},{"$f":"+'I TRIMESTRE 2024'!E13+'II TRIMESTRE 2024'!E13+'III TRIMESTRE 2024'!E13+'IV TRIMESTRE 2023'!E13","v":354},{"$f":"+'I TRIMESTRE 2024'!F13+'II TRIMESTRE 2024'!F13+'III TRIMESTRE 2024'!F13+'IV TRIMESTRE 2023'!F13","v":0},901]
[null,"RIESGO DE HEMORRAGIA MENOR A 500 ML",{"$f":"+'I TRIMESTRE 2024'!C14+'II TRIMESTRE 2024'!C14+'III TRIMESTRE 2024'!C14+'IV TRIMESTRE 2023'!C14","v":157},{"$f":"+'I TRIMESTRE 2024'!D14+'II TRIMESTRE 2024'!D14+'III TRIMESTRE 2024'!D14+'IV TRIMESTRE 2023'!D14","v":705},{"$f":"+'I TRIMESTRE 2024'!E14+'II TRIMESTRE 2024'!E14+'III TRIMESTRE 2024'!E14+'IV TRIMESTRE 2023'!E14","v":39},{"$f":"+'I TRIMESTRE 2024'!F14+'II TRIMESTRE 2024'!F14+'III TRIMESTRE 2024'!F14+'IV TRIMESTRE 2023'!F14","v":0},901]
[null,"SE HA PREVISTO DISPONIBILIDAD DE COMPONENTE SANGUINEO EN BANCO DE SANGRE",{"$f":"+'I TRIMESTRE 2024'!C15+'II TRIMESTRE 2024'!C15+'III TRIMESTRE 2024'!C15+'IV TRIMESTRE 2023'!C15","v":229},{"$f":"+'I TRIMESTRE 2024'!D15+'II TRIMESTRE 2024'!D15+'III TRIMESTRE 2024'!D15+'IV TRIMESTRE 2023'!D15","v":332},{"$f":"+'I TRIMESTRE 2024'!E15+'II TRIMESTRE 2024'!E15+'III TRIMESTRE 2024'!E15+'IV TRIMESTRE 2023'!E15","v":340},{"$f":"+'I TRIMESTRE 2024'!F15+'II TRIMESTRE 2024'!F15+'III TRIMESTRE 2024'!F15+'IV TRIMESTRE 2023'!F15","v":0},901]
["PAUSA","CONFIRMAR QUE TODOS LOS MIEMBROS DEL EQUIPO PROGRAMADOS SE HAYAN PRESENTADO POR SU NOMBRE",{"$f":"+'I TRIMESTRE 2024'!C16+'II TRIMESTRE 2024'!C16+'III TRIMESTRE 2024'!C16+'IV TRIMESTRE 2023'!C16","v":900},{"$f":"+'I TRIMESTRE 2024'!D16+'II TRIMESTRE 2024'!D16+'III TRIMESTRE 2024'!D16+'IV TRIMESTRE 2023'!D16","v":0},{"$f":"+'I TRIMESTRE 2024'!E16+'II TRIMESTRE 2024'!E16+'III TRIMESTRE 2024'!E16+'IV TRIMESTRE 2023'!E16","v":1},{"$f":"+'I TRIMESTRE 2024'!F16+'II TRIMESTRE 2024'!F16+'III TRIMESTRE 2024'!F16+'IV TRIMESTRE 2023'!F16","v":0},901]
[null,"CONFIRMAR LA IDENTIDAD DEL PACIENTE, EL PROCEDIMIENTO Y EL SITIO QUIRUGICO",{"$f":"+'I TRIMESTRE 2024'!C17+'II TRIMESTRE 2024'!C17+'III TRIMESTRE 2024'!C17+'IV TRIMESTRE 2023'!C17","v":896},{"$f":"+'I TRIMESTRE 2024'!D17+'II TRIMESTRE 2024'!D17+'III TRIMESTRE 2024'!D17+'IV TRIMESTRE 2023'!D17","v":2},{"$f":"+'I TRIMESTRE 2024'!E17+'II TRIMESTRE 2024'!E17+'III TRIMESTRE 2024'!E17+'IV TRIMESTRE 2023'!E17","v":3},{"$f":"+'I TRIMESTRE 2024'!F17+'II TRIMESTRE 2024'!F17+'III TRIMESTRE 2024'!F17+'IV TRIMESTRE 2023'!F17","v":0},901]
[null,"CONFIRMAR SI TODOS LOS MIEMBROS DEL EQUIPO HAN CUMPLIDO CORRECTAMENTE CON EL PROTOCOLO DE AS",{"$f":"+'I TRIMESTRE 2024'!C18+'II TRIMESTRE 2024'!C18+'III TRIMESTRE 2024'!C18+'IV TRIMESTRE 2023'!C18","v":890},{"$f":"+'I TRIMESTRE 2024'!D18+'II TRIMESTRE 2024'!D18+'III TRIMESTRE 2024'!D18+'IV TRIMESTRE 2023'!D18","v":1},{"$f":"+'I TRIMESTRE 2024'!E18+'II TRIMESTRE 2024'!E18+'III TRIMESTRE 2024'!E18+'IV TRIMESTRE 2023'!E18","v":9},{"$f":"+'I TRIMESTRE 2024'!F18+'II TRIMESTRE 2024'!F18+'III TRIMESTRE 2024'!F18+'IV TRIMESTRE 2023'!F18","v":1},901]
[null,"SE HA ADMINISTRADO PROFILAXIS CON ANTIBIOTICOS EN LOS ULTIMOS 60 MINUTOS",{"$f":"+'I TRIMESTRE 2024'!C19+'II TRIMESTRE 2024'!C19+'III TRIMESTRE 2024'!C19+'IV TRIMESTRE 2023'!C19","v":776},{"$f":"+'I TRIMESTRE 2024'!D19+'II TRIMESTRE 2024'!D19+'III TRIMESTRE 2024'!D19+'IV TRIMESTRE 2023'!D19","v":83},{"$f":"+'I TRIMESTRE 2024'!E19+'II TRIMESTRE 2024'!E19+'III TRIMESTRE 2024'!E19+'IV TRIMESTRE 2023'!E19","v":20},{"$f":"+'I TRIMESTRE 2024'!F19+'II TRIMESTRE 2024'!F19+'III TRIMESTRE 2024'!F19+'IV TRIMESTRE 2023'!F19","v":22},901,null,{"$f":"SUM(C16,C17,C18,C19,C20,,C22,D23,C24,D25,C26)","v":7676},{"$f":"I19/$I$21","v":0.93495736906211935}]
[null,"¿CUALES SON LOS PASOS CRITICOS O INESPERADO?",{"$f":"+'I TRIMESTRE 2024'!C20+'II TRIMESTRE 2024'!C20+'III TRIMESTRE 2024'!C20+'IV TRIMESTRE 2023'!C20","v":649},{"$f":"+'I TRIMESTRE 2024'!D20+'II TRIMESTRE 2024'!D20+'III TRIMESTRE 2024'!D20+'IV TRIMESTRE 2023'!D20","v":214},{"$f":"+'I TRIMESTRE 2024'!E20+'II TRIMESTRE 2024'!E20+'III TRIMESTRE 2024'!E20+'IV TRIMESTRE 2023'!E20","v":34},{"$f":"+'I TRIMESTRE 2024'!F20+'II TRIMESTRE 2024'!F20+'III TRIMESTRE 2024'!F20+'IV TRIMESTRE 2023'!F20","v":4},901,null,{"$f":"SUM(D16,D17,D18,D19,D20,D21,D22,C23,D24,C25,D26)","v":534},{"$f":"I20/$I$21","v":6.5042630937880638E-2}]
[null,"¿CUANTO DURARA LA OPERACIÓN?",{"$f":"+'I TRIMESTRE 2024'!C21+'II TRIMESTRE 2024'!C21+'III TRIMESTRE 2024'!C21+'IV TRIMESTRE 2023'!C21","v":886},{"$f":"+'I TRIMESTRE 2024'!D21+'II TRIMESTRE 2024'!D21+'III TRIMESTRE 2024'!D21+'IV TRIMESTRE 2023'!D21","v":4},{"$f":"+'I TRIMESTRE 2024'!E21+'II TRIMESTRE 2024'!E21+'III TRIMESTRE 2024'!E21+'IV TRIMESTRE 2023'!E21","v":11},{"$f":"+'I TRIMESTRE 2024'!F21+'II TRIMESTRE 2024'!F21+'III TRIMESTRE 2024'!F21+'IV TRIMESTRE 2023'!F21","v":0},901,null,{"$f":"SUM(I19:I20)","v":8210}]
[null,"¿CUANTO ES LA PERDIDA DE SALGRE PREVISTA?",{"$f":"+'I TRIMESTRE 2024'!C22+'II TRIMESTRE 2024'!C22+'III TRIMESTRE 2024'!C22+'IV TRIMESTRE 2023'!C22","v":852},{"$f":"+'I TRIMESTRE 2024'!D22+'II TRIMESTRE 2024'!D22+'III TRIMESTRE 2024'!D22+'IV TRIMESTRE 2023'!D22","v":26},{"$f":"+'I TRIMESTRE 2024'!E22+'II TRIMESTRE 2024'!E22+'III TRIMESTRE 2024'!E22+'IV TRIMESTRE 2023'!E22","v":23},{"$f":"+'I TRIMESTRE 2024'!F22+'II TRIMESTRE 2024'!F22+'III TRIMESTRE 2024'!F22+'IV TRIMESTRE 2023'!F22","v":0},901]
[null,"¿PRESENTA EL PACIENTE ALGUN PROBLEMA ESPECIFICO?",{"$f":"+'I TRIMESTRE 2024'!C23+'II TRIMESTRE 2024'!C23+'III TRIMESTRE 2024'!C23+'IV TRIMESTRE 2023'!C23","v":91},{"$f":"+'I TRIMESTRE 2024'!D23+'II TRIMESTRE 2024'!D23+'III TRIMESTRE 2024'!D23+'IV TRIMESTRE 2023'!D23","v":789},{"$f":"+'I TRIMESTRE 2024'!E23+'II TRIMESTRE 2024'!E23+'III TRIMESTRE 2024'!E23+'IV TRIMESTRE 2023'!E23","v":26},{"$f":"+'I TRIMESTRE 2024'!F23+'II TRIMESTRE 2024'!F23+'III TRIMESTRE 2024'!F23+'IV TRIMESTRE 2023'!F23","v":0},906]
[null,"¿SE HA CONFIRMADO LA ESTERILIDAD DE ROPA, INSTRUMENTAL Y EQUIPOS?",{"$f":"+'I TRIMESTRE 2024'!C24+'II TRIMESTRE 2024'!C24+'III TRIMESTRE 2024'!C24+'IV TRIMESTRE 2023'!C24","v":844},{"$f":"+'I TRIMESTRE 2024'!D24+'II TRIMESTRE 2024'!D24+'III TRIMESTRE 2024'!D24+'IV TRIMESTRE 2023'!D24","v":46},{"$f":"+'I TRIMESTRE 2024'!E24+'II TRIMESTRE 2024'!E24+'III TRIMESTRE 2024'!E24+'IV TRIMESTRE 2023'!E24","v":9},{"$f":"+'I TRIMESTRE 2024'!F24+'II TRIMESTRE 2024'!F24+'III TRIMESTRE 2024'!F24+'IV TRIMESTRE 2023'!F24","v":2},901]
[null,"¿HAY DUDAS O PROBLEMAS RELACIONADOS CON ELLOS?",{"$f":"+'I TRIMESTRE 2024'!C25+'II TRIMESTRE 2024'!C25+'III TRIMESTRE 2024'!C25+'IV TRIMESTRE 2023'!C25","v":27},{"$f":"+'I TRIMESTRE 2024'!D25+'II TRIMESTRE 2024'!D25+'III TRIMESTRE 2024'!D25+'IV TRIMESTRE 2023'!D25","v":840},{"$f":"+'I TRIMESTRE 2024'!E25+'II TRIMESTRE 2024'!E25+'III TRIMESTRE 2024'!E25+'IV TRIMESTRE 2023'!E25","v":31},{"$f":"+'I TRIMESTRE 2024'!F25+'II TRIMESTRE 2024'!F25+'III TRIMESTRE 2024'!F25+'IV TRIMESTRE 2023'!F25","v":2},900]
[null,"¿PUEDEN VISUALIZARSE LAS IMÁGENES DIAGNOSTICADAS ESENCIALES?",{"$f":"+'I TRIMESTRE 2024'!C26+'II TRIMESTRE 2024'!C26+'III TRIMESTRE 2024'!C26+'IV TRIMESTRE 2023'!C26","v":240},{"$f":"+'I TRIMESTRE 2024'!D26+'II TRIMESTRE 2024'!D26+'III TRIMESTRE 2024'!D26+'IV TRIMESTRE 2023'!D26","v":40},{"$f":"+'I TRIMESTRE 2024'!E26+'II TRIMESTRE 2024'!E26+'III TRIMESTRE 2024'!E26+'IV TRIMESTRE 2023'!E26","v":114},{"$f":"+'I TRIMESTRE 2024'!F26+'II TRIMESTRE 2024'!F26+'III TRIMESTRE 2024'!F26+'IV TRIMESTRE 2023'!F26","v":507},901]
["SALIDA","EL ENFERMERO CONFIRMA VERBALMENTE EL NOMBRE DEL PROCEDIMIENTO",{"$f":"+'I TRIMESTRE 2024'!C27+'II TRIMESTRE 2024'!C27+'III TRIMESTRE 2024'!C27+'IV TRIMESTRE 2023'!C27","v":892},{"$f":"+'I TRIMESTRE 2024'!D27+'II TRIMESTRE 2024'!D27+'III TRIMESTRE 2024'!D27+'IV TRIMESTRE 2023'!D27","v":0},{"$f":"+'I TRIMESTRE 2024'!E27+'II TRIMESTRE 2024'!E27+'III TRIMESTRE 2024'!E27+'IV TRIMESTRE 2023'!E27","v":9},{"$f":"+'I TRIMESTRE 2024'!F27+'II TRIMESTRE 2024'!F27+'III TRIMESTRE 2024'!F27+'IV TRIMESTRE 2023'!F27","v":0},901]
[null,"EL RECUENTO DE INSTRUMENTOS, GASA Y AGUJAS",{"$f":"+'I TRIMESTRE 2024'!C28+'II TRIMESTRE 2024'!C28+'III TRIMESTRE 2024'!C28+'IV TRIMESTRE 2023'!C28","v":883},{"$f":"+'I TRIMESTRE 2024'!D28+'II TRIMESTRE 2024'!D28+'III TRIMESTRE 2024'!D28+'IV TRIMESTRE 2023'!D28","v":4},{"$f":"+'I TRIMESTRE 2024'!E28+'II TRIMESTRE 2024'!E28+'III TRIMESTRE 2024'!E28+'IV TRIMESTRE 2023'!E28","v":13},{"$f":"+'I TRIMESTRE 2024'!F28+'II TRIMESTRE 2024'!F28+'III TRIMESTRE 2024'!F28+'IV TRIMESTRE 2023'!F28","v":0},900,null,{"$f":"SUM(C27,C28,C29,C30,C31,D32)","v":2891},{"$f":"I28/$I$30","v":0.66582220175034545}]
[null,"EL ETIQUETADO DE LAS MUESTRAS (LECTURA DE LA ETIQUETA EN VOZ ALTA, INCLUIDO EL NOMBRE DEL PACIENTE",{"$f":"+'I TRIMESTRE 2024'!C29+'II TRIMESTRE 2024'!C29+'III TRIMESTRE 2024'!C29+'IV TRIMESTRE 2023'!C29","v":195},{"$f":"+'I TRIMESTRE 2024'!D29+'II TRIMESTRE 2024'!D29+'III TRIMESTRE 2024'!D29+'IV TRIMESTRE 2023'!D29","v":419},{"$f":"+'I TRIMESTRE 2024'!E29+'II TRIMESTRE 2024'!E29+'III TRIMESTRE 2024'!E29+'IV TRIMESTRE 2023'!E29","v":35},{"$f":"+'I TRIMESTRE 2024'!F29+'II TRIMESTRE 2024'!F29+'III TRIMESTRE 2024'!F29+'IV TRIMESTRE 2023'!F29","v":239},888,null,{"$f":"SUM(D27,D28,D29,D30,D31,C32)","v":1451},{"$f":"I29/$I$30","v":0.33417779824965455}]
[null,"SI HAY PROBLEMAS QUE SE RESUELVE RELACIONADOS CON EL INSTRUMENTAL Y LOS EQUIPOS",{"$f":"+'I TRIMESTRE 2024'!C30+'II TRIMESTRE 2024'!C30+'III TRIMESTRE 2024'!C30+'IV TRIMESTRE 2023'!C30","v":34},{"$f":"+'I TRIMESTRE 2024'!D30+'II TRIMESTRE 2024'!D30+'III TRIMESTRE 2024'!D30+'IV TRIMESTRE 2023'!D30","v":850},{"$f":"+'I TRIMESTRE 2024'!E30+'II TRIMESTRE 2024'!E30+'III TRIMESTRE 2024'!E30+'IV TRIMESTRE 2023'!E30","v":11},{"$f":"+'I TRIMESTRE 2024'!F30+'II TRIMESTRE 2024'!F30+'III TRIMESTRE 2024'!F30+'IV TRIMESTRE 2023'!F30","v":6},901,null,{"$f":"SUM(I28:I29)","v":4342}]
[null,"(CIRUJANO, ANESTESIOLOGO, ENFERMERO) CUALES SON LOS ASPECTOS CRITICOS DE LA RECUPERACION Y EL TRAMITE",{"$f":"+'I TRIMESTRE 2024'!C31+'II TRIMESTRE 2024'!C31+'III TRIMESTRE 2024'!C31+'IV TRIMESTRE 2023'!C31","v":727},{"$f":"+'I TRIMESTRE 2024'!D31+'II TRIMESTRE 2024'!D31+'III TRIMESTRE 2024'!D31+'IV TRIMESTRE 2023'!D31","v":139},{"$f":"+'I TRIMESTRE 2024'!E31+'II TRIMESTRE 2024'!E31+'III TRIMESTRE 2024'!E31+'IV TRIMESTRE 2023'!E31","v":33},{"$f":"+'I TRIMESTRE 2024'!F31+'II TRIMESTRE 2024'!F31+'III TRIMESTRE 2024'!F31+'IV TRIMESTRE 2023'!F31","v":2},901]
[null,"OBSERVACIONES",{"$f":"+'I TRIMESTRE 2024'!C32+'II TRIMESTRE 2024'!C32+'III TRIMESTRE 2024'!C32+'IV TRIMESTRE 2023'!C32","v":39},{"$f":"+'I TRIMESTRE 2024'!D32+'II TRIMESTRE 2024'!D32+'III TRIMESTRE 2024'!D32+'IV TRIMESTRE 2023'!D32","v":160},{"$f":"+'I TRIMESTRE 2024'!E32+'II TRIMESTRE 2024'!E32+'III TRIMESTRE 2024'!E32+'IV TRIMESTRE 2023'!E32","v":701},{"$f":"+'I TRIMESTRE 2024'!F32+'II TRIMESTRE 2024'!F32+'III TRIMESTRE 2024'!F32+'IV TRIMESTRE 2023'!F32","v":0},900]
["FIRMA","FIRMA DEL CIRUJANO",{"$f":"+'I TRIMESTRE 2024'!C33+'II TRIMESTRE 2024'!C33+'III TRIMESTRE 2024'!C33+'IV TRIMESTRE 2023'!C33","v":897},{"$f":"+'I TRIMESTRE 2024'!D33+'II TRIMESTRE 2024'!D33+'III TRIMESTRE 2024'!D33+'IV TRIMESTRE 2023'!D33","v":4},{"$f":"+'I TRIMESTRE 2024'!E33+'II TRIMESTRE 2024'!E33+'III TRIMESTRE 2024'!E33+'IV TRIMESTRE 2023'!E33","v":0},{"$f":"+'I TRIMESTRE 2024'!F33+'II TRIMESTRE 2024'!F33+'III TRIMESTRE 2024'!F33+'IV TRIMESTRE 2023'!F33","v":0},901]
[null,"FIRMA DEL ANESTESIOLOGO",{"$f":"+'I TRIMESTRE 2024'!C34+'II TRIMESTRE 2024'!C34+'III TRIMESTRE 2024'!C34+'IV TRIMESTRE 2023'!C34","v":895},{"$f":"+'I TRIMESTRE 2024'!D34+'II TRIMESTRE 2024'!D34+'III TRIMESTRE 2024'!D34+'IV TRIMESTRE 2023'!D34","v":4},{"$f":"+'I TRIMESTRE 2024'!E34+'II TRIMESTRE 2024'!E34+'III TRIMESTRE 2024'!E34+'IV TRIMESTRE 2023'!E34","v":2},{"$f":"+'I TRIMESTRE 2024'!F34+'II TRIMESTRE 2024'!F34+'III TRIMESTRE 2024'!F34+'IV TRIMESTRE 2023'!F34","v":0},901]
[null,"FIRMA DE LA ENFERMERA",{"$f":"+'I TRIMESTRE 2024'!C35+'II TRIMESTRE 2024'!C35+'III TRIMESTRE 2024'!C35+'IV TRIMESTRE 2023'!C35","v":895},{"$f":"+'I TRIMESTRE 2024'!D35+'II TRIMESTRE 2024'!D35+'III TRIMESTRE 2024'!D35+'IV TRIMESTRE 2023'!D35","v":5},{"$f":"+'I TRIMESTRE 2024'!E35+'II TRIMESTRE 2024'!E35+'III TRIMESTRE 2024'!E35+'IV TRIMESTRE 2023'!E35","v":1},{"$f":"+'I TRIMESTRE 2024'!F35+'II TRIMESTRE 2024'!F35+'III TRIMESTRE 2024'!F35+'IV TRIMESTRE 2023'!F35","v":0},901,null,{"$f":"SUM(C33,C34,C35,C36,C37,C38,C39)","v":6249},{"$f":"I35/$I$37","v":0.99427207637231507}]
[null,"FIRMA DEL COORDINADOR",{"$f":"+'I TRIMESTRE 2024'!C36+'II TRIMESTRE 2024'!C36+'III TRIMESTRE 2024'!C36+'IV TRIMESTRE 2023'!C36","v":892},{"$f":"+'I TRIMESTRE 2024'!D36+'II TRIMESTRE 2024'!D36+'III TRIMESTRE 2024'!D36+'IV TRIMESTRE 2023'!D36","v":6},{"$f":"+'I TRIMESTRE 2024'!E36+'II TRIMESTRE 2024'!E36+'III TRIMESTRE 2024'!E36+'IV TRIMESTRE 2023'!E36","v":3},{"$f":"+'I TRIMESTRE 2024'!F36+'II TRIMESTRE 2024'!F36+'III TRIMESTRE 2024'!F36+'IV TRIMESTRE 2023'!F36","v":0},901,null,{"$f":"SUM(D33,D34,D35,D36,D37,,D38,D39)","v":36},{"$f":"I36/$I$37","v":5.7279236276849641E-3}]
[null,"NRO DE HISTORIA CLINICA",{"$f":"+'I TRIMESTRE 2024'!C37+'II TRIMESTRE 2024'!C37+'III TRIMESTRE 2024'!C37+'IV TRIMESTRE 2023'!C37","v":877},{"$f":"+'I TRIMESTRE 2024'!D37+'II TRIMESTRE 2024'!D37+'III TRIMESTRE 2024'!D37+'IV TRIMESTRE 2023'!D37","v":11},{"$f":"+'I TRIMESTRE 2024'!E37+'II TRIMESTRE 2024'!E37+'III TRIMESTRE 2024'!E37+'IV TRIMESTRE 2023'!E37","v":13},{"$f":"+'I TRIMESTRE 2024'!F37+'II TRIMESTRE 2024'!F37+'III TRIMESTRE 2024'!F37+'IV TRIMESTRE 2023'!F37","v":0},901,null,{"$f":"SUM(I35:I36)","v":6285}]
[null,"NOMBRE Y APELLIDOS DEL PACIENTE",{"$f":"+'I TRIMESTRE 2024'!C38+'II TRIMESTRE 2024'!C38+'III TRIMESTRE 2024'!C38+'IV TRIMESTRE 2023'!C38","v":896},{"$f":"+'I TRIMESTRE 2024'!D38+'II TRIMESTRE 2024'!D38+'III TRIMESTRE 2024'!D38+'IV TRIMESTRE 2023'!D38","v":3},{"$f":"+'I TRIMESTRE 2024'!E38+'II TRIMESTRE 2024'!E38+'III TRIMESTRE 2024'!E38+'IV TRIMESTRE 2023'!E38","v":2},{"$f":"+'I TRIMESTRE 2024'!F38+'II TRIMESTRE 2024'!F38+'III TRIMESTRE 2024'!F38+'IV TRIMESTRE 2023'!F38","v":0},901]
[null,"FECHA",{"$f":"+'I TRIMESTRE 2024'!C39+'II TRIMESTRE 2024'!C39+'III TRIMESTRE 2024'!C39+'IV TRIMESTRE 2023'!C39","v":897},{"$f":"+'I TRIMESTRE 2024'!D39+'II TRIMESTRE 2024'!D39+'III TRIMESTRE 2024'!D39+'IV TRIMESTRE 2023'!D39","v":3},{"$f":"+'I TRIMESTRE 2024'!E39+'II TRIMESTRE 2024'!E39+'III TRIMESTRE 2024'!E39+'IV TRIMESTRE 2023'!E39","v":1},{"$f":"+'I TRIMESTRE 2024'!F39+'II TRIMESTRE 2024'!F39+'III TRIMESTRE 2024'!F39+'IV TRIMESTRE 2023'!F39","v":0},901]
[]
[]
[]
[]
[]
[null,"PORCENTAJE DE CUMPLIMIENTO DE LA LISTA DE VERIFICACION DE CIRUGIA SEGURA"]
[]
[]
[]
[]
[]
[null,null,"ENTRADA","(+)",{"$f":"J8","v":0.83050371825452507}]
[null,null,null,"(-)",{"$f":"J9","v":0.16949628174547496}]
[null,null,"PAUSA","(+)",{"$f":"J19","v":0.93495736906211935},null,null,null,null,null,null,null,"Cumplimiento"]
[null,null,null,"(-)",{"$f":"J20","v":6.5042630937880638E-2},null,null,null,null,null,null,"Entrada",{"$f":"E51","v":0.83050371825452507}]
[null,null,"SALIDA","(+)",{"$f":"J28","v":0.66582220175034545},null,null,null,null,null,null,"Pausa",{"$f":"E53","v":0.93495736906211935}]
[null,null,null,"(-)",{"$f":"J29","v":0.33417779824965455},null,null,null,null,null,null,"Salida",{"$f":"E55","v":0.66582220175034545}]
[null,null,"FIRMA","(+)",{"$f":"J35","v":0.99427207637231507},null,null,null,null,null,null,"Firmas",{"$f":"E57","v":0.99427207637231507}]
[null,null,null,"(-)",{"$f":"J36","v":5.7279236276849641E-3},null,null,null,null,null,null,"Cumplimiento",{"$f":"AVERAGE(M54:M57)","v":0.85638884135982618}]
[null,null,"CUMPLIMIENTO",null,{"$f":"M58","v":0.85638884135982618}]